Organisation Name,Organisation Code,Unique Ref No,Effective Date,Directorate  where expenditure incurred,Supplier name ,Payment Date,Net Amount,Purpose of Spend,Procurement Classification (Higher Level),Procurement Classification (Lower Level),Capital/Revenue
Walsall Council,http://opendatacommunities.org/id/metropolitan-district-council/walsall,WC68-1,31/05/2016,Economy & Environment,10 OUT OF 10 PRODUCTIONS LTD,16/05/2016,663.5,01044-PURCHASE OF FURNITURE & EQUIPMENT,CFR 1014 FOREST ARTS CENTRE (RENOVATION OF SPORTS HALL),Capital,Capital
Walsall Council,http://opendatacommunities.org/id/metropolitan-district-council/walsall,WC68-2,31/05/2016,Change and Governance,1444 (BROWNHILLS) AIR TRAINING CORPS,01/05/2016,352.54,62001-STATIONERY & GENERAL SUPPLIES-OFFICE EXP,AREA 1 - BROWNHILLS,Supplies & Services,Revenue
Walsall Council,http://opendatacommunities.org/id/metropolitan-district-council/walsall,WC68-3,31/05/2016,Social Care & Inclusion,1ST CARE LIMITED T/A STUBBY LEAS NURSING HOME,10/05/2016,"2,382.57",73373-RESIDENTIAL & NURSING CARE PLACEMENTS,MH COMMISSIONING,Third Party Payments,Revenue
Walsall Council,http://opendatacommunities.org/id/metropolitan-district-council/walsall,WC68-4,31/05/2016,Change and Governance,240 ATC SQUADRON (DARLASTON),17/05/2016,"2,211.85",62515-MISCELLANEOUS SUPPLIES,AREA 5 - DARLASTON/BENTLEY,Supplies & Services,Revenue
Walsall Council,http://opendatacommunities.org/id/metropolitan-district-council/walsall,WC68-5,31/05/2016,Childrens,247 CARS (WILLENHALL) LIMITED,11/05/2016,"7,418.00",52000-WITH DRIVER-HIRE OF VEHICLES,SCHOOL TRANSPORT,Transport,Revenue
Walsall Council,http://opendatacommunities.org/id/metropolitan-district-council/walsall,WC68-6,31/05/2016,Change and Governance,2BM LIMITED,05/05/2016,"1,145.00",63800-COMPUTER EQUIPMENT AND SUPPLIES,RECHARGEABLE EQUIPMENT,Supplies & Services,Revenue
Walsall Council,http://opendatacommunities.org/id/metropolitan-district-council/walsall,WC68-7,31/05/2016,Change and Governance,39 ESSEX STREET LLP PFA,10/05/2016,972,63000-PROFESSIONAL FEES AND SERVICES,CORPORATE EXPENSES,Supplies & Services,Revenue
Walsall Council,http://opendatacommunities.org/id/metropolitan-district-council/walsall,WC68-8,31/05/2016,Change and Governance,39 ESSEX STREET LLP PFA,20/05/2016,972,63000-PROFESSIONAL FEES AND SERVICES,CORPORATE EXPENSES,Supplies & Services,Revenue
Walsall Council,http://opendatacommunities.org/id/metropolitan-district-council/walsall,WC68-9,31/05/2016,Childrens,39 ESSEX STREET LLP PFA,10/05/2016,"1,078.00",63116-EXTERNAL BARRISTERS-SERVICES-FEES,PERFORMANCE & OUTCOMES TEAM (C&YP),Supplies & Services,Revenue
Walsall Council,http://opendatacommunities.org/id/metropolitan-district-council/walsall,WC68-10,31/05/2016,Childrens,5 CARE SERVICES LTD,09/05/2016,744,63000-PROFESSIONAL FEES AND SERVICES,DIRECTLY COMMISSIONED NURSING SERVICES,Supplies & Services,Revenue
Walsall Council,http://opendatacommunities.org/id/metropolitan-district-council/walsall,WC68-11,31/05/2016,Childrens,5 CARE SERVICES LTD,09/05/2016,978,63000-PROFESSIONAL FEES AND SERVICES,DIRECTLY COMMISSIONED NURSING SERVICES,Supplies & Services,Revenue
Walsall Council,http://opendatacommunities.org/id/metropolitan-district-council/walsall,WC68-12,31/05/2016,Childrens,5 CARE SERVICES LTD,09/05/2016,"1,134.00",63000-PROFESSIONAL FEES AND SERVICES,DIRECTLY COMMISSIONED NURSING SERVICES,Supplies & Services,Revenue
Walsall Council,http://opendatacommunities.org/id/metropolitan-district-council/walsall,WC68-13,31/05/2016,Childrens,5 CARE SERVICES LTD,09/05/2016,"1,692.00",63000-PROFESSIONAL FEES AND SERVICES,DIRECTLY COMMISSIONED NURSING SERVICES,Supplies & Services,Revenue
Walsall Council,http://opendatacommunities.org/id/metropolitan-district-council/walsall,WC68-14,31/05/2016,Social Care & Inclusion,5 CARE SERVICES LTD,25/05/2016,"36,559.73",73372-DOMICILIARY CARE,OP COMMISSIONING,Third Party Payments,Revenue
Walsall Council,http://opendatacommunities.org/id/metropolitan-district-council/walsall,WC68-15,31/05/2016,Economy & Environment,A ASHTON,16/05/2016,690.75,60500-GENERAL MATERIALS,INFRASTRUCTURE MAINTENANCE,Supplies & Services,Revenue
Walsall Council,http://opendatacommunities.org/id/metropolitan-district-council/walsall,WC68-16,31/05/2016,Economy & Environment,A C ENTERTAINMENT TECHNOLOGIES LTD,20/05/2016,"13,451.34",01044-PURCHASE OF FURNITURE & EQUIPMENT,CFR 1014 FOREST ARTS CENTRE (RENOVATION OF SPORTS HALL),Capital,Capital
Walsall Council,http://opendatacommunities.org/id/metropolitan-district-council/walsall,WC68-17,31/05/2016,Change and Governance,A D T FIRE AND SECURITY PLC,23/05/2016,247.48,73002-SECURITY-PRIV CONTRACTOR FEES,CENTRALISED MAINTENANCE,Third Party Payments,Revenue
Walsall Council,http://opendatacommunities.org/id/metropolitan-district-council/walsall,WC68-18,31/05/2016,Change and Governance,A D T FIRE AND SECURITY PLC,27/05/2016,476.23,73002-SECURITY-PRIV CONTRACTOR FEES,CHALLENGE BUILDING,Third Party Payments,Revenue
Walsall Council,http://opendatacommunities.org/id/metropolitan-district-council/walsall,WC68-19,31/05/2016,Change and Governance,A D T FIRE AND SECURITY PLC,09/05/2016,"1,050.00",73002-SECURITY-PRIV CONTRACTOR FEES,CENTRALISED MAINTENANCE,Third Party Payments,Revenue
Walsall Council,http://opendatacommunities.org/id/metropolitan-district-council/walsall,WC68-20,31/05/2016,Economy & Environment,A D T FIRE AND SECURITY PLC,16/05/2016,"1,697.91",60008-MAINTENANCE-FURNITURE & EQUIPMENT,LIBRARY OPERATIONS CENTRAL,Supplies & Services,Revenue
Walsall Council,http://opendatacommunities.org/id/metropolitan-district-council/walsall,WC68-21,31/05/2016,Economy & Environment,A F BLAKEMORE & SON LTD,18/05/2016,245.25,61009-BEVERAGES-PROVISIONS,DARLASTON LEISURE CENTRE,Supplies & Services,Revenue
Walsall Council,http://opendatacommunities.org/id/metropolitan-district-council/walsall,WC68-22,31/05/2016,Social Care & Inclusion,A F BLAKEMORE & SON LTD,13/05/2016,263.82,61016-FOOD AND BEVERAGES-PROVISIONS,REABLEMENT TEAM - HOLLY BANK,Supplies & Services,Revenue
Walsall Council,http://opendatacommunities.org/id/metropolitan-district-council/walsall,WC68-23,31/05/2016,Economy & Environment,A F BLAKEMORE & SON LTD,03/05/2016,375.07,61008-CONFECTIONERY/SNACKS-PROVISIONS,OAK PARK,Supplies & Services,Revenue
Walsall Council,http://opendatacommunities.org/id/metropolitan-district-council/walsall,WC68-24,31/05/2016,Economy & Environment,A F BLAKEMORE & SON LTD,18/05/2016,420.99,61002-DRY FOODS-PROVISIONS,DARLASTON LEISURE CENTRE,Supplies & Services,Revenue
Walsall Council,http://opendatacommunities.org/id/metropolitan-district-council/walsall,WC68-25,31/05/2016,Economy & Environment,A F BLAKEMORE & SON LTD,04/05/2016,448.43,61008-CONFECTIONERY/SNACKS-PROVISIONS,OAK PARK,Supplies & Services,Revenue
Walsall Council,http://opendatacommunities.org/id/metropolitan-district-council/walsall,WC68-26,31/05/2016,Social Care & Inclusion,A F BLAKEMORE & SON LTD,01/05/2016,496.96,61016-FOOD AND BEVERAGES-PROVISIONS,REABLEMENT TEAM - HOLLY BANK,Supplies & Services,Revenue
Walsall Council,http://opendatacommunities.org/id/metropolitan-district-council/walsall,WC68-27,31/05/2016,Social Care & Inclusion,A F BLAKEMORE & SON LTD,01/05/2016,502.68,61016-FOOD AND BEVERAGES-PROVISIONS,REABLEMENT TEAM - HOLLY BANK,Supplies & Services,Revenue
Walsall Council,http://opendatacommunities.org/id/metropolitan-district-council/walsall,WC68-28,31/05/2016,Social Care & Inclusion,A F BLAKEMORE & SON LTD,19/05/2016,931.36,61016-FOOD AND BEVERAGES-PROVISIONS,GOSCOTE,Supplies & Services,Revenue
Walsall Council,http://opendatacommunities.org/id/metropolitan-district-council/walsall,WC68-29,31/05/2016,Childrens,REDACTED,09/05/2016,340.16,74006-HOLIDAY/CHRISTMAS ALLOWANCE-FOSTER CARERS-OTH AGENCY PROVISION,INTERNAL FOSTER CARE PROVISION,Third Party Payments,Revenue
Walsall Council,http://opendatacommunities.org/id/metropolitan-district-council/walsall,WC68-30,31/05/2016,Economy & Environment,A KARIMS CHUCKERY PHARMACY,27/05/2016,17.7,63000-PROFESSIONAL FEES AND SERVICES,SEXUAL HEALTH,Supplies & Services,Revenue
Walsall Council,http://opendatacommunities.org/id/metropolitan-district-council/walsall,WC68-31,31/05/2016,Economy & Environment,A KARIMS CHUCKERY PHARMACY,09/05/2016,35.4,63000-PROFESSIONAL FEES AND SERVICES,SEXUAL HEALTH,Supplies & Services,Revenue
Walsall Council,http://opendatacommunities.org/id/metropolitan-district-council/walsall,WC68-32,31/05/2016,Economy & Environment,A KARIMS CHUCKERY PHARMACY,05/05/2016,61.95,63000-PROFESSIONAL FEES AND SERVICES,SEXUAL HEALTH,Supplies & Services,Revenue
Walsall Council,http://opendatacommunities.org/id/metropolitan-district-council/walsall,WC68-33,31/05/2016,Economy & Environment,A KARIMS CHUCKERY PHARMACY,27/05/2016,"1,070.23",71007-CONTRIBUTION TO PCT,PUBLIC HEALTH BUSINESS SUPPORT,Third Party Payments,Revenue
Walsall Council,http://opendatacommunities.org/id/metropolitan-district-council/walsall,WC68-34,31/05/2016,Economy & Environment,A KARIMS CHUCKERY PHARMACY,09/05/2016,"1,534.46",71007-CONTRIBUTION TO PCT,PUBLIC HEALTH BUSINESS SUPPORT,Third Party Payments,Revenue
Walsall Council,http://opendatacommunities.org/id/metropolitan-district-council/walsall,WC68-35,31/05/2016,Economy & Environment,A KARIMS CHUCKERY PHARMACY,05/05/2016,"1,644.45",71007-CONTRIBUTION TO PCT,PUBLIC HEALTH BUSINESS SUPPORT,Third Party Payments,Revenue
Walsall Council,http://opendatacommunities.org/id/metropolitan-district-council/walsall,WC68-36,31/05/2016,Childrens,REDACTED,11/05/2016,464,76000-TRANSFER PAYMENTS - SOCIAL SERVICES CLIENTS,TRANSITION AND LEAVING CARE,Transfer Payments,Revenue
Walsall Council,http://opendatacommunities.org/id/metropolitan-district-council/walsall,WC68-37,31/05/2016,Childrens,REDACTED,25/05/2016,464,76000-TRANSFER PAYMENTS - SOCIAL SERVICES CLIENTS,TRANSITION AND LEAVING CARE,Transfer Payments,Revenue
Walsall Council,http://opendatacommunities.org/id/metropolitan-district-council/walsall,WC68-38,31/05/2016,Childrens,REDACTED,04/05/2016,320.88,74023-SHORT TERM BREAKS,INTERNAL FOSTER CARE PROVISION,Third Party Payments,Revenue
Walsall Council,http://opendatacommunities.org/id/metropolitan-district-council/walsall,WC68-39,31/05/2016,Childrens,A1 EXPRESS TAXIS,01/05/2016,252,52001-HIRE OF VEHICLES,CHILDRENS TAXI BUDGET,Transport,Revenue
Walsall Council,http://opendatacommunities.org/id/metropolitan-district-council/walsall,WC68-40,31/05/2016,Childrens,A1 EXPRESS TAXIS,01/05/2016,450,52001-HIRE OF VEHICLES,CHILDRENS TAXI BUDGET,Transport,Revenue
Walsall Council,http://opendatacommunities.org/id/metropolitan-district-council/walsall,WC68-41,31/05/2016,Childrens,A1 EXPRESS TAXIS,01/05/2016,540,52001-HIRE OF VEHICLES,CHILDRENS TAXI BUDGET,Transport,Revenue
Walsall Council,http://opendatacommunities.org/id/metropolitan-district-council/walsall,WC68-42,31/05/2016,Childrens,A1 EXPRESS TAXIS,01/05/2016,974,52001-HIRE OF VEHICLES,CHILDRENS TAXI BUDGET,Transport,Revenue
Walsall Council,http://opendatacommunities.org/id/metropolitan-district-council/walsall,WC68-43,31/05/2016,Childrens,AA GLOBAL LANGUAGE SERVICES LIMITED,16/05/2016,210.95,"62521-INTERPRETATION,TRANSLATION & HUMAN AIDS TO TRANSCRIPTION",INITIAL RESPONSE SERVICE,Supplies & Services,Revenue
Walsall Council,http://opendatacommunities.org/id/metropolitan-district-council/walsall,WC68-44,31/05/2016,Childrens,AA GLOBAL LANGUAGE SERVICES LIMITED,03/05/2016,482,"62521-INTERPRETATION,TRANSLATION & HUMAN AIDS TO TRANSCRIPTION",FAMILY PLACEMENTS,Supplies & Services,Revenue
Walsall Council,http://opendatacommunities.org/id/metropolitan-district-council/walsall,WC68-45,31/05/2016,Childrens,REDACTED,09/05/2016,345.24,76422-DIRECT PAYMENTS TO SOCIAL SERVICES CLIENTS,FAMILY SUPPORT - DIRECT PAYMENTS,Transfer Payments,Revenue
Walsall Council,http://opendatacommunities.org/id/metropolitan-district-council/walsall,WC68-46,31/05/2016,Childrens,ABACUS FOSTERING LTD,09/05/2016,"4,071.43",74037-INDEPENDENT FOSTER CARE-OTH AGENCY PROVISION,EXTERNAL FOSTER CARE PROVISION,Third Party Payments,Revenue
Walsall Council,http://opendatacommunities.org/id/metropolitan-district-council/walsall,WC68-47,31/05/2016,Childrens,ABACUS FOSTERING LTD,09/05/2016,"4,207.14",74037-INDEPENDENT FOSTER CARE-OTH AGENCY PROVISION,EXTERNAL FOSTER CARE PROVISION,Third Party Payments,Revenue
Walsall Council,http://opendatacommunities.org/id/metropolitan-district-council/walsall,WC68-48,31/05/2016,Childrens,REDACTED,09/05/2016,732.29,74006-HOLIDAY/CHRISTMAS ALLOWANCE-FOSTER CARERS-OTH AGENCY PROVISION,INTERNAL FOSTER CARE PROVISION,Third Party Payments,Revenue
Walsall Council,http://opendatacommunities.org/id/metropolitan-district-council/walsall,WC68-49,31/05/2016,Social Care & Inclusion,ABBEY COURT NURSING & RESIDEN,10/05/2016,"1,654.07",73373-RESIDENTIAL & NURSING CARE PLACEMENTS,OP COMMISSIONING,Third Party Payments,Revenue
Walsall Council,http://opendatacommunities.org/id/metropolitan-district-council/walsall,WC68-50,31/05/2016,Social Care & Inclusion,ABBEY COURT NURSING & RESIDEN,10/05/2016,"1,654.07",73373-RESIDENTIAL & NURSING CARE PLACEMENTS,OP COMMISSIONING,Third Party Payments,Revenue
Walsall Council,http://opendatacommunities.org/id/metropolitan-district-council/walsall,WC68-51,31/05/2016,Social Care & Inclusion,ABBEY COURT NURSING & RESIDEN,10/05/2016,"2,081.43",73373-RESIDENTIAL & NURSING CARE PLACEMENTS,MH COMMISSIONING,Third Party Payments,Revenue
Walsall Council,http://opendatacommunities.org/id/metropolitan-district-council/walsall,WC68-52,31/05/2016,Social Care & Inclusion,ABBEY HEALTHCARE HOMES LTD,17/05/2016,"1,699.16",73373-RESIDENTIAL & NURSING CARE PLACEMENTS,YADS COMMISSIONING,Third Party Payments,Revenue
Walsall Council,http://opendatacommunities.org/id/metropolitan-district-council/walsall,WC68-53,31/05/2016,Social Care & Inclusion,ABBEY HEALTHCARE HOMES LTD,27/05/2016,"2,294.08",73373-RESIDENTIAL & NURSING CARE PLACEMENTS,YADS COMMISSIONING,Third Party Payments,Revenue
Walsall Council,http://opendatacommunities.org/id/metropolitan-district-council/walsall,WC68-54,31/05/2016,Childrens,ABC CHILDRENS HOME,11/05/2016,"13,285.71",74036-EXTERNAL RESIDENTIAL CARE-OTH AGENCY PROVISION,INDEPENDENT RESIDENTIAL HOMES,Third Party Payments,Revenue
Walsall Council,http://opendatacommunities.org/id/metropolitan-district-council/walsall,WC68-55,31/05/2016,Childrens,ABC FOSTERING,10/05/2016,"2,809.13",74037-INDEPENDENT FOSTER CARE-OTH AGENCY PROVISION,EXTERNAL FOSTER CARE PROVISION,Third Party Payments,Revenue
Walsall Council,http://opendatacommunities.org/id/metropolitan-district-council/walsall,WC68-56,31/05/2016,Childrens,ABC FOSTERING,10/05/2016,"2,825.31",74037-INDEPENDENT FOSTER CARE-OTH AGENCY PROVISION,EXTERNAL FOSTER CARE PROVISION,Third Party Payments,Revenue
Walsall Council,http://opendatacommunities.org/id/metropolitan-district-council/walsall,WC68-57,31/05/2016,Childrens,ABC FOSTERING,10/05/2016,"2,829.50",74037-INDEPENDENT FOSTER CARE-OTH AGENCY PROVISION,EXTERNAL FOSTER CARE PROVISION,Third Party Payments,Revenue
Walsall Council,http://opendatacommunities.org/id/metropolitan-district-council/walsall,WC68-58,31/05/2016,Childrens,ABC FOSTERING,10/05/2016,"2,844.68",74037-INDEPENDENT FOSTER CARE-OTH AGENCY PROVISION,EXTERNAL FOSTER CARE PROVISION,Third Party Payments,Revenue
Walsall Council,http://opendatacommunities.org/id/metropolitan-district-council/walsall,WC68-59,31/05/2016,Childrens,ABC FOSTERING,10/05/2016,"2,924.01",74037-INDEPENDENT FOSTER CARE-OTH AGENCY PROVISION,EXTERNAL FOSTER CARE PROVISION,Third Party Payments,Revenue
Walsall Council,http://opendatacommunities.org/id/metropolitan-district-council/walsall,WC68-60,31/05/2016,Childrens,ABC FOSTERING,10/05/2016,"3,107.14",74037-INDEPENDENT FOSTER CARE-OTH AGENCY PROVISION,EXTERNAL FOSTER CARE PROVISION,Third Party Payments,Revenue
Walsall Council,http://opendatacommunities.org/id/metropolitan-district-council/walsall,WC68-61,31/05/2016,Childrens,ABC TEACHERS LIMITED,09/05/2016,707.97,34305-AGENCY STAFF-EMPLOYEES,ACCESS TEAM,Employees,Revenue
Walsall Council,http://opendatacommunities.org/id/metropolitan-district-council/walsall,WC68-62,31/05/2016,Childrens,ABEL ALARM CO LTD,12/05/2016,210.72,63239-EXTERNAL WORKS-PAYMENT TO CONTRACTOR,STROUD FAMILY CENTRE,Third Party Payments,Revenue
Walsall Council,http://opendatacommunities.org/id/metropolitan-district-council/walsall,WC68-63,31/05/2016,Social Care & Inclusion,REDACTED,09/05/2016,"2,357.99",76422-DIRECT PAYMENTS TO SOCIAL SERVICES CLIENTS,LD COMMISSIONING,Transfer Payments,Revenue
Walsall Council,http://opendatacommunities.org/id/metropolitan-district-council/walsall,WC68-64,31/05/2016,Change and Governance,ABLE ACCESS UK,09/05/2016,"4,513.57",01045-PRIVATE GRANTS,CFR 826 DISABLED FACILITIES GRANTS (SOCIAL SERVICES),Capital,Capital
Walsall Council,http://opendatacommunities.org/id/metropolitan-district-council/walsall,WC68-65,31/05/2016,Childrens,ABLEWELL CARS,01/05/2016,477,52000-WITH DRIVER-HIRE OF VEHICLES,SCHOOL TRANSPORT,Transport,Revenue
Walsall Council,http://opendatacommunities.org/id/metropolitan-district-council/walsall,WC68-66,31/05/2016,Change and Governance,ACCORD HOUSING ASSOCIATION LTD#135,09/05/2016,306.4,43001-RENTS-OTHER,REPOSSESION PREVENTION FUND,Premises,Revenue
Walsall Council,http://opendatacommunities.org/id/metropolitan-district-council/walsall,WC68-67,31/05/2016,Social Care & Inclusion,ACCORD HOUSING ASSOCIATION LTD#135,17/05/2016,390,73374-SUPPORTED & OTHER ACCOMMODATION,LD COMMISSIONING,Third Party Payments,Revenue
Walsall Council,http://opendatacommunities.org/id/metropolitan-district-council/walsall,WC68-68,31/05/2016,Change and Governance,ACCORD HOUSING ASSOCIATION LTD#135,01/05/2016,"1,008.65",43001-RENTS-OTHER,REPOSSESION PREVENTION FUND,Premises,Revenue
Walsall Council,http://opendatacommunities.org/id/metropolitan-district-council/walsall,WC68-69,31/05/2016,Social Care & Inclusion,ACCORD HOUSING ASSOCIATION LTD#135,18/05/2016,"1,891.50",73374-SUPPORTED & OTHER ACCOMMODATION,LD COMMISSIONING,Third Party Payments,Revenue
Walsall Council,http://opendatacommunities.org/id/metropolitan-district-council/walsall,WC68-70,31/05/2016,Social Care & Inclusion,ACCORD HOUSING ASSOCIATION LTD#135,18/05/2016,"2,154.75",73374-SUPPORTED & OTHER ACCOMMODATION,LD COMMISSIONING,Third Party Payments,Revenue
Walsall Council,http://opendatacommunities.org/id/metropolitan-district-council/walsall,WC68-71,31/05/2016,Social Care & Inclusion,ACCORD HOUSING ASSOCIATION LTD#135,10/05/2016,"4,591.84",73373-RESIDENTIAL & NURSING CARE PLACEMENTS,LD COMMISSIONING,Third Party Payments,Revenue
Walsall Council,http://opendatacommunities.org/id/metropolitan-district-council/walsall,WC68-72,31/05/2016,Social Care & Inclusion,ACCORD HOUSING ASSOCIATION LTD#135,10/05/2016,"4,591.84",73373-RESIDENTIAL & NURSING CARE PLACEMENTS,LD COMMISSIONING,Third Party Payments,Revenue
Walsall Council,http://opendatacommunities.org/id/metropolitan-district-council/walsall,WC68-73,31/05/2016,Social Care & Inclusion,ACCORD HOUSING ASSOCIATION LTD#135,10/05/2016,"4,591.84",73373-RESIDENTIAL & NURSING CARE PLACEMENTS,LD COMMISSIONING,Third Party Payments,Revenue
Walsall Council,http://opendatacommunities.org/id/metropolitan-district-council/walsall,WC68-74,31/05/2016,Social Care & Inclusion,ACCORD HOUSING ASSOCIATION LTD#135,10/05/2016,"4,591.84",73373-RESIDENTIAL & NURSING CARE PLACEMENTS,LD COMMISSIONING,Third Party Payments,Revenue
Walsall Council,http://opendatacommunities.org/id/metropolitan-district-council/walsall,WC68-75,31/05/2016,Social Care & Inclusion,ACCORD HOUSING ASSOCIATION LTD#135,27/05/2016,"4,744.90",73373-RESIDENTIAL & NURSING CARE PLACEMENTS,LD COMMISSIONING,Third Party Payments,Revenue
Walsall Council,http://opendatacommunities.org/id/metropolitan-district-council/walsall,WC68-76,31/05/2016,Social Care & Inclusion,ACCORD HOUSING ASSOCIATION LTD#135,27/05/2016,"4,744.90",73373-RESIDENTIAL & NURSING CARE PLACEMENTS,LD COMMISSIONING,Third Party Payments,Revenue
Walsall Council,http://opendatacommunities.org/id/metropolitan-district-council/walsall,WC68-77,31/05/2016,Social Care & Inclusion,ACCORD HOUSING ASSOCIATION LTD#135,27/05/2016,"4,744.90",73373-RESIDENTIAL & NURSING CARE PLACEMENTS,LD COMMISSIONING,Third Party Payments,Revenue
Walsall Council,http://opendatacommunities.org/id/metropolitan-district-council/walsall,WC68-78,31/05/2016,Social Care & Inclusion,ACCORD HOUSING ASSOCIATION LTD#135,10/05/2016,"6,408.73",73373-RESIDENTIAL & NURSING CARE PLACEMENTS,LD COMMISSIONING,Third Party Payments,Revenue
Walsall Council,http://opendatacommunities.org/id/metropolitan-district-council/walsall,WC68-79,31/05/2016,Social Care & Inclusion,ACCORD HOUSING ASSOCIATION LTD#135,10/05/2016,"6,408.73",73373-RESIDENTIAL & NURSING CARE PLACEMENTS,LD COMMISSIONING,Third Party Payments,Revenue
Walsall Council,http://opendatacommunities.org/id/metropolitan-district-council/walsall,WC68-80,31/05/2016,Social Care & Inclusion,ACCORD HOUSING ASSOCIATION LTD#135,10/05/2016,"6,408.73",73373-RESIDENTIAL & NURSING CARE PLACEMENTS,LD COMMISSIONING,Third Party Payments,Revenue
Walsall Council,http://opendatacommunities.org/id/metropolitan-district-council/walsall,WC68-81,31/05/2016,Social Care & Inclusion,ACCORD HOUSING ASSOCIATION LTD#135,27/05/2016,"6,622.35",73373-RESIDENTIAL & NURSING CARE PLACEMENTS,LD COMMISSIONING,Third Party Payments,Revenue
Walsall Council,http://opendatacommunities.org/id/metropolitan-district-council/walsall,WC68-82,31/05/2016,Social Care & Inclusion,ACCORD HOUSING ASSOCIATION LTD#135,27/05/2016,"6,622.35",73373-RESIDENTIAL & NURSING CARE PLACEMENTS,LD COMMISSIONING,Third Party Payments,Revenue
Walsall Council,http://opendatacommunities.org/id/metropolitan-district-council/walsall,WC68-83,31/05/2016,Social Care & Inclusion,ACCORD HOUSING ASSOCIATION LTD#135,27/05/2016,"6,622.35",73373-RESIDENTIAL & NURSING CARE PLACEMENTS,LD COMMISSIONING,Third Party Payments,Revenue
Walsall Council,http://opendatacommunities.org/id/metropolitan-district-council/walsall,WC68-84,31/05/2016,Social Care & Inclusion,ACCORD HOUSING ASSOCIATION LTD#135,25/05/2016,"10,213.11",73372-DOMICILIARY CARE,OP COMMISSIONING,Third Party Payments,Revenue
Walsall Council,http://opendatacommunities.org/id/metropolitan-district-council/walsall,WC68-85,31/05/2016,Social Care & Inclusion,ACCORD HOUSING ASSOCIATION LTD#135,09/05/2016,"11,164.00",73365-BLOCK GROSS-SUPPORTING PEOPLE,EXTERNAL SP,Third Party Payments,Revenue
Walsall Council,http://opendatacommunities.org/id/metropolitan-district-council/walsall,WC68-86,31/05/2016,Social Care & Inclusion,ACCORD HOUSING ASSOCIATION LTD#135,25/05/2016,"27,599.35",73372-DOMICILIARY CARE,OP COMMISSIONING,Third Party Payments,Revenue
Walsall Council,http://opendatacommunities.org/id/metropolitan-district-council/walsall,WC68-87,31/05/2016,Social Care & Inclusion,ACCORD HOUSING ASSOCIATION LTD#135,09/05/2016,"29,330.75",73365-BLOCK GROSS-SUPPORTING PEOPLE,EXTERNAL SP,Third Party Payments,Revenue
Walsall Council,http://opendatacommunities.org/id/metropolitan-district-council/walsall,WC68-88,31/05/2016,Economy & Environment,ACCORD HOUSING ASSOCIATION LTD#135,23/05/2016,"184,735.80",66500-GRANTS TO OTHER ORGS,CITY DEAL WELFARE PILOT,Third Party Payments,Revenue
Walsall Council,http://opendatacommunities.org/id/metropolitan-district-council/walsall,WC68-89,31/05/2016,Social Care & Inclusion,ACE CARE AGENCY,10/05/2016,607.05,73322-LEARNING DISABILITIES-RESPITE-NURSING-UNDER 65,MH COMMISSIONING,Third Party Payments,Revenue
Walsall Council,http://opendatacommunities.org/id/metropolitan-district-council/walsall,WC68-90,31/05/2016,Social Care & Inclusion,ACE CARE AGENCY,10/05/2016,"1,153.56",73372-DOMICILIARY CARE,OP COMMISSIONING,Third Party Payments,Revenue
Walsall Council,http://opendatacommunities.org/id/metropolitan-district-council/walsall,WC68-91,31/05/2016,Childrens,ACE RADIO CARS,11/05/2016,"1,366.68",52000-WITH DRIVER-HIRE OF VEHICLES,SCHOOL TRANSPORT,Transport,Revenue
Walsall Council,http://opendatacommunities.org/id/metropolitan-district-council/walsall,WC68-92,31/05/2016,Social Care & Inclusion,ACEPAY LTD (COTTAGE NUR HOME),25/05/2016,"1,493.24",73373-RESIDENTIAL & NURSING CARE PLACEMENTS,OP COMMISSIONING,Third Party Payments,Revenue
Walsall Council,http://opendatacommunities.org/id/metropolitan-district-council/walsall,WC68-93,31/05/2016,Social Care & Inclusion,ACEPAY LTD (COTTAGE NUR HOME),17/05/2016,"1,546.57",73373-RESIDENTIAL & NURSING CARE PLACEMENTS,OP COMMISSIONING,Third Party Payments,Revenue
Walsall Council,http://opendatacommunities.org/id/metropolitan-district-council/walsall,WC68-94,31/05/2016,Social Care & Inclusion,ACEPAY LTD (COTTAGE NUR HOME),04/05/2016,"1,975.60",73373-RESIDENTIAL & NURSING CARE PLACEMENTS,OP COMMISSIONING,Third Party Payments,Revenue
Walsall Council,http://opendatacommunities.org/id/metropolitan-district-council/walsall,WC68-95,31/05/2016,Social Care & Inclusion,ACEPAY LTD (COTTAGE NUR HOME),04/05/2016,"1,975.60",73373-RESIDENTIAL & NURSING CARE PLACEMENTS,OP COMMISSIONING,Third Party Payments,Revenue
Walsall Council,http://opendatacommunities.org/id/metropolitan-district-council/walsall,WC68-96,31/05/2016,Social Care & Inclusion,ACEPAY LTD (COTTAGE NUR HOME),04/05/2016,"1,975.60",73373-RESIDENTIAL & NURSING CARE PLACEMENTS,OP COMMISSIONING,Third Party Payments,Revenue
Walsall Council,http://opendatacommunities.org/id/metropolitan-district-council/walsall,WC68-97,31/05/2016,Social Care & Inclusion,ACEPAY LTD (COTTAGE NUR HOME),25/05/2016,"1,975.60",73373-RESIDENTIAL & NURSING CARE PLACEMENTS,OP COMMISSIONING,Third Party Payments,Revenue
Walsall Council,http://opendatacommunities.org/id/metropolitan-district-council/walsall,WC68-98,31/05/2016,Social Care & Inclusion,ACEPAY LTD (COTTAGE NUR HOME),25/05/2016,"1,975.60",73373-RESIDENTIAL & NURSING CARE PLACEMENTS,OP COMMISSIONING,Third Party Payments,Revenue
Walsall Council,http://opendatacommunities.org/id/metropolitan-district-council/walsall,WC68-99,31/05/2016,Social Care & Inclusion,ACEPAY LTD (COTTAGE NUR HOME),25/05/2016,"1,975.60",73373-RESIDENTIAL & NURSING CARE PLACEMENTS,OP COMMISSIONING,Third Party Payments,Revenue
Walsall Council,http://opendatacommunities.org/id/metropolitan-district-council/walsall,WC68-100,31/05/2016,Social Care & Inclusion,ACEPAY LTD (COTTAGE NUR HOME),04/05/2016,"2,018.20",73373-RESIDENTIAL & NURSING CARE PLACEMENTS,OP COMMISSIONING,Third Party Payments,Revenue
Walsall Council,http://opendatacommunities.org/id/metropolitan-district-council/walsall,WC68-101,31/05/2016,Social Care & Inclusion,ACEPAY LTD (COTTAGE NUR HOME),04/05/2016,"2,018.20",73373-RESIDENTIAL & NURSING CARE PLACEMENTS,OP COMMISSIONING,Third Party Payments,Revenue
Walsall Council,http://opendatacommunities.org/id/metropolitan-district-council/walsall,WC68-102,31/05/2016,Social Care & Inclusion,ACEPAY LTD (COTTAGE NUR HOME),25/05/2016,"2,018.20",73373-RESIDENTIAL & NURSING CARE PLACEMENTS,OP COMMISSIONING,Third Party Payments,Revenue
Walsall Council,http://opendatacommunities.org/id/metropolitan-district-council/walsall,WC68-103,31/05/2016,Social Care & Inclusion,ACEPAY LTD (COTTAGE NUR HOME),25/05/2016,"2,018.20",73373-RESIDENTIAL & NURSING CARE PLACEMENTS,OP COMMISSIONING,Third Party Payments,Revenue
Walsall Council,http://opendatacommunities.org/id/metropolitan-district-council/walsall,WC68-104,31/05/2016,Social Care & Inclusion,ACEPAY LTD (COTTAGE NUR HOME),04/05/2016,"2,018.88",73373-RESIDENTIAL & NURSING CARE PLACEMENTS,OP COMMISSIONING,Third Party Payments,Revenue
Walsall Council,http://opendatacommunities.org/id/metropolitan-district-council/walsall,WC68-105,31/05/2016,Social Care & Inclusion,ACEPAY LTD (COTTAGE NUR HOME),17/05/2016,"3,466.45",73373-RESIDENTIAL & NURSING CARE PLACEMENTS,OP COMMISSIONING,Third Party Payments,Revenue
Walsall Council,http://opendatacommunities.org/id/metropolitan-district-council/walsall,WC68-106,31/05/2016,Childrens,ACORN CARE & EDUCATION LTD (SALES),18/05/2016,"7,302.03",66502-TOP UP FUNDING -GRANTS TO SCHOOLS,INDEPENDENT PROVIDERS - SPECIAL & AP,Third Party Payments,Revenue
Walsall Council,http://opendatacommunities.org/id/metropolitan-district-council/walsall,WC68-107,31/05/2016,Childrens,ACORN CARE & EDUCATION LTD (SALES),17/05/2016,"12,650.00",66502-TOP UP FUNDING -GRANTS TO SCHOOLS,INDEPENDENT PROVIDERS - SPECIAL & AP,Third Party Payments,Revenue
Walsall Council,http://opendatacommunities.org/id/metropolitan-district-council/walsall,WC68-108,31/05/2016,Social Care & Inclusion,ACORN CARE LTD,04/05/2016,"14,684.70",73373-RESIDENTIAL & NURSING CARE PLACEMENTS,LD COMMISSIONING,Third Party Payments,Revenue
Walsall Council,http://opendatacommunities.org/id/metropolitan-district-council/walsall,WC68-109,31/05/2016,Social Care & Inclusion,ACORN CARE LTD,27/05/2016,"15,174.19",73373-RESIDENTIAL & NURSING CARE PLACEMENTS,LD COMMISSIONING,Third Party Payments,Revenue
Walsall Council,http://opendatacommunities.org/id/metropolitan-district-council/walsall,WC68-110,31/05/2016,Childrens,ACORN FOSTERING SERVICES LTD,23/05/2016,663.64,76000-TRANSFER PAYMENTS - SOCIAL SERVICES CLIENTS,TRANSITION AND LEAVING CARE,Transfer Payments,Revenue
Walsall Council,http://opendatacommunities.org/id/metropolitan-district-council/walsall,WC68-111,31/05/2016,Social Care & Inclusion,ACORN REST HOME,10/05/2016,"1,493.24",73373-RESIDENTIAL & NURSING CARE PLACEMENTS,OP COMMISSIONING,Third Party Payments,Revenue
Walsall Council,http://opendatacommunities.org/id/metropolitan-district-council/walsall,WC68-112,31/05/2016,Childrens,ACORNS CHILDRENS HOSPICE TRUST,16/05/2016,750,63000-PROFESSIONAL FEES AND SERVICES,DIRECTLY COMMISSIONED NURSING SERVICES,Supplies & Services,Revenue
Walsall Council,http://opendatacommunities.org/id/metropolitan-district-council/walsall,WC68-113,31/05/2016,Economy & Environment,ACTION DIGITAL MEDIA LTD,05/05/2016,271.25,62000-EXTERNAL PRINTING SERVICES,NAG - TEMPORARY EXHIBITIONS,Supplies & Services,Revenue
Walsall Council,http://opendatacommunities.org/id/metropolitan-district-council/walsall,WC68-114,31/05/2016,Holding Accounts,ACTIVE LEGAL,20/05/2016,360,67001-MISC INSURANCES - PAYMENT OF CLAIMS,PUBLIC LIABILITY,Supplies & Services,Revenue
Walsall Council,http://opendatacommunities.org/id/metropolitan-district-council/walsall,WC68-115,31/05/2016,Change and Governance,ADA BUILDERS & JOINERS,01/05/2016,"17,121.24",01045-PRIVATE GRANTS,CFR 826 DISABLED FACILITIES GRANTS (SOCIAL SERVICES),Capital,Capital
Walsall Council,http://opendatacommunities.org/id/metropolitan-district-council/walsall,WC68-116,31/05/2016,Childrens,REDACTED,09/05/2016,487.6,76422-DIRECT PAYMENTS TO SOCIAL SERVICES CLIENTS,FAMILY SUPPORT - DIRECT PAYMENTS,Transfer Payments,Revenue
Walsall Council,http://opendatacommunities.org/id/metropolitan-district-council/walsall,WC68-117,31/05/2016,Social Care & Inclusion,REDACTED,09/05/2016,417.48,76422-DIRECT PAYMENTS TO SOCIAL SERVICES CLIENTS,LD COMMISSIONING,Transfer Payments,Revenue
Walsall Council,http://opendatacommunities.org/id/metropolitan-district-council/walsall,WC68-118,31/05/2016,Social Care & Inclusion,REDACTED,09/05/2016,860,76422-DIRECT PAYMENTS TO SOCIAL SERVICES CLIENTS,OP COMMISSIONING,Transfer Payments,Revenue
Walsall Council,http://opendatacommunities.org/id/metropolitan-district-council/walsall,WC68-119,31/05/2016,Change and Governance,ADMIRAL SELF STORAGE LTD,26/05/2016,419.32,63000-PROFESSIONAL FEES AND SERVICES,FINANCE ADMIN,Supplies & Services,Revenue
Walsall Council,http://opendatacommunities.org/id/metropolitan-district-council/walsall,WC68-120,31/05/2016,Social Care & Inclusion,ADMIRAL SELF STORAGE LTD,18/05/2016,783.9,60514-MATERIALS TO STORES,SC & I REVIEWING TEAM,Supplies & Services,Revenue
Walsall Council,http://opendatacommunities.org/id/metropolitan-district-council/walsall,WC68-121,31/05/2016,Childrens,REDACTED,09/05/2016,694.24,74006-HOLIDAY/CHRISTMAS ALLOWANCE-FOSTER CARERS-OTH AGENCY PROVISION,INTERNAL FOSTER CARE PROVISION,Third Party Payments,Revenue
Walsall Council,http://opendatacommunities.org/id/metropolitan-district-council/walsall,WC68-122,31/05/2016,Social Care & Inclusion,ADVANCE HEALTH CARE (UK) LTD,13/05/2016,"1,170.00",73025-PROFESSIONAL SERVICES-PRIV CONTRACTOR & OTHER AGENCIES,COMMUNITY INTERMEDIATE CARE,Third Party Payments,Revenue
Walsall Council,http://opendatacommunities.org/id/metropolitan-district-council/walsall,WC68-123,31/05/2016,Social Care & Inclusion,ADVANCE HEALTH CARE (UK) LTD,01/05/2016,"1,482.00",73025-PROFESSIONAL SERVICES-PRIV CONTRACTOR & OTHER AGENCIES,COMMUNITY INTERMEDIATE CARE,Third Party Payments,Revenue
Walsall Council,http://opendatacommunities.org/id/metropolitan-district-council/walsall,WC68-124,31/05/2016,Social Care & Inclusion,ADVANCE HEALTH CARE (UK) LTD,03/05/2016,"1,638.00",73025-PROFESSIONAL SERVICES-PRIV CONTRACTOR & OTHER AGENCIES,COMMUNITY INTERMEDIATE CARE,Third Party Payments,Revenue
Walsall Council,http://opendatacommunities.org/id/metropolitan-district-council/walsall,WC68-125,31/05/2016,Social Care & Inclusion,ADVANCE HEALTH CARE (UK) LTD,01/05/2016,"2,132.03",73025-PROFESSIONAL SERVICES-PRIV CONTRACTOR & OTHER AGENCIES,COMMUNITY INTERMEDIATE CARE,Third Party Payments,Revenue
Walsall Council,http://opendatacommunities.org/id/metropolitan-district-council/walsall,WC68-126,31/05/2016,Social Care & Inclusion,ADVANCE HEALTH CARE (UK) LTD,01/05/2016,"2,151.68",73025-PROFESSIONAL SERVICES-PRIV CONTRACTOR & OTHER AGENCIES,COMMUNITY INTERMEDIATE CARE,Third Party Payments,Revenue
Walsall Council,http://opendatacommunities.org/id/metropolitan-district-council/walsall,WC68-127,31/05/2016,Social Care & Inclusion,ADVANCE HEALTH CARE (UK) LTD,03/05/2016,"3,762.98",73025-PROFESSIONAL SERVICES-PRIV CONTRACTOR & OTHER AGENCIES,COMMUNITY INTERMEDIATE CARE,Third Party Payments,Revenue
Walsall Council,http://opendatacommunities.org/id/metropolitan-district-council/walsall,WC68-128,31/05/2016,Social Care & Inclusion,ADVANCE HEALTH CARE (UK) LTD,03/05/2016,"3,930.00",73025-PROFESSIONAL SERVICES-PRIV CONTRACTOR & OTHER AGENCIES,COMMUNITY INTERMEDIATE CARE,Third Party Payments,Revenue
Walsall Council,http://opendatacommunities.org/id/metropolitan-district-council/walsall,WC68-129,31/05/2016,Social Care & Inclusion,ADVANCE HEALTH CARE (UK) LTD,13/05/2016,"3,930.00",73025-PROFESSIONAL SERVICES-PRIV CONTRACTOR & OTHER AGENCIES,COMMUNITY INTERMEDIATE CARE,Third Party Payments,Revenue
Walsall Council,http://opendatacommunities.org/id/metropolitan-district-council/walsall,WC68-130,31/05/2016,Social Care & Inclusion,ADVANCE HEALTH CARE (UK) LTD,23/05/2016,"3,930.00",73025-PROFESSIONAL SERVICES-PRIV CONTRACTOR & OTHER AGENCIES,COMMUNITY INTERMEDIATE CARE,Third Party Payments,Revenue
Walsall Council,http://opendatacommunities.org/id/metropolitan-district-council/walsall,WC68-131,31/05/2016,Social Care & Inclusion,ADVANCE HEALTH CARE (UK) LTD,23/05/2016,"3,930.00",73025-PROFESSIONAL SERVICES-PRIV CONTRACTOR & OTHER AGENCIES,COMMUNITY INTERMEDIATE CARE,Third Party Payments,Revenue
Walsall Council,http://opendatacommunities.org/id/metropolitan-district-council/walsall,WC68-132,31/05/2016,Social Care & Inclusion,ADVANCE HEALTH CARE (UK) LTD,25/05/2016,"29,318.86",73372-DOMICILIARY CARE,OP COMMISSIONING,Third Party Payments,Revenue
Walsall Council,http://opendatacommunities.org/id/metropolitan-district-council/walsall,WC68-133,31/05/2016,Economy & Environment,ADVANCE PHARMA LTD T/A PLECK PHARMACY,05/05/2016,351.73,71007-CONTRIBUTION TO PCT,PUBLIC HEALTH BUSINESS SUPPORT,Third Party Payments,Revenue
Walsall Council,http://opendatacommunities.org/id/metropolitan-district-council/walsall,WC68-134,31/05/2016,Economy & Environment,ADVANCE PHARMA LTD T/A PLECK PHARMACY,09/05/2016,365.15,71007-CONTRIBUTION TO PCT,PUBLIC HEALTH BUSINESS SUPPORT,Third Party Payments,Revenue
Walsall Council,http://opendatacommunities.org/id/metropolitan-district-council/walsall,WC68-135,31/05/2016,Social Care & Inclusion,ADVANCED HEALTH AND CARE,19/05/2016,286.22,30030-EXTERNAL TRAINING,COMMUNITY INTERMEDIATE CARE,Employees,Revenue
Walsall Council,http://opendatacommunities.org/id/metropolitan-district-council/walsall,WC68-136,31/05/2016,Social Care & Inclusion,ADVANCED HEALTH AND CARE,19/05/2016,"7,828.39",60010-LICENCES-EQUIPMENT,COMMUNITY INTERMEDIATE CARE,Supplies & Services,Revenue
Walsall Council,http://opendatacommunities.org/id/metropolitan-district-council/walsall,WC68-137,31/05/2016,Economy & Environment,AEBI SCHMIDT UK LIMITED,01/05/2016,274.16,60500-GENERAL MATERIALS,FLEET,Supplies & Services,Revenue
Walsall Council,http://opendatacommunities.org/id/metropolitan-district-council/walsall,WC68-138,31/05/2016,Social Care & Inclusion,AGE UK WALSALL,04/05/2016,"8,925.00",76423-DIRECT PAYMENTS SUPPORT,INDIVIDUAL BUDGET - SUPPORT,Transfer Payments,Revenue
Walsall Council,http://opendatacommunities.org/id/metropolitan-district-council/walsall,WC68-139,31/05/2016,Economy & Environment,AGROVISTA UK LTD,03/05/2016,251,60500-GENERAL MATERIALS,GROUNDS,Supplies & Services,Revenue
Walsall Council,http://opendatacommunities.org/id/metropolitan-district-council/walsall,WC68-140,31/05/2016,Social Care & Inclusion,REDACTED,09/05/2016,"1,882.00",76422-DIRECT PAYMENTS TO SOCIAL SERVICES CLIENTS,LD COMMISSIONING,Transfer Payments,Revenue
Walsall Council,http://opendatacommunities.org/id/metropolitan-district-council/walsall,WC68-141,31/05/2016,Change and Governance,AIREY CONSULTANCY SERVICES LTD,23/05/2016,"1,250.00",64500-PUBLICATIONS/ORGANISATIONS-SUBSCRIPTIONS,PROCESSING,Supplies & Services,Revenue
Walsall Council,http://opendatacommunities.org/id/metropolitan-district-council/walsall,WC68-142,31/05/2016,Social Care & Inclusion,REDACTED,09/05/2016,914.2,76422-DIRECT PAYMENTS TO SOCIAL SERVICES CLIENTS,OP COMMISSIONING,Transfer Payments,Revenue
Walsall Council,http://opendatacommunities.org/id/metropolitan-district-council/walsall,WC68-143,31/05/2016,Childrens,AJK TRAVEL,04/05/2016,"11,591.10",52000-WITH DRIVER-HIRE OF VEHICLES,SCHOOL TRANSPORT,Transport,Revenue
Walsall Council,http://opendatacommunities.org/id/metropolitan-district-council/walsall,WC68-144,31/05/2016,Childrens,ALAN CRITCHLEY ASSOCIATES,01/05/2016,"4,200.00",63102-CONSULTANTS FEES - CORPORATE,SAFEGUARDING BOARD,Supplies & Services,Revenue
Walsall Council,http://opendatacommunities.org/id/metropolitan-district-council/walsall,WC68-145,31/05/2016,Economy & Environment,ALBERT JAGGER LTD,24/05/2016,227.8,60514-MATERIALS TO STORES,FLEET PARTS STOCK ACCOUNT,Supplies & Services,Revenue
Walsall Council,http://opendatacommunities.org/id/metropolitan-district-council/walsall,WC68-146,31/05/2016,Childrens,ALDRIDGE SCHOOL A SCIENCE COLLEGE.,17/05/2016,480,77300-ISB-FORMULA ALLOCATION,ALDRIDGE SCHOOL SCIENCE COLLEGE (ACADEMY),Transfer Payments,Revenue
Walsall Council,http://opendatacommunities.org/id/metropolitan-district-council/walsall,WC68-147,31/05/2016,Childrens,ALDRIDGE SCHOOL A SCIENCE COLLEGE.,17/05/2016,650,77300-ISB-FORMULA ALLOCATION,ALDRIDGE SCHOOL SCIENCE COLLEGE (ACADEMY),Transfer Payments,Revenue
Walsall Council,http://opendatacommunities.org/id/metropolitan-district-council/walsall,WC68-148,31/05/2016,Childrens,ALDRIDGE SCHOOL A SCIENCE COLLEGE.,17/05/2016,650,77300-ISB-FORMULA ALLOCATION,ALDRIDGE SCHOOL SCIENCE COLLEGE (ACADEMY),Transfer Payments,Revenue
Walsall Council,http://opendatacommunities.org/id/metropolitan-district-council/walsall,WC68-149,31/05/2016,Childrens,ALDRIDGE SCHOOL A SCIENCE COLLEGE.,17/05/2016,660,77300-ISB-FORMULA ALLOCATION,ALDRIDGE SCHOOL SCIENCE COLLEGE (ACADEMY),Transfer Payments,Revenue
Walsall Council,http://opendatacommunities.org/id/metropolitan-district-council/walsall,WC68-150,31/05/2016,Childrens,ALDRIDGE SCHOOL A SCIENCE COLLEGE.,17/05/2016,680,77300-ISB-FORMULA ALLOCATION,ALDRIDGE SCHOOL SCIENCE COLLEGE (ACADEMY),Transfer Payments,Revenue
Walsall Council,http://opendatacommunities.org/id/metropolitan-district-council/walsall,WC68-151,31/05/2016,Childrens,ALDRIDGE SCHOOL A SCIENCE COLLEGE.,17/05/2016,700,77300-ISB-FORMULA ALLOCATION,ALDRIDGE SCHOOL SCIENCE COLLEGE (ACADEMY),Transfer Payments,Revenue
Walsall Council,http://opendatacommunities.org/id/metropolitan-district-council/walsall,WC68-152,31/05/2016,Childrens,ALDRIDGE SCHOOL A SCIENCE COLLEGE.,03/05/2016,"18,886.16",66502-TOP UP FUNDING -GRANTS TO SCHOOLS,ALDRIDGE SCHOOL SCIENCE COLLEGE (ACADEMY),Third Party Payments,Revenue
Walsall Council,http://opendatacommunities.org/id/metropolitan-district-council/walsall,WC68-153,31/05/2016,Economy & Environment,ALERE LTD,05/05/2016,528,63000-PROFESSIONAL FEES AND SERVICES,HEALTH CHECKS,Supplies & Services,Revenue
Walsall Council,http://opendatacommunities.org/id/metropolitan-district-council/walsall,WC68-154,31/05/2016,Social Care & Inclusion,REDACTED,09/05/2016,"1,204.00",76422-DIRECT PAYMENTS TO SOCIAL SERVICES CLIENTS,YADS COMMISSIONING,Transfer Payments,Revenue
Walsall Council,http://opendatacommunities.org/id/metropolitan-district-council/walsall,WC68-155,31/05/2016,Social Care & Inclusion,ALEXANDRA HOUSE CARE SERVICES LTD T/A STONEBRIDGE NURSING HOME,17/05/2016,"7,117.44",73373-RESIDENTIAL & NURSING CARE PLACEMENTS,OP COMMISSIONING,Third Party Payments,Revenue
Walsall Council,http://opendatacommunities.org/id/metropolitan-district-council/walsall,WC68-156,31/05/2016,Childrens,REDACTED,09/05/2016,582.66,76422-DIRECT PAYMENTS TO SOCIAL SERVICES CLIENTS,FAMILY SUPPORT - DIRECT PAYMENTS,Transfer Payments,Revenue
Walsall Council,http://opendatacommunities.org/id/metropolitan-district-council/walsall,WC68-157,31/05/2016,Social Care & Inclusion,REDACTED,09/05/2016,854,76422-DIRECT PAYMENTS TO SOCIAL SERVICES CLIENTS,YADS COMMISSIONING,Transfer Payments,Revenue
Walsall Council,http://opendatacommunities.org/id/metropolitan-district-council/walsall,WC68-158,31/05/2016,Social Care & Inclusion,REDACTED,09/05/2016,"3,720.00",76422-DIRECT PAYMENTS TO SOCIAL SERVICES CLIENTS,OP COMMISSIONING,Transfer Payments,Revenue
Walsall Council,http://opendatacommunities.org/id/metropolitan-district-council/walsall,WC68-159,31/05/2016,Social Care & Inclusion,REDACTED,09/05/2016,578,76422-DIRECT PAYMENTS TO SOCIAL SERVICES CLIENTS,OP COMMISSIONING,Transfer Payments,Revenue
Walsall Council,http://opendatacommunities.org/id/metropolitan-district-council/walsall,WC68-160,31/05/2016,Childrens,REDACTED,23/05/2016,564.45,62515-MISCELLANEOUS SUPPLIES,INTERNAL FOSTER CARE PROVISION,Supplies & Services,Revenue
Walsall Council,http://opendatacommunities.org/id/metropolitan-district-council/walsall,WC68-161,31/05/2016,Childrens,REDACTED,23/05/2016,"1,072.58",74006-HOLIDAY/CHRISTMAS ALLOWANCE-FOSTER CARERS-OTH AGENCY PROVISION,INTERNAL FOSTER CARE PROVISION,Third Party Payments,Revenue
Walsall Council,http://opendatacommunities.org/id/metropolitan-district-council/walsall,WC68-162,31/05/2016,Childrens,REDACTED,09/05/2016,552.96,74006-HOLIDAY/CHRISTMAS ALLOWANCE-FOSTER CARERS-OTH AGENCY PROVISION,INTERNAL FOSTER CARE PROVISION,Third Party Payments,Revenue
Walsall Council,http://opendatacommunities.org/id/metropolitan-district-council/walsall,WC68-163,31/05/2016,Economy & Environment,ALLSORTS OFFICE SUPPLIES LTD,20/05/2016,"3,360.00",60000-FURNITURE & EQUIPMENT,CENTRALISED STATIONERY,Supplies & Services,Revenue
Walsall Council,http://opendatacommunities.org/id/metropolitan-district-council/walsall,WC68-164,31/05/2016,Social Care & Inclusion,ALMA COURT,10/05/2016,"6,316.87",73373-RESIDENTIAL & NURSING CARE PLACEMENTS,MH COMMISSIONING,Third Party Payments,Revenue
Walsall Council,http://opendatacommunities.org/id/metropolitan-district-council/walsall,WC68-165,31/05/2016,Social Care & Inclusion,ALMA COURT,10/05/2016,"6,316.87",73373-RESIDENTIAL & NURSING CARE PLACEMENTS,OP COMMISSIONING,Third Party Payments,Revenue
Walsall Council,http://opendatacommunities.org/id/metropolitan-district-council/walsall,WC68-166,31/05/2016,Social Care & Inclusion,ALPHA HEALTH CARE LTD,25/05/2016,578.57,73373-RESIDENTIAL & NURSING CARE PLACEMENTS,MH COMMISSIONING,Third Party Payments,Revenue
Walsall Council,http://opendatacommunities.org/id/metropolitan-district-council/walsall,WC68-167,31/05/2016,Social Care & Inclusion,ALPHA HEALTH CARE LTD,25/05/2016,"1,649.80",73373-RESIDENTIAL & NURSING CARE PLACEMENTS,OP COMMISSIONING,Third Party Payments,Revenue
Walsall Council,http://opendatacommunities.org/id/metropolitan-district-council/walsall,WC68-168,31/05/2016,Social Care & Inclusion,ALPHA HEALTH CARE LTD,25/05/2016,"1,649.80",73373-RESIDENTIAL & NURSING CARE PLACEMENTS,OP COMMISSIONING,Third Party Payments,Revenue
Walsall Council,http://opendatacommunities.org/id/metropolitan-district-council/walsall,WC68-169,31/05/2016,Social Care & Inclusion,ALPHA HEALTH CARE LTD,25/05/2016,"1,649.80",73373-RESIDENTIAL & NURSING CARE PLACEMENTS,OP COMMISSIONING,Third Party Payments,Revenue
Walsall Council,http://opendatacommunities.org/id/metropolitan-district-council/walsall,WC68-170,31/05/2016,Social Care & Inclusion,ALPHA HEALTH CARE LTD,25/05/2016,"1,649.80",73373-RESIDENTIAL & NURSING CARE PLACEMENTS,OP COMMISSIONING,Third Party Payments,Revenue
Walsall Council,http://opendatacommunities.org/id/metropolitan-district-council/walsall,WC68-171,31/05/2016,Social Care & Inclusion,ALPHA HEALTH CARE LTD,25/05/2016,"1,649.80",73373-RESIDENTIAL & NURSING CARE PLACEMENTS,OP COMMISSIONING,Third Party Payments,Revenue
Walsall Council,http://opendatacommunities.org/id/metropolitan-district-council/walsall,WC68-172,31/05/2016,Social Care & Inclusion,ALPHA HEALTH CARE LTD,25/05/2016,"1,649.80",73373-RESIDENTIAL & NURSING CARE PLACEMENTS,OP COMMISSIONING,Third Party Payments,Revenue
Walsall Council,http://opendatacommunities.org/id/metropolitan-district-council/walsall,WC68-173,31/05/2016,Social Care & Inclusion,ALPHA HEALTH CARE LTD,25/05/2016,"1,649.80",73373-RESIDENTIAL & NURSING CARE PLACEMENTS,OP COMMISSIONING,Third Party Payments,Revenue
Walsall Council,http://opendatacommunities.org/id/metropolitan-district-council/walsall,WC68-174,31/05/2016,Social Care & Inclusion,ALPHA HEALTH CARE LTD,25/05/2016,"1,649.80",73373-RESIDENTIAL & NURSING CARE PLACEMENTS,MH COMMISSIONING,Third Party Payments,Revenue
Walsall Council,http://opendatacommunities.org/id/metropolitan-district-council/walsall,WC68-175,31/05/2016,Social Care & Inclusion,ALPHA HEALTH CARE LTD,25/05/2016,"1,649.80",73373-RESIDENTIAL & NURSING CARE PLACEMENTS,OP COMMISSIONING,Third Party Payments,Revenue
Walsall Council,http://opendatacommunities.org/id/metropolitan-district-council/walsall,WC68-176,31/05/2016,Social Care & Inclusion,ALPHA HEALTH CARE LTD,25/05/2016,"1,649.80",73373-RESIDENTIAL & NURSING CARE PLACEMENTS,OP COMMISSIONING,Third Party Payments,Revenue
Walsall Council,http://opendatacommunities.org/id/metropolitan-district-council/walsall,WC68-177,31/05/2016,Social Care & Inclusion,ALPHA HEALTH CARE LTD,25/05/2016,"1,649.80",73373-RESIDENTIAL & NURSING CARE PLACEMENTS,OP COMMISSIONING,Third Party Payments,Revenue
Walsall Council,http://opendatacommunities.org/id/metropolitan-district-council/walsall,WC68-178,31/05/2016,Social Care & Inclusion,ALPHA HEALTH CARE LTD,25/05/2016,"1,649.80",73373-RESIDENTIAL & NURSING CARE PLACEMENTS,OP COMMISSIONING,Third Party Payments,Revenue
Walsall Council,http://opendatacommunities.org/id/metropolitan-district-council/walsall,WC68-179,31/05/2016,Social Care & Inclusion,ALPHA HEALTH CARE LTD,25/05/2016,"1,649.80",73373-RESIDENTIAL & NURSING CARE PLACEMENTS,MH COMMISSIONING,Third Party Payments,Revenue
Walsall Council,http://opendatacommunities.org/id/metropolitan-district-council/walsall,WC68-180,31/05/2016,Social Care & Inclusion,ALPHA HEALTH CARE LTD,25/05/2016,"1,649.80",73373-RESIDENTIAL & NURSING CARE PLACEMENTS,OP COMMISSIONING,Third Party Payments,Revenue
Walsall Council,http://opendatacommunities.org/id/metropolitan-district-council/walsall,WC68-181,31/05/2016,Social Care & Inclusion,ALPHA HEALTH CARE LTD,25/05/2016,"1,649.80",73373-RESIDENTIAL & NURSING CARE PLACEMENTS,OP COMMISSIONING,Third Party Payments,Revenue
Walsall Council,http://opendatacommunities.org/id/metropolitan-district-council/walsall,WC68-182,31/05/2016,Social Care & Inclusion,ALPHA HEALTH CARE LTD,25/05/2016,"1,649.80",73373-RESIDENTIAL & NURSING CARE PLACEMENTS,OP COMMISSIONING,Third Party Payments,Revenue
Walsall Council,http://opendatacommunities.org/id/metropolitan-district-council/walsall,WC68-183,31/05/2016,Social Care & Inclusion,ALPHA HEALTH CARE LTD,25/05/2016,"1,649.80",73373-RESIDENTIAL & NURSING CARE PLACEMENTS,OP COMMISSIONING,Third Party Payments,Revenue
Walsall Council,http://opendatacommunities.org/id/metropolitan-district-council/walsall,WC68-184,31/05/2016,Social Care & Inclusion,ALPHA HEALTH CARE LTD,25/05/2016,"1,649.80",73373-RESIDENTIAL & NURSING CARE PLACEMENTS,OP COMMISSIONING,Third Party Payments,Revenue
Walsall Council,http://opendatacommunities.org/id/metropolitan-district-council/walsall,WC68-185,31/05/2016,Social Care & Inclusion,ALPHA HEALTH CARE LTD,25/05/2016,"1,649.80",73373-RESIDENTIAL & NURSING CARE PLACEMENTS,OP COMMISSIONING,Third Party Payments,Revenue
Walsall Council,http://opendatacommunities.org/id/metropolitan-district-council/walsall,WC68-186,31/05/2016,Social Care & Inclusion,ALPHA HEALTH CARE LTD,25/05/2016,"1,649.80",73373-RESIDENTIAL & NURSING CARE PLACEMENTS,OP COMMISSIONING,Third Party Payments,Revenue
Walsall Council,http://opendatacommunities.org/id/metropolitan-district-council/walsall,WC68-187,31/05/2016,Social Care & Inclusion,ALPHA HEALTH CARE LTD,25/05/2016,"1,649.80",73373-RESIDENTIAL & NURSING CARE PLACEMENTS,OP COMMISSIONING,Third Party Payments,Revenue
Walsall Council,http://opendatacommunities.org/id/metropolitan-district-council/walsall,WC68-188,31/05/2016,Social Care & Inclusion,ALPHA HEALTH CARE LTD,25/05/2016,"1,649.80",73373-RESIDENTIAL & NURSING CARE PLACEMENTS,MH COMMISSIONING,Third Party Payments,Revenue
Walsall Council,http://opendatacommunities.org/id/metropolitan-district-council/walsall,WC68-189,31/05/2016,Social Care & Inclusion,ALPHA HEALTH CARE LTD,25/05/2016,"1,649.80",73373-RESIDENTIAL & NURSING CARE PLACEMENTS,OP COMMISSIONING,Third Party Payments,Revenue
Walsall Council,http://opendatacommunities.org/id/metropolitan-district-council/walsall,WC68-190,31/05/2016,Social Care & Inclusion,ALPHA HEALTH CARE LTD,25/05/2016,"1,649.80",73373-RESIDENTIAL & NURSING CARE PLACEMENTS,OP COMMISSIONING,Third Party Payments,Revenue
Walsall Council,http://opendatacommunities.org/id/metropolitan-district-council/walsall,WC68-191,31/05/2016,Social Care & Inclusion,ALPHA HEALTH CARE LTD,25/05/2016,"1,649.80",73373-RESIDENTIAL & NURSING CARE PLACEMENTS,OP COMMISSIONING,Third Party Payments,Revenue
Walsall Council,http://opendatacommunities.org/id/metropolitan-district-council/walsall,WC68-192,31/05/2016,Social Care & Inclusion,ALPHA HEALTH CARE LTD,25/05/2016,"1,649.80",73373-RESIDENTIAL & NURSING CARE PLACEMENTS,OP COMMISSIONING,Third Party Payments,Revenue
Walsall Council,http://opendatacommunities.org/id/metropolitan-district-council/walsall,WC68-193,31/05/2016,Social Care & Inclusion,ALPHA HEALTH CARE LTD,25/05/2016,"1,649.80",73373-RESIDENTIAL & NURSING CARE PLACEMENTS,MH COMMISSIONING,Third Party Payments,Revenue
Walsall Council,http://opendatacommunities.org/id/metropolitan-district-council/walsall,WC68-194,31/05/2016,Social Care & Inclusion,ALPHA HEALTH CARE LTD,25/05/2016,"3,240.00",73373-RESIDENTIAL & NURSING CARE PLACEMENTS,OP COMMISSIONING,Third Party Payments,Revenue
Walsall Council,http://opendatacommunities.org/id/metropolitan-district-council/walsall,WC68-195,31/05/2016,Social Care & Inclusion,ALPHA HEALTH CARE LTD,25/05/2016,"5,846.80",73373-RESIDENTIAL & NURSING CARE PLACEMENTS,MH COMMISSIONING,Third Party Payments,Revenue
Walsall Council,http://opendatacommunities.org/id/metropolitan-district-council/walsall,WC68-196,31/05/2016,Social Care & Inclusion,ALPHA HEALTH CARE LTD,25/05/2016,"5,846.80",73373-RESIDENTIAL & NURSING CARE PLACEMENTS,MH COMMISSIONING,Third Party Payments,Revenue
Walsall Council,http://opendatacommunities.org/id/metropolitan-district-council/walsall,WC68-197,31/05/2016,Social Care & Inclusion,ALPHA HEALTH CARE LTD,25/05/2016,"5,997.60",73373-RESIDENTIAL & NURSING CARE PLACEMENTS,MH COMMISSIONING,Third Party Payments,Revenue
Walsall Council,http://opendatacommunities.org/id/metropolitan-district-council/walsall,WC68-198,31/05/2016,Social Care & Inclusion,ALPHA HEALTH CARE LTD,25/05/2016,"5,997.60",73373-RESIDENTIAL & NURSING CARE PLACEMENTS,MH COMMISSIONING,Third Party Payments,Revenue
Walsall Council,http://opendatacommunities.org/id/metropolitan-district-council/walsall,WC68-199,31/05/2016,Childrens,REDACTED,09/05/2016,"1,223.96",74006-HOLIDAY/CHRISTMAS ALLOWANCE-FOSTER CARERS-OTH AGENCY PROVISION,INTERNAL FOSTER CARE PROVISION,Third Party Payments,Revenue
Walsall Council,http://opendatacommunities.org/id/metropolitan-district-council/walsall,WC68-200,31/05/2016,Childrens,REDACTED,23/05/2016,540.2,62515-MISCELLANEOUS SUPPLIES,INTERNAL FOSTER CARE PROVISION,Supplies & Services,Revenue
Walsall Council,http://opendatacommunities.org/id/metropolitan-district-council/walsall,WC68-201,31/05/2016,Childrens,REDACTED,23/05/2016,650.92,74006-HOLIDAY/CHRISTMAS ALLOWANCE-FOSTER CARERS-OTH AGENCY PROVISION,INTERNAL FOSTER CARE PROVISION,Third Party Payments,Revenue
Walsall Council,http://opendatacommunities.org/id/metropolitan-district-council/walsall,WC68-202,31/05/2016,Childrens,REDACTED,09/05/2016,312.92,76422-DIRECT PAYMENTS TO SOCIAL SERVICES CLIENTS,FAMILY SUPPORT - DIRECT PAYMENTS,Transfer Payments,Revenue
Walsall Council,http://opendatacommunities.org/id/metropolitan-district-council/walsall,WC68-203,31/05/2016,Change and Governance,AMEY LG LIMITED,03/05/2016,255.24,60006-NEW-FURNITURE & EQUIPMENT,COMMUNITY SAFETY 2012/2013,Supplies & Services,Revenue
Walsall Council,http://opendatacommunities.org/id/metropolitan-district-council/walsall,WC68-204,31/05/2016,Economy & Environment,AMEY LG LIMITED,04/05/2016,408.36,73025-PROFESSIONAL SERVICES-PRIV CONTRACTOR & OTHER AGENCIES,SECTION 38 OF HIGHWAYS ACT - SUPERVISION,Third Party Payments,Revenue
Walsall Council,http://opendatacommunities.org/id/metropolitan-district-council/walsall,WC68-205,31/05/2016,Economy & Environment,AMEY LG LIMITED,04/05/2016,"3,522.00",62515-MISCELLANEOUS SUPPLIES,VASS IMPLEMENTATION,Supplies & Services,Revenue
Walsall Council,http://opendatacommunities.org/id/metropolitan-district-council/walsall,WC68-206,31/05/2016,Economy & Environment,AMEY LG LIMITED,04/05/2016,"3,572.00",01006-SITE WORKS MAIN CONTRACTORS,CFR 1085 COALPOOL LANE/GOSCOTE LANE,Capital,Capital
Walsall Council,http://opendatacommunities.org/id/metropolitan-district-council/walsall,WC68-207,31/05/2016,Economy & Environment,AMEY LG LIMITED,25/05/2016,"4,032.56",82028-MISC-ONE OFF ITEMS-INTERNAL RECHARGES,WASTE COLLECTIONS,Central,Revenue
Walsall Council,http://opendatacommunities.org/id/metropolitan-district-council/walsall,WC68-208,31/05/2016,Economy & Environment,AMEY LG LIMITED,11/05/2016,"6,732.19",73025-PROFESSIONAL SERVICES-PRIV CONTRACTOR & OTHER AGENCIES,TRAFFIC MANAGEMENT,Third Party Payments,Revenue
Walsall Council,http://opendatacommunities.org/id/metropolitan-district-council/walsall,WC68-209,31/05/2016,Childrens,AMG NURSING CARE SERVICES,18/05/2016,"1,110.72",63000-PROFESSIONAL FEES AND SERVICES,DIRECTLY COMMISSIONED NURSING SERVICES,Supplies & Services,Revenue
Walsall Council,http://opendatacommunities.org/id/metropolitan-district-council/walsall,WC68-210,31/05/2016,Childrens,AMG NURSING CARE SERVICES,24/05/2016,"1,110.72",63000-PROFESSIONAL FEES AND SERVICES,DIRECTLY COMMISSIONED NURSING SERVICES,Supplies & Services,Revenue
Walsall Council,http://opendatacommunities.org/id/metropolitan-district-council/walsall,WC68-211,31/05/2016,Social Care & Inclusion,REDACTED,09/05/2016,"1,133.44",76422-DIRECT PAYMENTS TO SOCIAL SERVICES CLIENTS,OP COMMISSIONING,Transfer Payments,Revenue
Walsall Council,http://opendatacommunities.org/id/metropolitan-district-council/walsall,WC68-212,31/05/2016,Childrens,REDACTED,09/05/2016,425.08,74006-HOLIDAY/CHRISTMAS ALLOWANCE-FOSTER CARERS-OTH AGENCY PROVISION,INTERNAL FOSTER CARE PROVISION,Third Party Payments,Revenue
Walsall Council,http://opendatacommunities.org/id/metropolitan-district-council/walsall,WC68-213,31/05/2016,Social Care & Inclusion,REDACTED,09/05/2016,544,76422-DIRECT PAYMENTS TO SOCIAL SERVICES CLIENTS,OP COMMISSIONING,Transfer Payments,Revenue
Walsall Council,http://opendatacommunities.org/id/metropolitan-district-council/walsall,WC68-214,31/05/2016,Social Care & Inclusion,REDACTED,09/05/2016,714,76422-DIRECT PAYMENTS TO SOCIAL SERVICES CLIENTS,OP COMMISSIONING,Transfer Payments,Revenue
Walsall Council,http://opendatacommunities.org/id/metropolitan-district-council/walsall,WC68-215,31/05/2016,Social Care & Inclusion,ANCHOR,17/05/2016,560.23,73373-RESIDENTIAL & NURSING CARE PLACEMENTS,OP COMMISSIONING,Third Party Payments,Revenue
Walsall Council,http://opendatacommunities.org/id/metropolitan-district-council/walsall,WC68-216,31/05/2016,Social Care & Inclusion,ANCHOR,17/05/2016,840.34,73373-RESIDENTIAL & NURSING CARE PLACEMENTS,OP COMMISSIONING,Third Party Payments,Revenue
Walsall Council,http://opendatacommunities.org/id/metropolitan-district-council/walsall,WC68-217,31/05/2016,Social Care & Inclusion,ANCHOR,27/05/2016,"1,400.57",73373-RESIDENTIAL & NURSING CARE PLACEMENTS,OP COMMISSIONING,Third Party Payments,Revenue
Walsall Council,http://opendatacommunities.org/id/metropolitan-district-council/walsall,WC68-218,31/05/2016,Social Care & Inclusion,ANCHOR,10/05/2016,"1,456.59",73373-RESIDENTIAL & NURSING CARE PLACEMENTS,OP COMMISSIONING,Third Party Payments,Revenue
Walsall Council,http://opendatacommunities.org/id/metropolitan-district-council/walsall,WC68-219,31/05/2016,Social Care & Inclusion,ANCHOR,10/05/2016,"1,493.24",73373-RESIDENTIAL & NURSING CARE PLACEMENTS,OP COMMISSIONING,Third Party Payments,Revenue
Walsall Council,http://opendatacommunities.org/id/metropolitan-district-council/walsall,WC68-220,31/05/2016,Social Care & Inclusion,ANCHOR,10/05/2016,"1,493.24",73373-RESIDENTIAL & NURSING CARE PLACEMENTS,OP COMMISSIONING,Third Party Payments,Revenue
Walsall Council,http://opendatacommunities.org/id/metropolitan-district-council/walsall,WC68-221,31/05/2016,Social Care & Inclusion,ANCHOR,10/05/2016,"1,568.61",73373-RESIDENTIAL & NURSING CARE PLACEMENTS,MH COMMISSIONING,Third Party Payments,Revenue
Walsall Council,http://opendatacommunities.org/id/metropolitan-district-council/walsall,WC68-222,31/05/2016,Social Care & Inclusion,ANCHOR,10/05/2016,"1,568.64",73373-RESIDENTIAL & NURSING CARE PLACEMENTS,OP COMMISSIONING,Third Party Payments,Revenue
Walsall Council,http://opendatacommunities.org/id/metropolitan-district-council/walsall,WC68-223,31/05/2016,Social Care & Inclusion,ANCHOR,10/05/2016,"1,568.64",73373-RESIDENTIAL & NURSING CARE PLACEMENTS,OP COMMISSIONING,Third Party Payments,Revenue
Walsall Council,http://opendatacommunities.org/id/metropolitan-district-council/walsall,WC68-224,31/05/2016,Social Care & Inclusion,ANCHOR,10/05/2016,"1,568.64",73373-RESIDENTIAL & NURSING CARE PLACEMENTS,OP COMMISSIONING,Third Party Payments,Revenue
Walsall Council,http://opendatacommunities.org/id/metropolitan-district-council/walsall,WC68-225,31/05/2016,Social Care & Inclusion,ANCHOR,10/05/2016,"1,568.64",73373-RESIDENTIAL & NURSING CARE PLACEMENTS,OP COMMISSIONING,Third Party Payments,Revenue
Walsall Council,http://opendatacommunities.org/id/metropolitan-district-council/walsall,WC68-226,31/05/2016,Social Care & Inclusion,ANCHOR,10/05/2016,"1,568.64",73373-RESIDENTIAL & NURSING CARE PLACEMENTS,OP COMMISSIONING,Third Party Payments,Revenue
Walsall Council,http://opendatacommunities.org/id/metropolitan-district-council/walsall,WC68-227,31/05/2016,Social Care & Inclusion,ANCHOR,10/05/2016,"1,568.64",73373-RESIDENTIAL & NURSING CARE PLACEMENTS,OP COMMISSIONING,Third Party Payments,Revenue
Walsall Council,http://opendatacommunities.org/id/metropolitan-district-council/walsall,WC68-228,31/05/2016,Social Care & Inclusion,ANCHOR,10/05/2016,"1,568.64",73373-RESIDENTIAL & NURSING CARE PLACEMENTS,OP COMMISSIONING,Third Party Payments,Revenue
Walsall Council,http://opendatacommunities.org/id/metropolitan-district-council/walsall,WC68-229,31/05/2016,Social Care & Inclusion,ANCHOR,10/05/2016,"1,568.64",73373-RESIDENTIAL & NURSING CARE PLACEMENTS,OP COMMISSIONING,Third Party Payments,Revenue
Walsall Council,http://opendatacommunities.org/id/metropolitan-district-council/walsall,WC68-230,31/05/2016,Social Care & Inclusion,ANCHOR,10/05/2016,"1,568.64",73373-RESIDENTIAL & NURSING CARE PLACEMENTS,OP COMMISSIONING,Third Party Payments,Revenue
Walsall Council,http://opendatacommunities.org/id/metropolitan-district-council/walsall,WC68-231,31/05/2016,Social Care & Inclusion,ANCHOR,10/05/2016,"1,568.64",73373-RESIDENTIAL & NURSING CARE PLACEMENTS,OP COMMISSIONING,Third Party Payments,Revenue
Walsall Council,http://opendatacommunities.org/id/metropolitan-district-council/walsall,WC68-232,31/05/2016,Social Care & Inclusion,ANCHOR,10/05/2016,"1,568.64",73373-RESIDENTIAL & NURSING CARE PLACEMENTS,OP COMMISSIONING,Third Party Payments,Revenue
Walsall Council,http://opendatacommunities.org/id/metropolitan-district-council/walsall,WC68-233,31/05/2016,Social Care & Inclusion,ANCHOR,27/05/2016,"1,568.64",73373-RESIDENTIAL & NURSING CARE PLACEMENTS,OP COMMISSIONING,Third Party Payments,Revenue
Walsall Council,http://opendatacommunities.org/id/metropolitan-district-council/walsall,WC68-234,31/05/2016,Social Care & Inclusion,ANCHOR,27/05/2016,"1,568.64",73373-RESIDENTIAL & NURSING CARE PLACEMENTS,OP COMMISSIONING,Third Party Payments,Revenue
Walsall Council,http://opendatacommunities.org/id/metropolitan-district-council/walsall,WC68-235,31/05/2016,Social Care & Inclusion,ANCHOR,27/05/2016,"1,568.64",73373-RESIDENTIAL & NURSING CARE PLACEMENTS,OP COMMISSIONING,Third Party Payments,Revenue
Walsall Council,http://opendatacommunities.org/id/metropolitan-district-council/walsall,WC68-236,31/05/2016,Social Care & Inclusion,ANCHOR,27/05/2016,"1,568.64",73373-RESIDENTIAL & NURSING CARE PLACEMENTS,OP COMMISSIONING,Third Party Payments,Revenue
Walsall Council,http://opendatacommunities.org/id/metropolitan-district-council/walsall,WC68-237,31/05/2016,Social Care & Inclusion,ANCHOR,27/05/2016,"1,568.64",73373-RESIDENTIAL & NURSING CARE PLACEMENTS,OP COMMISSIONING,Third Party Payments,Revenue
Walsall Council,http://opendatacommunities.org/id/metropolitan-district-council/walsall,WC68-238,31/05/2016,Social Care & Inclusion,ANCHOR,10/05/2016,"1,736.71",73373-RESIDENTIAL & NURSING CARE PLACEMENTS,OP COMMISSIONING,Third Party Payments,Revenue
Walsall Council,http://opendatacommunities.org/id/metropolitan-district-council/walsall,WC68-239,31/05/2016,Social Care & Inclusion,ANCHOR,10/05/2016,"2,801.14",73373-RESIDENTIAL & NURSING CARE PLACEMENTS,OP COMMISSIONING,Third Party Payments,Revenue
Walsall Council,http://opendatacommunities.org/id/metropolitan-district-council/walsall,WC68-240,31/05/2016,Social Care & Inclusion,ANCHOR,04/05/2016,"4,986.10",73373-RESIDENTIAL & NURSING CARE PLACEMENTS,OP COMMISSIONING,Third Party Payments,Revenue
Walsall Council,http://opendatacommunities.org/id/metropolitan-district-council/walsall,WC68-241,31/05/2016,Childrens,REDACTED,23/05/2016,650.92,74006-HOLIDAY/CHRISTMAS ALLOWANCE-FOSTER CARERS-OTH AGENCY PROVISION,INTERNAL FOSTER CARE PROVISION,Third Party Payments,Revenue
Walsall Council,http://opendatacommunities.org/id/metropolitan-district-council/walsall,WC68-242,31/05/2016,Childrens,REDACTED,23/05/2016,906.76,62515-MISCELLANEOUS SUPPLIES,INTERNAL FOSTER CARE PROVISION,Supplies & Services,Revenue
Walsall Council,http://opendatacommunities.org/id/metropolitan-district-council/walsall,WC68-243,31/05/2016,Social Care & Inclusion,REDACTED,09/05/2016,378,76422-DIRECT PAYMENTS TO SOCIAL SERVICES CLIENTS,YADS COMMISSIONING,Transfer Payments,Revenue
Walsall Council,http://opendatacommunities.org/id/metropolitan-district-council/walsall,WC68-244,31/05/2016,Childrens,REDACTED,09/05/2016,"2,193.53",74006-HOLIDAY/CHRISTMAS ALLOWANCE-FOSTER CARERS-OTH AGENCY PROVISION,INTERNAL FOSTER CARE PROVISION,Third Party Payments,Revenue
Walsall Council,http://opendatacommunities.org/id/metropolitan-district-council/walsall,WC68-245,31/05/2016,Childrens,REDACTED,09/05/2016,269.68,74006-HOLIDAY/CHRISTMAS ALLOWANCE-FOSTER CARERS-OTH AGENCY PROVISION,INTERNAL FOSTER CARE PROVISION,Third Party Payments,Revenue
Walsall Council,http://opendatacommunities.org/id/metropolitan-district-council/walsall,WC68-246,31/05/2016,Change and Governance,ANGLIA STAIRLIFTS LTD,06/05/2016,"4,795.00",01045-PRIVATE GRANTS,CFR 826 DISABLED FACILITIES GRANTS (SOCIAL SERVICES),Capital,Capital
Walsall Council,http://opendatacommunities.org/id/metropolitan-district-council/walsall,WC68-247,31/05/2016,Change and Governance,ANGLIA STAIRLIFTS LTD,23/05/2016,"4,965.00",01045-PRIVATE GRANTS,CFR 826 DISABLED FACILITIES GRANTS (SOCIAL SERVICES),Capital,Capital
Walsall Council,http://opendatacommunities.org/id/metropolitan-district-council/walsall,WC68-248,31/05/2016,Change and Governance,ANGLIA STAIRLIFTS LTD,13/05/2016,"5,065.00",01045-PRIVATE GRANTS,CFR 826 DISABLED FACILITIES GRANTS (SOCIAL SERVICES),Capital,Capital
Walsall Council,http://opendatacommunities.org/id/metropolitan-district-council/walsall,WC68-249,31/05/2016,Social Care & Inclusion,REDACTED,09/05/2016,344,76422-DIRECT PAYMENTS TO SOCIAL SERVICES CLIENTS,LD COMMISSIONING,Transfer Payments,Revenue
Walsall Council,http://opendatacommunities.org/id/metropolitan-district-council/walsall,WC68-250,31/05/2016,Childrens,REDACTED,23/05/2016,"1,044.56",62515-MISCELLANEOUS SUPPLIES,INTERNAL FOSTER CARE PROVISION,Supplies & Services,Revenue
Walsall Council,http://opendatacommunities.org/id/metropolitan-district-council/walsall,WC68-251,31/05/2016,Social Care & Inclusion,REDACTED,19/05/2016,306.95,73374-SUPPORTED & OTHER ACCOMMODATION,LD COMMISSIONING,Third Party Payments,Revenue
Walsall Council,http://opendatacommunities.org/id/metropolitan-district-council/walsall,WC68-252,31/05/2016,Social Care & Inclusion,REDACTED,19/05/2016,372.46,73374-SUPPORTED & OTHER ACCOMMODATION,LD COMMISSIONING,Third Party Payments,Revenue
Walsall Council,http://opendatacommunities.org/id/metropolitan-district-council/walsall,WC68-253,31/05/2016,Social Care & Inclusion,ANSON COURT RESIDENTIAL HOME,10/05/2016,"1,567.00",73373-RESIDENTIAL & NURSING CARE PLACEMENTS,OP COMMISSIONING,Third Party Payments,Revenue
Walsall Council,http://opendatacommunities.org/id/metropolitan-district-council/walsall,WC68-254,31/05/2016,Social Care & Inclusion,ANSON COURT RESIDENTIAL HOME,04/05/2016,"1,568.64",73373-RESIDENTIAL & NURSING CARE PLACEMENTS,MH COMMISSIONING,Third Party Payments,Revenue
Walsall Council,http://opendatacommunities.org/id/metropolitan-district-council/walsall,WC68-255,31/05/2016,Social Care & Inclusion,ANSON COURT RESIDENTIAL HOME,10/05/2016,"1,568.64",73373-RESIDENTIAL & NURSING CARE PLACEMENTS,OP COMMISSIONING,Third Party Payments,Revenue
Walsall Council,http://opendatacommunities.org/id/metropolitan-district-council/walsall,WC68-256,31/05/2016,Social Care & Inclusion,ANSON COURT RESIDENTIAL HOME,10/05/2016,"1,568.64",73373-RESIDENTIAL & NURSING CARE PLACEMENTS,OP COMMISSIONING,Third Party Payments,Revenue
Walsall Council,http://opendatacommunities.org/id/metropolitan-district-council/walsall,WC68-257,31/05/2016,Social Care & Inclusion,ANSON COURT RESIDENTIAL HOME,10/05/2016,"1,568.64",73373-RESIDENTIAL & NURSING CARE PLACEMENTS,OP COMMISSIONING,Third Party Payments,Revenue
Walsall Council,http://opendatacommunities.org/id/metropolitan-district-council/walsall,WC68-258,31/05/2016,Social Care & Inclusion,ANSON COURT RESIDENTIAL HOME,10/05/2016,"1,568.64",73373-RESIDENTIAL & NURSING CARE PLACEMENTS,OP COMMISSIONING,Third Party Payments,Revenue
Walsall Council,http://opendatacommunities.org/id/metropolitan-district-council/walsall,WC68-259,31/05/2016,Social Care & Inclusion,ANSON COURT RESIDENTIAL HOME,10/05/2016,"1,568.64",73373-RESIDENTIAL & NURSING CARE PLACEMENTS,MH COMMISSIONING,Third Party Payments,Revenue
Walsall Council,http://opendatacommunities.org/id/metropolitan-district-council/walsall,WC68-260,31/05/2016,Social Care & Inclusion,ANSON COURT RESIDENTIAL HOME,10/05/2016,"1,568.64",73373-RESIDENTIAL & NURSING CARE PLACEMENTS,MH COMMISSIONING,Third Party Payments,Revenue
Walsall Council,http://opendatacommunities.org/id/metropolitan-district-council/walsall,WC68-261,31/05/2016,Social Care & Inclusion,ANSON COURT RESIDENTIAL HOME,10/05/2016,"1,568.64",73373-RESIDENTIAL & NURSING CARE PLACEMENTS,MH COMMISSIONING,Third Party Payments,Revenue
Walsall Council,http://opendatacommunities.org/id/metropolitan-district-council/walsall,WC68-262,31/05/2016,Social Care & Inclusion,ANSON COURT RESIDENTIAL HOME,10/05/2016,"1,568.64",73373-RESIDENTIAL & NURSING CARE PLACEMENTS,OP COMMISSIONING,Third Party Payments,Revenue
Walsall Council,http://opendatacommunities.org/id/metropolitan-district-council/walsall,WC68-263,31/05/2016,Social Care & Inclusion,ANSON COURT RESIDENTIAL HOME,10/05/2016,"1,568.64",73373-RESIDENTIAL & NURSING CARE PLACEMENTS,MH COMMISSIONING,Third Party Payments,Revenue
Walsall Council,http://opendatacommunities.org/id/metropolitan-district-council/walsall,WC68-264,31/05/2016,Social Care & Inclusion,ANSON COURT RESIDENTIAL HOME,10/05/2016,"1,568.64",73373-RESIDENTIAL & NURSING CARE PLACEMENTS,MH COMMISSIONING,Third Party Payments,Revenue
Walsall Council,http://opendatacommunities.org/id/metropolitan-district-council/walsall,WC68-265,31/05/2016,Social Care & Inclusion,ANSON COURT RESIDENTIAL HOME,10/05/2016,"1,568.64",73373-RESIDENTIAL & NURSING CARE PLACEMENTS,OP COMMISSIONING,Third Party Payments,Revenue
Walsall Council,http://opendatacommunities.org/id/metropolitan-district-council/walsall,WC68-266,31/05/2016,Social Care & Inclusion,ANSON COURT RESIDENTIAL HOME,10/05/2016,"1,568.64",73373-RESIDENTIAL & NURSING CARE PLACEMENTS,OP COMMISSIONING,Third Party Payments,Revenue
Walsall Council,http://opendatacommunities.org/id/metropolitan-district-council/walsall,WC68-267,31/05/2016,Social Care & Inclusion,ANSON COURT RESIDENTIAL HOME,10/05/2016,"1,649.20",73373-RESIDENTIAL & NURSING CARE PLACEMENTS,MH COMMISSIONING,Third Party Payments,Revenue
Walsall Council,http://opendatacommunities.org/id/metropolitan-district-council/walsall,WC68-268,31/05/2016,Social Care & Inclusion,ANSON COURT RESIDENTIAL HOME,10/05/2016,"1,650.44",73373-RESIDENTIAL & NURSING CARE PLACEMENTS,OP COMMISSIONING,Third Party Payments,Revenue
Walsall Council,http://opendatacommunities.org/id/metropolitan-district-council/walsall,WC68-269,31/05/2016,Social Care & Inclusion,ANSON COURT RESIDENTIAL HOME,10/05/2016,"1,651.04",73373-RESIDENTIAL & NURSING CARE PLACEMENTS,OP COMMISSIONING,Third Party Payments,Revenue
Walsall Council,http://opendatacommunities.org/id/metropolitan-district-council/walsall,WC68-270,31/05/2016,Social Care & Inclusion,ANSON COURT RESIDENTIAL HOME,10/05/2016,"2,408.98",73373-RESIDENTIAL & NURSING CARE PLACEMENTS,OP COMMISSIONING,Third Party Payments,Revenue
Walsall Council,http://opendatacommunities.org/id/metropolitan-district-council/walsall,WC68-271,31/05/2016,Childrens,REDACTED,09/05/2016,"1,310.64",74006-HOLIDAY/CHRISTMAS ALLOWANCE-FOSTER CARERS-OTH AGENCY PROVISION,INTERNAL FOSTER CARE PROVISION,Third Party Payments,Revenue
Walsall Council,http://opendatacommunities.org/id/metropolitan-district-council/walsall,WC68-272,31/05/2016,Childrens,ANTI-PEST PEST CONTROL SERVICES,27/05/2016,225,73025-PROFESSIONAL SERVICES-PRIV CONTRACTOR & OTHER AGENCIES,BIRCHILLS CHILDREN CENTRE - PREMISES,Third Party Payments,Revenue
Walsall Council,http://opendatacommunities.org/id/metropolitan-district-council/walsall,WC68-273,31/05/2016,Childrens,REDACTED,09/05/2016,488.64,74006-HOLIDAY/CHRISTMAS ALLOWANCE-FOSTER CARERS-OTH AGENCY PROVISION,INTERNAL FOSTER CARE PROVISION,Third Party Payments,Revenue
Walsall Council,http://opendatacommunities.org/id/metropolitan-district-council/walsall,WC68-274,31/05/2016,Change and Governance,APCOA PARKING SERVICES (UK) LTD,11/05/2016,850,83900-CIVIC EVENTS-OTHER DEMOCRACY COSTS,MAYOR'S CIVIC AWARDS,Supplies & Services,Revenue
Walsall Council,http://opendatacommunities.org/id/metropolitan-district-council/walsall,WC68-275,31/05/2016,Change and Governance,APCOA PARKING SERVICES (UK) LTD,11/05/2016,"2,240.00",73025-PROFESSIONAL SERVICES-PRIV CONTRACTOR & OTHER AGENCIES,ELECTORAL ADMINISTRATION,Third Party Payments,Revenue
Walsall Council,http://opendatacommunities.org/id/metropolitan-district-council/walsall,WC68-276,31/05/2016,Economy & Environment,APCOA PARKING SERVICES (UK) LTD,23/05/2016,"47,525.71",73025-PROFESSIONAL SERVICES-PRIV CONTRACTOR & OTHER AGENCIES,PARKING SERVICES,Third Party Payments,Revenue
Walsall Council,http://opendatacommunities.org/id/metropolitan-district-council/walsall,WC68-277,31/05/2016,Social Care & Inclusion,APNA HOUSE LTD,17/05/2016,798.14,73373-RESIDENTIAL & NURSING CARE PLACEMENTS,OP COMMISSIONING,Third Party Payments,Revenue
Walsall Council,http://opendatacommunities.org/id/metropolitan-district-council/walsall,WC68-278,31/05/2016,Social Care & Inclusion,APNA HOUSE LTD,17/05/2016,"4,788.82",73373-RESIDENTIAL & NURSING CARE PLACEMENTS,OP COMMISSIONING,Third Party Payments,Revenue
Walsall Council,http://opendatacommunities.org/id/metropolitan-district-council/walsall,WC68-279,31/05/2016,Social Care & Inclusion,APNA HOUSE LTD,17/05/2016,"5,586.96",73373-RESIDENTIAL & NURSING CARE PLACEMENTS,OP COMMISSIONING,Third Party Payments,Revenue
Walsall Council,http://opendatacommunities.org/id/metropolitan-district-council/walsall,WC68-280,31/05/2016,Social Care & Inclusion,APNA HOUSE LTD,25/05/2016,"5,586.96",73373-RESIDENTIAL & NURSING CARE PLACEMENTS,OP COMMISSIONING,Third Party Payments,Revenue
Walsall Council,http://opendatacommunities.org/id/metropolitan-district-council/walsall,WC68-281,31/05/2016,Social Care & Inclusion,APNA HOUSE LTD,25/05/2016,"5,586.96",73373-RESIDENTIAL & NURSING CARE PLACEMENTS,OP COMMISSIONING,Third Party Payments,Revenue
Walsall Council,http://opendatacommunities.org/id/metropolitan-district-council/walsall,WC68-282,31/05/2016,Economy & Environment,AQUILA TRAINING SERVICES LTD,20/05/2016,"2,227.50",30030-EXTERNAL TRAINING,TRADING STANDARDS,Employees,Revenue
Walsall Council,http://opendatacommunities.org/id/metropolitan-district-council/walsall,WC68-283,31/05/2016,Social Care & Inclusion,ARBORETUM NURSING HOME.,17/05/2016,"-1,411.14",73373-RESIDENTIAL & NURSING CARE PLACEMENTS,OP COMMISSIONING,Third Party Payments,Revenue
Walsall Council,http://opendatacommunities.org/id/metropolitan-district-council/walsall,WC68-284,31/05/2016,Social Care & Inclusion,ARBORETUM NURSING HOME.,10/05/2016,"1,975.60",73373-RESIDENTIAL & NURSING CARE PLACEMENTS,OP COMMISSIONING,Third Party Payments,Revenue
Walsall Council,http://opendatacommunities.org/id/metropolitan-district-council/walsall,WC68-285,31/05/2016,Social Care & Inclusion,ARBORETUM NURSING HOME.,10/05/2016,"1,975.60",73373-RESIDENTIAL & NURSING CARE PLACEMENTS,OP COMMISSIONING,Third Party Payments,Revenue
Walsall Council,http://opendatacommunities.org/id/metropolitan-district-council/walsall,WC68-286,31/05/2016,Social Care & Inclusion,ARBORETUM NURSING HOME.,10/05/2016,"1,975.60",73373-RESIDENTIAL & NURSING CARE PLACEMENTS,OP COMMISSIONING,Third Party Payments,Revenue
Walsall Council,http://opendatacommunities.org/id/metropolitan-district-council/walsall,WC68-287,31/05/2016,Social Care & Inclusion,ARBORETUM NURSING HOME.,10/05/2016,"1,975.60",73373-RESIDENTIAL & NURSING CARE PLACEMENTS,OP COMMISSIONING,Third Party Payments,Revenue
Walsall Council,http://opendatacommunities.org/id/metropolitan-district-council/walsall,WC68-288,31/05/2016,Social Care & Inclusion,ARBORETUM NURSING HOME.,10/05/2016,"1,975.60",73373-RESIDENTIAL & NURSING CARE PLACEMENTS,OP COMMISSIONING,Third Party Payments,Revenue
Walsall Council,http://opendatacommunities.org/id/metropolitan-district-council/walsall,WC68-289,31/05/2016,Social Care & Inclusion,ARBORETUM NURSING HOME.,25/05/2016,"2,142.08",73373-RESIDENTIAL & NURSING CARE PLACEMENTS,OP COMMISSIONING,Third Party Payments,Revenue
Walsall Council,http://opendatacommunities.org/id/metropolitan-district-council/walsall,WC68-290,31/05/2016,Social Care & Inclusion,ARBORETUM NURSING HOME.,09/05/2016,"15,000.00",73019-PSE'S-PRIV CONTRACTOR FEES,TRANSITIONAL CARE SUPPORT TEAM,Third Party Payments,Revenue
Walsall Council,http://opendatacommunities.org/id/metropolitan-district-council/walsall,WC68-291,31/05/2016,Social Care & Inclusion,ARBORETUM NURSING HOME.,20/05/2016,"15,000.00",73019-PSE'S-PRIV CONTRACTOR FEES,TRANSITIONAL CARE SUPPORT TEAM,Third Party Payments,Revenue
Walsall Council,http://opendatacommunities.org/id/metropolitan-district-council/walsall,WC68-292,31/05/2016,Economy & Environment,ARCHWAY TCS LTD,20/05/2016,707.5,60537-VEHICLE WASH PLANT-MATERIALS,DEPOT,Supplies & Services,Revenue
Walsall Council,http://opendatacommunities.org/id/metropolitan-district-council/walsall,WC68-293,31/05/2016,Economy & Environment,ARCHWAY TCS LTD,04/05/2016,727.5,60537-VEHICLE WASH PLANT-MATERIALS,DEPOT,Supplies & Services,Revenue
Walsall Council,http://opendatacommunities.org/id/metropolitan-district-council/walsall,WC68-294,31/05/2016,Economy & Environment,ARCO GROUP,01/05/2016,376.44,61500-CLOTHING & LAUNDRY,RESOURCE MANAGEMENT,Supplies & Services,Revenue
Walsall Council,http://opendatacommunities.org/id/metropolitan-district-council/walsall,WC68-295,31/05/2016,Economy & Environment,ARTBEAT,12/05/2016,588.02,63000-PROFESSIONAL FEES AND SERVICES,FOREST ARTS CENTRE,Supplies & Services,Revenue
Walsall Council,http://opendatacommunities.org/id/metropolitan-district-council/walsall,WC68-296,31/05/2016,Childrens,ARTHUR M GRIFFITHS & SON LTD,17/05/2016,"178,625.28",01006-SITE WORKS MAIN CONTRACTORS,CFR 929 KING CHARLES PRIMARY SIGNIFICANT ENLARGEMENT,Capital,Capital
Walsall Council,http://opendatacommunities.org/id/metropolitan-district-council/walsall,WC68-297,31/05/2016,Economy & Environment,ASA AWARDS,23/05/2016,599.4,60500-GENERAL MATERIALS,DARLASTON LEISURE CENTRE,Supplies & Services,Revenue
Walsall Council,http://opendatacommunities.org/id/metropolitan-district-council/walsall,WC68-298,31/05/2016,Economy & Environment,ASDA PHARMACY,09/05/2016,283.2,63000-PROFESSIONAL FEES AND SERVICES,SEXUAL HEALTH,Supplies & Services,Revenue
Walsall Council,http://opendatacommunities.org/id/metropolitan-district-council/walsall,WC68-299,31/05/2016,Economy & Environment,ASDA PHARMACY,05/05/2016,340.65,71007-CONTRIBUTION TO PCT,PUBLIC HEALTH BUSINESS SUPPORT,Third Party Payments,Revenue
Walsall Council,http://opendatacommunities.org/id/metropolitan-district-council/walsall,WC68-300,31/05/2016,Economy & Environment,ASDA PHARMACY,09/05/2016,394.99,71007-CONTRIBUTION TO PCT,PUBLIC HEALTH BUSINESS SUPPORT,Third Party Payments,Revenue
Walsall Council,http://opendatacommunities.org/id/metropolitan-district-council/walsall,WC68-301,31/05/2016,Economy & Environment,ASDA PHARMACY,05/05/2016,407.1,63000-PROFESSIONAL FEES AND SERVICES,SEXUAL HEALTH,Supplies & Services,Revenue
Walsall Council,http://opendatacommunities.org/id/metropolitan-district-council/walsall,WC68-302,31/05/2016,Social Care & Inclusion,ASH GRANGE CARE HOME,17/05/2016,"-1,988.20",73373-RESIDENTIAL & NURSING CARE PLACEMENTS,OP COMMISSIONING,Third Party Payments,Revenue
Walsall Council,http://opendatacommunities.org/id/metropolitan-district-council/walsall,WC68-303,31/05/2016,Social Care & Inclusion,ASH GRANGE CARE HOME,25/05/2016,"-1,757.75",73373-RESIDENTIAL & NURSING CARE PLACEMENTS,OP COMMISSIONING,Third Party Payments,Revenue
Walsall Council,http://opendatacommunities.org/id/metropolitan-district-council/walsall,WC68-304,31/05/2016,Social Care & Inclusion,ASH GRANGE CARE HOME,17/05/2016,568.06,73373-RESIDENTIAL & NURSING CARE PLACEMENTS,OP COMMISSIONING,Third Party Payments,Revenue
Walsall Council,http://opendatacommunities.org/id/metropolitan-district-council/walsall,WC68-305,31/05/2016,Social Care & Inclusion,ASH GRANGE CARE HOME,04/05/2016,639.06,73373-RESIDENTIAL & NURSING CARE PLACEMENTS,OP COMMISSIONING,Third Party Payments,Revenue
Walsall Council,http://opendatacommunities.org/id/metropolitan-district-council/walsall,WC68-306,31/05/2016,Social Care & Inclusion,ASH GRANGE CARE HOME,17/05/2016,639.06,73373-RESIDENTIAL & NURSING CARE PLACEMENTS,OP COMMISSIONING,Third Party Payments,Revenue
Walsall Council,http://opendatacommunities.org/id/metropolitan-district-council/walsall,WC68-307,31/05/2016,Social Care & Inclusion,ASH GRANGE CARE HOME,17/05/2016,639.06,73373-RESIDENTIAL & NURSING CARE PLACEMENTS,OP COMMISSIONING,Third Party Payments,Revenue
Walsall Council,http://opendatacommunities.org/id/metropolitan-district-council/walsall,WC68-308,31/05/2016,Social Care & Inclusion,ASH GRANGE CARE HOME,17/05/2016,781.08,73373-RESIDENTIAL & NURSING CARE PLACEMENTS,OP COMMISSIONING,Third Party Payments,Revenue
Walsall Council,http://opendatacommunities.org/id/metropolitan-district-council/walsall,WC68-309,31/05/2016,Social Care & Inclusion,ASH GRANGE CARE HOME,17/05/2016,"1,349.14",73373-RESIDENTIAL & NURSING CARE PLACEMENTS,OP COMMISSIONING,Third Party Payments,Revenue
Walsall Council,http://opendatacommunities.org/id/metropolitan-district-council/walsall,WC68-310,31/05/2016,Social Care & Inclusion,ASH GRANGE CARE HOME,10/05/2016,"1,493.24",73373-RESIDENTIAL & NURSING CARE PLACEMENTS,OP COMMISSIONING,Third Party Payments,Revenue
Walsall Council,http://opendatacommunities.org/id/metropolitan-district-council/walsall,WC68-311,31/05/2016,Social Care & Inclusion,ASH GRANGE CARE HOME,10/05/2016,"1,493.24",73373-RESIDENTIAL & NURSING CARE PLACEMENTS,OP COMMISSIONING,Third Party Payments,Revenue
Walsall Council,http://opendatacommunities.org/id/metropolitan-district-council/walsall,WC68-312,31/05/2016,Social Care & Inclusion,ASH GRANGE CARE HOME,27/05/2016,"1,505.56",73373-RESIDENTIAL & NURSING CARE PLACEMENTS,OP COMMISSIONING,Third Party Payments,Revenue
Walsall Council,http://opendatacommunities.org/id/metropolitan-district-council/walsall,WC68-313,31/05/2016,Social Care & Inclusion,ASH GRANGE CARE HOME,17/05/2016,"1,846.19",73373-RESIDENTIAL & NURSING CARE PLACEMENTS,OP COMMISSIONING,Third Party Payments,Revenue
Walsall Council,http://opendatacommunities.org/id/metropolitan-district-council/walsall,WC68-314,31/05/2016,Social Care & Inclusion,ASH GRANGE CARE HOME,17/05/2016,"1,988.20",73373-RESIDENTIAL & NURSING CARE PLACEMENTS,OP COMMISSIONING,Third Party Payments,Revenue
Walsall Council,http://opendatacommunities.org/id/metropolitan-district-council/walsall,WC68-315,31/05/2016,Social Care & Inclusion,ASH GRANGE CARE HOME,25/05/2016,"1,988.20",73373-RESIDENTIAL & NURSING CARE PLACEMENTS,OP COMMISSIONING,Third Party Payments,Revenue
Walsall Council,http://opendatacommunities.org/id/metropolitan-district-council/walsall,WC68-316,31/05/2016,Social Care & Inclusion,ASH GRANGE CARE HOME,25/05/2016,"1,988.20",73373-RESIDENTIAL & NURSING CARE PLACEMENTS,OP COMMISSIONING,Third Party Payments,Revenue
Walsall Council,http://opendatacommunities.org/id/metropolitan-district-council/walsall,WC68-317,31/05/2016,Social Care & Inclusion,ASH GRANGE CARE HOME,25/05/2016,"1,988.20",73373-RESIDENTIAL & NURSING CARE PLACEMENTS,OP COMMISSIONING,Third Party Payments,Revenue
Walsall Council,http://opendatacommunities.org/id/metropolitan-district-council/walsall,WC68-318,31/05/2016,Social Care & Inclusion,ASH GRANGE CARE HOME,25/05/2016,"1,988.20",73373-RESIDENTIAL & NURSING CARE PLACEMENTS,OP COMMISSIONING,Third Party Payments,Revenue
Walsall Council,http://opendatacommunities.org/id/metropolitan-district-council/walsall,WC68-319,31/05/2016,Social Care & Inclusion,ASH GRANGE CARE HOME,25/05/2016,"1,988.20",73373-RESIDENTIAL & NURSING CARE PLACEMENTS,OP COMMISSIONING,Third Party Payments,Revenue
Walsall Council,http://opendatacommunities.org/id/metropolitan-district-council/walsall,WC68-320,31/05/2016,Social Care & Inclusion,ASH GRANGE CARE HOME,25/05/2016,"1,988.20",73373-RESIDENTIAL & NURSING CARE PLACEMENTS,OP COMMISSIONING,Third Party Payments,Revenue
Walsall Council,http://opendatacommunities.org/id/metropolitan-district-council/walsall,WC68-321,31/05/2016,Social Care & Inclusion,ASH GRANGE CARE HOME,25/05/2016,"1,988.20",73373-RESIDENTIAL & NURSING CARE PLACEMENTS,OP COMMISSIONING,Third Party Payments,Revenue
Walsall Council,http://opendatacommunities.org/id/metropolitan-district-council/walsall,WC68-322,31/05/2016,Social Care & Inclusion,ASH GRANGE CARE HOME,25/05/2016,"1,988.20",73373-RESIDENTIAL & NURSING CARE PLACEMENTS,OP COMMISSIONING,Third Party Payments,Revenue
Walsall Council,http://opendatacommunities.org/id/metropolitan-district-council/walsall,WC68-323,31/05/2016,Social Care & Inclusion,ASH GRANGE CARE HOME,25/05/2016,"1,988.20",73373-RESIDENTIAL & NURSING CARE PLACEMENTS,OP COMMISSIONING,Third Party Payments,Revenue
Walsall Council,http://opendatacommunities.org/id/metropolitan-district-council/walsall,WC68-324,31/05/2016,Social Care & Inclusion,ASH GRANGE CARE HOME,27/05/2016,"2,065.64",73373-RESIDENTIAL & NURSING CARE PLACEMENTS,OP COMMISSIONING,Third Party Payments,Revenue
Walsall Council,http://opendatacommunities.org/id/metropolitan-district-council/walsall,WC68-325,31/05/2016,Social Care & Inclusion,ASH GRANGE CARE HOME,25/05/2016,"2,485.25",73373-RESIDENTIAL & NURSING CARE PLACEMENTS,OP COMMISSIONING,Third Party Payments,Revenue
Walsall Council,http://opendatacommunities.org/id/metropolitan-district-council/walsall,WC68-326,31/05/2016,Social Care & Inclusion,ASH GRANGE CARE HOME,25/05/2016,"2,943.72",73373-RESIDENTIAL & NURSING CARE PLACEMENTS,OP COMMISSIONING,Third Party Payments,Revenue
Walsall Council,http://opendatacommunities.org/id/metropolitan-district-council/walsall,WC68-327,31/05/2016,Social Care & Inclusion,ASH GRANGE CARE HOME,17/05/2016,"14,700.00",73019-PSE'S-PRIV CONTRACTOR FEES,TRANSITIONAL CARE SUPPORT TEAM,Third Party Payments,Revenue
Walsall Council,http://opendatacommunities.org/id/metropolitan-district-council/walsall,WC68-328,31/05/2016,Social Care & Inclusion,ASHBOURNE LODGE,10/05/2016,"2,173.99",73373-RESIDENTIAL & NURSING CARE PLACEMENTS,OP COMMISSIONING,Third Party Payments,Revenue
Walsall Council,http://opendatacommunities.org/id/metropolitan-district-council/walsall,WC68-329,31/05/2016,Economy & Environment,ASKEWS AND HOLTS LIBRARY SERVICES LTD,01/05/2016,257.58,60501-LIBRARY BOOKS,LIBRARY STOCK AND PERFORMANCE,Supplies & Services,Revenue
Walsall Council,http://opendatacommunities.org/id/metropolitan-district-council/walsall,WC68-330,31/05/2016,Economy & Environment,ASKEWS AND HOLTS LIBRARY SERVICES LTD,23/05/2016,259.52,60501-LIBRARY BOOKS,LIBRARY STOCK AND PERFORMANCE,Supplies & Services,Revenue
Walsall Council,http://opendatacommunities.org/id/metropolitan-district-council/walsall,WC68-331,31/05/2016,Economy & Environment,ASKEWS AND HOLTS LIBRARY SERVICES LTD,04/05/2016,261.76,60501-LIBRARY BOOKS,LIBRARY STOCK AND PERFORMANCE,Supplies & Services,Revenue
Walsall Council,http://opendatacommunities.org/id/metropolitan-district-council/walsall,WC68-332,31/05/2016,Economy & Environment,ASKEWS AND HOLTS LIBRARY SERVICES LTD,01/05/2016,286.52,60501-LIBRARY BOOKS,LIBRARY STOCK AND PERFORMANCE,Supplies & Services,Revenue
Walsall Council,http://opendatacommunities.org/id/metropolitan-district-council/walsall,WC68-333,31/05/2016,Economy & Environment,ASKEWS AND HOLTS LIBRARY SERVICES LTD,25/05/2016,309.54,60501-LIBRARY BOOKS,LIBRARY STOCK AND PERFORMANCE,Supplies & Services,Revenue
Walsall Council,http://opendatacommunities.org/id/metropolitan-district-council/walsall,WC68-334,31/05/2016,Economy & Environment,ASKEWS AND HOLTS LIBRARY SERVICES LTD,04/05/2016,318.72,60501-LIBRARY BOOKS,LIBRARY STOCK AND PERFORMANCE,Supplies & Services,Revenue
Walsall Council,http://opendatacommunities.org/id/metropolitan-district-council/walsall,WC68-335,31/05/2016,Economy & Environment,ASKEWS AND HOLTS LIBRARY SERVICES LTD,19/05/2016,573.53,60501-LIBRARY BOOKS,LIBRARY STOCK AND PERFORMANCE,Supplies & Services,Revenue
Walsall Council,http://opendatacommunities.org/id/metropolitan-district-council/walsall,WC68-336,31/05/2016,Economy & Environment,ASKEWS AND HOLTS LIBRARY SERVICES LTD,01/05/2016,"2,790.00",64500-PUBLICATIONS/ORGANISATIONS-SUBSCRIPTIONS,LIBRARY STOCK AND PERFORMANCE,Supplies & Services,Revenue
Walsall Council,http://opendatacommunities.org/id/metropolitan-district-council/walsall,WC68-337,31/05/2016,Social Care & Inclusion,REDACTED,09/05/2016,493,76422-DIRECT PAYMENTS TO SOCIAL SERVICES CLIENTS,YADS COMMISSIONING,Transfer Payments,Revenue
Walsall Council,http://opendatacommunities.org/id/metropolitan-district-council/walsall,WC68-338,31/05/2016,Childrens,ASSOCIATION FOR REHABILITATION OF COMMUNICATION AND ORAL SKILLS (ARCOS),10/05/2016,337.5,63000-PROFESSIONAL FEES AND SERVICES,INDEPENDENT PROVIDERS - SPECIAL & AP,Supplies & Services,Revenue
Walsall Council,http://opendatacommunities.org/id/metropolitan-district-council/walsall,WC68-339,31/05/2016,Childrens,ASSOCIATION OF EDUCATIONAL PSYCHOLOGISTS,01/05/2016,700,31000-ADVERTISING STAFF VACANCIES,EDUCATIONAL PSYCHOLOGISTS,Employees,Revenue
Walsall Council,http://opendatacommunities.org/id/metropolitan-district-council/walsall,WC68-340,31/05/2016,Childrens,ASTON CHILDRENS CARE,01/05/2016,"8,342.74",74036-EXTERNAL RESIDENTIAL CARE-OTH AGENCY PROVISION,INDEPENDENT RESIDENTIAL HOMES,Third Party Payments,Revenue
Walsall Council,http://opendatacommunities.org/id/metropolitan-district-council/walsall,WC68-341,31/05/2016,Economy & Environment,ATHWAL NEWS LTD,12/05/2016,528.97,60501-LIBRARY BOOKS,LIBRARY STOCK AND PERFORMANCE,Supplies & Services,Revenue
Walsall Council,http://opendatacommunities.org/id/metropolitan-district-council/walsall,WC68-342,31/05/2016,Economy & Environment,ATHWAL NEWS LTD,01/05/2016,648.74,60501-LIBRARY BOOKS,LIBRARY STOCK AND PERFORMANCE,Supplies & Services,Revenue
Walsall Council,http://opendatacommunities.org/id/metropolitan-district-council/walsall,WC68-343,31/05/2016,Economy & Environment,ATKINS HIGHWAYS & TRANSPORTATION,20/05/2016,"3,378.02",01001-OTHER CONSULTANTS FEES,CFR 1072 LEX - GROWTH DEAL,Capital,Capital
Walsall Council,http://opendatacommunities.org/id/metropolitan-district-council/walsall,WC68-344,31/05/2016,Economy & Environment,AUGEAN TREATMENT LTD,23/05/2016,168.48,73029-HAZARDOUS WASTE REMOVAL/DISPOSAL-PRIV CONTRACTOR FEES,WASTE DISPOSAL - RESIDUAL,Third Party Payments,Revenue
Walsall Council,http://opendatacommunities.org/id/metropolitan-district-council/walsall,WC68-345,31/05/2016,Economy & Environment,AUGEAN TREATMENT LTD,23/05/2016,329.16,73039-LANDFILL TAX-PRIV CONTRACTOR FEES,WASTE DISPOSAL - RESIDUAL,Third Party Payments,Revenue
Walsall Council,http://opendatacommunities.org/id/metropolitan-district-council/walsall,WC68-346,31/05/2016,Change and Governance,AURORA GRAPHICS & DISPLAYS LTD,18/05/2016,41.1,62008-OUTWORK-PRINT ROOM,PRINT DIGITAL PRINT,Supplies & Services,Revenue
Walsall Council,http://opendatacommunities.org/id/metropolitan-district-council/walsall,WC68-347,31/05/2016,Change and Governance,AURORA GRAPHICS & DISPLAYS LTD,18/05/2016,393,62008-OUTWORK-PRINT ROOM,PRINTING SERVICES,Supplies & Services,Revenue
Walsall Council,http://opendatacommunities.org/id/metropolitan-district-council/walsall,WC68-348,31/05/2016,Change and Governance,AURORA GRAPHICS & DISPLAYS LTD,18/05/2016,689.04,62008-OUTWORK-PRINT ROOM,PRINTING SERVICES,Supplies & Services,Revenue
Walsall Council,http://opendatacommunities.org/id/metropolitan-district-council/walsall,WC68-349,31/05/2016,Social Care & Inclusion,AUTISM WEST MIDLANDS,10/05/2016,"7,237.75",73373-RESIDENTIAL & NURSING CARE PLACEMENTS,LD COMMISSIONING,Third Party Payments,Revenue
Walsall Council,http://opendatacommunities.org/id/metropolitan-district-council/walsall,WC68-350,31/05/2016,Social Care & Inclusion,AUTISM WEST MIDLANDS 001,10/05/2016,"4,838.06",73373-RESIDENTIAL & NURSING CARE PLACEMENTS,LD COMMISSIONING,Third Party Payments,Revenue
Walsall Council,http://opendatacommunities.org/id/metropolitan-district-council/walsall,WC68-351,31/05/2016,Economy & Environment,AVANTGARDE PHARMA LTD T/A AL-SHAFA PHARMACY,09/05/2016,467.31,71007-CONTRIBUTION TO PCT,PUBLIC HEALTH BUSINESS SUPPORT,Third Party Payments,Revenue
Walsall Council,http://opendatacommunities.org/id/metropolitan-district-council/walsall,WC68-352,31/05/2016,Social Care & Inclusion,REDACTED,09/05/2016,777,76422-DIRECT PAYMENTS TO SOCIAL SERVICES CLIENTS,OP COMMISSIONING,Transfer Payments,Revenue
Walsall Council,http://opendatacommunities.org/id/metropolitan-district-council/walsall,WC68-353,31/05/2016,Economy & Environment,AXIELL LIMITED,01/05/2016,"17,056.23",63800-COMPUTER EQUIPMENT AND SUPPLIES,LIBRARY DEVELOPMENT 1,Supplies & Services,Revenue
Walsall Council,http://opendatacommunities.org/id/metropolitan-district-council/walsall,WC68-354,31/05/2016,Childrens,REDACTED,09/05/2016,"1,284.00",76422-DIRECT PAYMENTS TO SOCIAL SERVICES CLIENTS,FAMILY SUPPORT - DIRECT PAYMENTS,Transfer Payments,Revenue
Walsall Council,http://opendatacommunities.org/id/metropolitan-district-council/walsall,WC68-355,31/05/2016,Social Care & Inclusion,REDACTED,09/05/2016,"2,652.00",76422-DIRECT PAYMENTS TO SOCIAL SERVICES CLIENTS,LD COMMISSIONING,Transfer Payments,Revenue
Walsall Council,http://opendatacommunities.org/id/metropolitan-district-council/walsall,WC68-356,31/05/2016,Childrens,REDACTED,23/05/2016,"1,000.00",60500-GENERAL MATERIALS,PRIMARY CONSULTATIVE GROUP,Supplies & Services,Revenue
Walsall Council,http://opendatacommunities.org/id/metropolitan-district-council/walsall,WC68-357,31/05/2016,Change and Governance,B E FURNITURE LTD T/A B E EVENTHIRE,13/05/2016,220.45,60009-LEASING/HIRE/RENTAL-EQUIPMENT,ELECTORAL ADMINISTRATION,Supplies & Services,Revenue
Walsall Council,http://opendatacommunities.org/id/metropolitan-district-council/walsall,WC68-358,31/05/2016,Change and Governance,B E FURNITURE LTD T/A B E EVENTHIRE,01/05/2016,472,60009-LEASING/HIRE/RENTAL-EQUIPMENT,ELECTORAL ADMINISTRATION,Supplies & Services,Revenue
Walsall Council,http://opendatacommunities.org/id/metropolitan-district-council/walsall,WC68-359,31/05/2016,Change and Governance,B E FURNITURE LTD T/A B E EVENTHIRE,13/05/2016,"1,263.25",60009-LEASING/HIRE/RENTAL-EQUIPMENT,ELECTORAL ADMINISTRATION,Supplies & Services,Revenue
Walsall Council,http://opendatacommunities.org/id/metropolitan-district-council/walsall,WC68-360,31/05/2016,Change and Governance,B E FURNITURE LTD T/A B E EVENTHIRE,13/05/2016,"3,793.95",60009-LEASING/HIRE/RENTAL-EQUIPMENT,ELECTORAL ADMINISTRATION,Supplies & Services,Revenue
Walsall Council,http://opendatacommunities.org/id/metropolitan-district-council/walsall,WC68-361,31/05/2016,Childrens,REDACTED,23/05/2016,906.76,62515-MISCELLANEOUS SUPPLIES,INTERNAL FOSTER CARE PROVISION,Supplies & Services,Revenue
Walsall Council,http://opendatacommunities.org/id/metropolitan-district-council/walsall,WC68-362,31/05/2016,Childrens,REDACTED,23/05/2016,"1,108.98",74006-HOLIDAY/CHRISTMAS ALLOWANCE-FOSTER CARERS-OTH AGENCY PROVISION,INTERNAL FOSTER CARE PROVISION,Third Party Payments,Revenue
Walsall Council,http://opendatacommunities.org/id/metropolitan-district-council/walsall,WC68-363,31/05/2016,Childrens,REDACTED,11/05/2016,464,76000-TRANSFER PAYMENTS - SOCIAL SERVICES CLIENTS,TRANSITION AND LEAVING CARE,Transfer Payments,Revenue
Walsall Council,http://opendatacommunities.org/id/metropolitan-district-council/walsall,WC68-364,31/05/2016,Childrens,REDACTED,25/05/2016,464,76000-TRANSFER PAYMENTS - SOCIAL SERVICES CLIENTS,TRANSITION AND LEAVING CARE,Transfer Payments,Revenue
Walsall Council,http://opendatacommunities.org/id/metropolitan-district-council/walsall,WC68-365,31/05/2016,Childrens,REDACTED,23/05/2016,906.76,62515-MISCELLANEOUS SUPPLIES,INTERNAL FOSTER CARE PROVISION,Supplies & Services,Revenue
Walsall Council,http://opendatacommunities.org/id/metropolitan-district-council/walsall,WC68-366,31/05/2016,Childrens,REDACTED,23/05/2016,985.76,74006-HOLIDAY/CHRISTMAS ALLOWANCE-FOSTER CARERS-OTH AGENCY PROVISION,INTERNAL FOSTER CARE PROVISION,Third Party Payments,Revenue
Walsall Council,http://opendatacommunities.org/id/metropolitan-district-council/walsall,WC68-367,31/05/2016,Social Care & Inclusion,REDACTED,09/05/2016,680,76422-DIRECT PAYMENTS TO SOCIAL SERVICES CLIENTS,MH COMMISSIONING,Transfer Payments,Revenue
Walsall Council,http://opendatacommunities.org/id/metropolitan-district-council/walsall,WC68-368,31/05/2016,Social Care & Inclusion,REDACTED,09/05/2016,"2,849.92",76422-DIRECT PAYMENTS TO SOCIAL SERVICES CLIENTS,LD COMMISSIONING,Transfer Payments,Revenue
Walsall Council,http://opendatacommunities.org/id/metropolitan-district-council/walsall,WC68-369,31/05/2016,Social Care & Inclusion,REDACTED,09/05/2016,850,76422-DIRECT PAYMENTS TO SOCIAL SERVICES CLIENTS,OP COMMISSIONING,Transfer Payments,Revenue
Walsall Council,http://opendatacommunities.org/id/metropolitan-district-council/walsall,WC68-370,31/05/2016,Social Care & Inclusion,REDACTED,09/05/2016,"1,046.50",76422-DIRECT PAYMENTS TO SOCIAL SERVICES CLIENTS,OP COMMISSIONING,Transfer Payments,Revenue
Walsall Council,http://opendatacommunities.org/id/metropolitan-district-council/walsall,WC68-371,31/05/2016,Social Care & Inclusion,REDACTED,09/05/2016,"1,582.86",76422-DIRECT PAYMENTS TO SOCIAL SERVICES CLIENTS,YADS COMMISSIONING,Transfer Payments,Revenue
Walsall Council,http://opendatacommunities.org/id/metropolitan-district-council/walsall,WC68-372,31/05/2016,Social Care & Inclusion,REDACTED,09/05/2016,"1,536.08",76422-DIRECT PAYMENTS TO SOCIAL SERVICES CLIENTS,YADS COMMISSIONING,Transfer Payments,Revenue
Walsall Council,http://opendatacommunities.org/id/metropolitan-district-council/walsall,WC68-373,31/05/2016,Social Care & Inclusion,REDACTED,09/05/2016,632.52,76422-DIRECT PAYMENTS TO SOCIAL SERVICES CLIENTS,OP COMMISSIONING,Transfer Payments,Revenue
Walsall Council,http://opendatacommunities.org/id/metropolitan-district-council/walsall,WC68-374,31/05/2016,Childrens,BARR BEACON SCHOOL TRUST,17/05/2016,540,77300-ISB-FORMULA ALLOCATION,BARR BEACON SCHOOL TRUST (ACADEMY),Transfer Payments,Revenue
Walsall Council,http://opendatacommunities.org/id/metropolitan-district-council/walsall,WC68-375,31/05/2016,Childrens,BARR BEACON SCHOOL TRUST,03/05/2016,"8,283.86",66502-TOP UP FUNDING -GRANTS TO SCHOOLS,BARR BEACON SCHOOL TRUST (ACADEMY),Third Party Payments,Revenue
Walsall Council,http://opendatacommunities.org/id/metropolitan-district-council/walsall,WC68-376,31/05/2016,Economy & Environment,BAT FABRICATIONS LTD,11/05/2016,580,60006-NEW-FURNITURE & EQUIPMENT,INFRASTRUCTURE MAINTENANCE,Supplies & Services,Revenue
Walsall Council,http://opendatacommunities.org/id/metropolitan-district-council/walsall,WC68-377,31/05/2016,Economy & Environment,BAT FABRICATIONS LTD,03/05/2016,780,01006-SITE WORKS MAIN CONTRACTORS,CFR 1050 WALSALL GREEN PATHWAYS,Capital,Capital
Walsall Council,http://opendatacommunities.org/id/metropolitan-district-council/walsall,WC68-378,31/05/2016,Economy & Environment,BAT FABRICATIONS LTD,26/05/2016,925,60008-MAINTENANCE-FURNITURE & EQUIPMENT,SECTION 106,Supplies & Services,Revenue
Walsall Council,http://opendatacommunities.org/id/metropolitan-district-council/walsall,WC68-379,31/05/2016,Childrens,BEADEN POWERLEC LIMITED,10/05/2016,"1,246.00",60006-NEW-FURNITURE & EQUIPMENT,CHILDRENS RESIDENTIAL SVCS,Supplies & Services,Revenue
Walsall Council,http://opendatacommunities.org/id/metropolitan-district-council/walsall,WC68-380,31/05/2016,Childrens,REDACTED,23/05/2016,"1,092.62",74006-HOLIDAY/CHRISTMAS ALLOWANCE-FOSTER CARERS-OTH AGENCY PROVISION,INTERNAL FOSTER CARE PROVISION,Third Party Payments,Revenue
Walsall Council,http://opendatacommunities.org/id/metropolitan-district-council/walsall,WC68-381,31/05/2016,Childrens,REDACTED,23/05/2016,"1,164.85",62515-MISCELLANEOUS SUPPLIES,INTERNAL FOSTER CARE PROVISION,Supplies & Services,Revenue
Walsall Council,http://opendatacommunities.org/id/metropolitan-district-council/walsall,WC68-382,31/05/2016,Social Care & Inclusion,BEARWOOD NURSING HOME LTD,10/05/2016,"1,527.60",73373-RESIDENTIAL & NURSING CARE PLACEMENTS,OP COMMISSIONING,Third Party Payments,Revenue
Walsall Council,http://opendatacommunities.org/id/metropolitan-district-council/walsall,WC68-383,31/05/2016,Social Care & Inclusion,BEARWOOD NURSING HOME LTD,10/05/2016,"1,527.60",73373-RESIDENTIAL & NURSING CARE PLACEMENTS,OP COMMISSIONING,Third Party Payments,Revenue
Walsall Council,http://opendatacommunities.org/id/metropolitan-district-council/walsall,WC68-384,31/05/2016,Social Care & Inclusion,REDACTED,09/05/2016,641.76,76422-DIRECT PAYMENTS TO SOCIAL SERVICES CLIENTS,OP COMMISSIONING,Transfer Payments,Revenue
Walsall Council,http://opendatacommunities.org/id/metropolitan-district-council/walsall,WC68-385,31/05/2016,Childrens,REDACTED,23/05/2016,354.48,62515-MISCELLANEOUS SUPPLIES,INTERNAL FOSTER CARE PROVISION,Supplies & Services,Revenue
Walsall Council,http://opendatacommunities.org/id/metropolitan-district-council/walsall,WC68-386,31/05/2016,Childrens,REDACTED,23/05/2016,571.44,74006-HOLIDAY/CHRISTMAS ALLOWANCE-FOSTER CARERS-OTH AGENCY PROVISION,INTERNAL FOSTER CARE PROVISION,Third Party Payments,Revenue
Walsall Council,http://opendatacommunities.org/id/metropolitan-district-council/walsall,WC68-387,31/05/2016,Childrens,BELLVIEW HOMECARE (MELROPE LTD),31/05/2016,"3,571.42",74036-EXTERNAL RESIDENTIAL CARE-OTH AGENCY PROVISION,INDEPENDENT RESIDENTIAL HOMES,Third Party Payments,Revenue
Walsall Council,http://opendatacommunities.org/id/metropolitan-district-council/walsall,WC68-388,31/05/2016,Childrens,BELLVIEW HOMECARE (MELROPE LTD),31/05/2016,"11,071.42",74036-EXTERNAL RESIDENTIAL CARE-OTH AGENCY PROVISION,INDEPENDENT RESIDENTIAL HOMES,Third Party Payments,Revenue
Walsall Council,http://opendatacommunities.org/id/metropolitan-district-council/walsall,WC68-389,31/05/2016,Childrens,REDACTED,23/05/2016,250,63000-PROFESSIONAL FEES AND SERVICES,CREATE 2 YEAR OLD PLACES,Supplies & Services,Revenue
Walsall Council,http://opendatacommunities.org/id/metropolitan-district-council/walsall,WC68-390,31/05/2016,Social Care & Inclusion,REDACTED,09/05/2016,"2,205.00",76422-DIRECT PAYMENTS TO SOCIAL SERVICES CLIENTS,LD COMMISSIONING,Transfer Payments,Revenue
Walsall Council,http://opendatacommunities.org/id/metropolitan-district-council/walsall,WC68-391,31/05/2016,Social Care & Inclusion,BENTLEY COURT PRIORY,10/05/2016,"1,793.57",73373-RESIDENTIAL & NURSING CARE PLACEMENTS,OP COMMISSIONING,Third Party Payments,Revenue
Walsall Council,http://opendatacommunities.org/id/metropolitan-district-council/walsall,WC68-392,31/05/2016,Social Care & Inclusion,BENTLEY COURT PRIORY,10/05/2016,"1,793.57",73373-RESIDENTIAL & NURSING CARE PLACEMENTS,OP COMMISSIONING,Third Party Payments,Revenue
Walsall Council,http://opendatacommunities.org/id/metropolitan-district-council/walsall,WC68-393,31/05/2016,Social Care & Inclusion,BENTLEY COURT PRIORY,10/05/2016,"1,855.71",73373-RESIDENTIAL & NURSING CARE PLACEMENTS,OP COMMISSIONING,Third Party Payments,Revenue
Walsall Council,http://opendatacommunities.org/id/metropolitan-district-council/walsall,WC68-394,31/05/2016,Social Care & Inclusion,BENTLEY COURT PRIORY,25/05/2016,"4,610.79",73373-RESIDENTIAL & NURSING CARE PLACEMENTS,OP COMMISSIONING,Third Party Payments,Revenue
Walsall Council,http://opendatacommunities.org/id/metropolitan-district-council/walsall,WC68-395,31/05/2016,Holding Accounts,BERRYMANS LACE MAWER LLP,19/05/2016,"7,401.36",67001-MISC INSURANCES - PAYMENT OF CLAIMS,PUBLIC LIABILITY,Supplies & Services,Revenue
Walsall Council,http://opendatacommunities.org/id/metropolitan-district-council/walsall,WC68-396,31/05/2016,Social Care & Inclusion,REDACTED,09/05/2016,912,76422-DIRECT PAYMENTS TO SOCIAL SERVICES CLIENTS,OP COMMISSIONING,Transfer Payments,Revenue
Walsall Council,http://opendatacommunities.org/id/metropolitan-district-council/walsall,WC68-397,31/05/2016,Childrens,REDACTED,23/05/2016,"1,445.32",62515-MISCELLANEOUS SUPPLIES,INTERNAL FOSTER CARE PROVISION,Supplies & Services,Revenue
Walsall Council,http://opendatacommunities.org/id/metropolitan-district-council/walsall,WC68-398,31/05/2016,Social Care & Inclusion,REDACTED,09/05/2016,968,76422-DIRECT PAYMENTS TO SOCIAL SERVICES CLIENTS,OP COMMISSIONING,Transfer Payments,Revenue
Walsall Council,http://opendatacommunities.org/id/metropolitan-district-council/walsall,WC68-399,31/05/2016,Social Care & Inclusion,BESCOT LODGE RESIDENTIAL CARE HOME,27/05/2016,"1,653.23",73373-RESIDENTIAL & NURSING CARE PLACEMENTS,OP COMMISSIONING,Third Party Payments,Revenue
Walsall Council,http://opendatacommunities.org/id/metropolitan-district-council/walsall,WC68-400,31/05/2016,Economy & Environment,BESCOT STADIUM SUNDAY MARKET LTD,11/05/2016,"2,800.00",73025-PROFESSIONAL SERVICES-PRIV CONTRACTOR & OTHER AGENCIES,WILLENHALL MARKET,Third Party Payments,Revenue
Walsall Council,http://opendatacommunities.org/id/metropolitan-district-council/walsall,WC68-401,31/05/2016,Social Care & Inclusion,BESWICK HOUSE SUPPORTED ACCOMMODATION LTD,10/05/2016,"15,045.79",73365-BLOCK GROSS-SUPPORTING PEOPLE,EXTERNAL SP,Third Party Payments,Revenue
Walsall Council,http://opendatacommunities.org/id/metropolitan-district-council/walsall,WC68-402,31/05/2016,Social Care & Inclusion,BETHPHAGE.,27/05/2016,"1,768.00",73374-SUPPORTED & OTHER ACCOMMODATION,LD COMMISSIONING,Third Party Payments,Revenue
Walsall Council,http://opendatacommunities.org/id/metropolitan-district-council/walsall,WC68-403,31/05/2016,Social Care & Inclusion,BETHPHAGE.,27/05/2016,"3,831.92",73374-SUPPORTED & OTHER ACCOMMODATION,LD COMMISSIONING,Third Party Payments,Revenue
Walsall Council,http://opendatacommunities.org/id/metropolitan-district-council/walsall,WC68-404,31/05/2016,Social Care & Inclusion,REDACTED,09/05/2016,949.52,76422-DIRECT PAYMENTS TO SOCIAL SERVICES CLIENTS,MH COMMISSIONING,Transfer Payments,Revenue
Walsall Council,http://opendatacommunities.org/id/metropolitan-district-council/walsall,WC68-405,31/05/2016,Social Care & Inclusion,REDACTED,09/05/2016,"2,453.00",76422-DIRECT PAYMENTS TO SOCIAL SERVICES CLIENTS,OP COMMISSIONING,Transfer Payments,Revenue
Walsall Council,http://opendatacommunities.org/id/metropolitan-district-council/walsall,WC68-406,31/05/2016,Change and Governance,BFA SAFETY TRAINING,01/05/2016,295,30030-EXTERNAL TRAINING,HEALTH & SAFETY (TRADED),Employees,Revenue
Walsall Council,http://opendatacommunities.org/id/metropolitan-district-council/walsall,WC68-407,31/05/2016,Change and Governance,BFA SAFETY TRAINING,01/05/2016,495,30030-EXTERNAL TRAINING,HEALTH & SAFETY (TRADED),Employees,Revenue
Walsall Council,http://opendatacommunities.org/id/metropolitan-district-council/walsall,WC68-408,31/05/2016,Social Care & Inclusion,BID CENTRE FOR DEAF PEOPLE,18/05/2016,270.9,"62521-INTERPRETATION,TRANSLATION & HUMAN AIDS TO TRANSCRIPTION",INITIAL ASSESSMENT,Supplies & Services,Revenue
Walsall Council,http://opendatacommunities.org/id/metropolitan-district-council/walsall,WC68-409,31/05/2016,Childrens,REDACTED,09/05/2016,487.72,76422-DIRECT PAYMENTS TO SOCIAL SERVICES CLIENTS,FAMILY SUPPORT - DIRECT PAYMENTS,Transfer Payments,Revenue
Walsall Council,http://opendatacommunities.org/id/metropolitan-district-council/walsall,WC68-410,31/05/2016,Childrens,REDACTED,09/05/2016,537.2,76422-DIRECT PAYMENTS TO SOCIAL SERVICES CLIENTS,FAMILY SUPPORT - DIRECT PAYMENTS,Transfer Payments,Revenue
Walsall Council,http://opendatacommunities.org/id/metropolitan-district-council/walsall,WC68-411,31/05/2016,Childrens,BIRCHILLS C OF E COMMUNITY ACADEMY,03/05/2016,"14,054.66",66502-TOP UP FUNDING -GRANTS TO SCHOOLS,BIRCHILLS CE COMMUNITY ACADEMY,Third Party Payments,Revenue
Walsall Council,http://opendatacommunities.org/id/metropolitan-district-council/walsall,WC68-412,31/05/2016,Childrens,BIRMINGHAM CITY COUNCIL,18/05/2016,"2,847.46",66502-TOP UP FUNDING -GRANTS TO SCHOOLS,INDEPENDENT PROVIDERS - SPECIAL & AP,Third Party Payments,Revenue
Walsall Council,http://opendatacommunities.org/id/metropolitan-district-council/walsall,WC68-413,31/05/2016,Childrens,BIRMINGHAM CITY COUNCIL,18/05/2016,"2,847.46",66502-TOP UP FUNDING -GRANTS TO SCHOOLS,INDEPENDENT PROVIDERS - SPECIAL & AP,Third Party Payments,Revenue
Walsall Council,http://opendatacommunities.org/id/metropolitan-district-council/walsall,WC68-414,31/05/2016,Childrens,BIRMINGHAM CITY COUNCIL,18/05/2016,"3,289.95",66502-TOP UP FUNDING -GRANTS TO SCHOOLS,INDEPENDENT PROVIDERS - SPECIAL & AP,Third Party Payments,Revenue
Walsall Council,http://opendatacommunities.org/id/metropolitan-district-council/walsall,WC68-415,31/05/2016,Childrens,BIRMINGHAM CITY COUNCIL,17/05/2016,"3,561.00",66502-TOP UP FUNDING -GRANTS TO SCHOOLS,INDEPENDENT PROVIDERS - SPECIAL & AP,Third Party Payments,Revenue
Walsall Council,http://opendatacommunities.org/id/metropolitan-district-council/walsall,WC68-416,31/05/2016,Childrens,BIRMINGHAM CITY COUNCIL,17/05/2016,"3,561.00",66502-TOP UP FUNDING -GRANTS TO SCHOOLS,INDEPENDENT PROVIDERS - SPECIAL & AP,Third Party Payments,Revenue
Walsall Council,http://opendatacommunities.org/id/metropolitan-district-council/walsall,WC68-417,31/05/2016,Childrens,BIRMINGHAM CITY COUNCIL,17/05/2016,"3,561.00",66502-TOP UP FUNDING -GRANTS TO SCHOOLS,INDEPENDENT PROVIDERS - SPECIAL & AP,Third Party Payments,Revenue
Walsall Council,http://opendatacommunities.org/id/metropolitan-district-council/walsall,WC68-418,31/05/2016,Childrens,BIRMINGHAM CITY COUNCIL,17/05/2016,"3,561.00",66502-TOP UP FUNDING -GRANTS TO SCHOOLS,INDEPENDENT PROVIDERS - SPECIAL & AP,Third Party Payments,Revenue
Walsall Council,http://opendatacommunities.org/id/metropolitan-district-council/walsall,WC68-419,31/05/2016,Childrens,BIRMINGHAM CITY COUNCIL,18/05/2016,"3,723.66",66502-TOP UP FUNDING -GRANTS TO SCHOOLS,INDEPENDENT PROVIDERS - SPECIAL & AP,Third Party Payments,Revenue
Walsall Council,http://opendatacommunities.org/id/metropolitan-district-council/walsall,WC68-420,31/05/2016,Childrens,BIRMINGHAM CITY COUNCIL,18/05/2016,"3,723.66",66502-TOP UP FUNDING -GRANTS TO SCHOOLS,INDEPENDENT PROVIDERS - SPECIAL & AP,Third Party Payments,Revenue
Walsall Council,http://opendatacommunities.org/id/metropolitan-district-council/walsall,WC68-421,31/05/2016,Childrens,BIRMINGHAM CITY COUNCIL,17/05/2016,"4,656.69",66502-TOP UP FUNDING -GRANTS TO SCHOOLS,INDEPENDENT PROVIDERS - SPECIAL & AP,Third Party Payments,Revenue
Walsall Council,http://opendatacommunities.org/id/metropolitan-district-council/walsall,WC68-422,31/05/2016,Childrens,BIRMINGHAM CITY COUNCIL,17/05/2016,"4,656.69",66502-TOP UP FUNDING -GRANTS TO SCHOOLS,INDEPENDENT PROVIDERS - SPECIAL & AP,Third Party Payments,Revenue
Walsall Council,http://opendatacommunities.org/id/metropolitan-district-council/walsall,WC68-423,31/05/2016,Childrens,BIRMINGHAM CITY COUNCIL,17/05/2016,"4,656.69",66502-TOP UP FUNDING -GRANTS TO SCHOOLS,INDEPENDENT PROVIDERS - SPECIAL & AP,Third Party Payments,Revenue
Walsall Council,http://opendatacommunities.org/id/metropolitan-district-council/walsall,WC68-424,31/05/2016,Childrens,BIRMINGHAM CITY COUNCIL,17/05/2016,"4,656.69",66502-TOP UP FUNDING -GRANTS TO SCHOOLS,INDEPENDENT PROVIDERS - SPECIAL & AP,Third Party Payments,Revenue
Walsall Council,http://opendatacommunities.org/id/metropolitan-district-council/walsall,WC68-425,31/05/2016,Childrens,BIRMINGHAM CITY COUNCIL,18/05/2016,"4,666.69",66502-TOP UP FUNDING -GRANTS TO SCHOOLS,INDEPENDENT PROVIDERS - SPECIAL & AP,Third Party Payments,Revenue
Walsall Council,http://opendatacommunities.org/id/metropolitan-district-council/walsall,WC68-426,31/05/2016,Childrens,BIRMINGHAM CITY COUNCIL,17/05/2016,"4,689.12",66502-TOP UP FUNDING -GRANTS TO SCHOOLS,INDEPENDENT PROVIDERS - SPECIAL & AP,Third Party Payments,Revenue
Walsall Council,http://opendatacommunities.org/id/metropolitan-district-council/walsall,WC68-427,31/05/2016,Childrens,BIRMINGHAM CITY COUNCIL,17/05/2016,"4,728.00",66502-TOP UP FUNDING -GRANTS TO SCHOOLS,INDEPENDENT PROVIDERS - SPECIAL & AP,Third Party Payments,Revenue
Walsall Council,http://opendatacommunities.org/id/metropolitan-district-council/walsall,WC68-428,31/05/2016,Economy & Environment,BIRMINGHAM CITY COUNCIL,17/05/2016,"5,077.42",71000-PAYMENTS FOR SERVICES FROM OTHER LOCAL AUTHORITIES,PLANNING POLICY,Third Party Payments,Revenue
Walsall Council,http://opendatacommunities.org/id/metropolitan-district-council/walsall,WC68-429,31/05/2016,Childrens,BIRMINGHAM CITY COUNCIL,17/05/2016,"6,182.77",66502-TOP UP FUNDING -GRANTS TO SCHOOLS,INDEPENDENT PROVIDERS - SPECIAL & AP,Third Party Payments,Revenue
Walsall Council,http://opendatacommunities.org/id/metropolitan-district-council/walsall,WC68-430,31/05/2016,Childrens,BIRMINGHAM CITY COUNCIL,17/05/2016,"6,651.38",66502-TOP UP FUNDING -GRANTS TO SCHOOLS,INDEPENDENT PROVIDERS - SPECIAL & AP,Third Party Payments,Revenue
Walsall Council,http://opendatacommunities.org/id/metropolitan-district-council/walsall,WC68-431,31/05/2016,Childrens,BIRMINGHAM CITY COUNCIL,04/05/2016,"9,000.29",52000-WITH DRIVER-HIRE OF VEHICLES,SCHOOL TRANSPORT,Transport,Revenue
Walsall Council,http://opendatacommunities.org/id/metropolitan-district-council/walsall,WC68-432,31/05/2016,Economy & Environment,BIRMINGHAM CITY COUNCIL,17/05/2016,"10,154.83",71000-PAYMENTS FOR SERVICES FROM OTHER LOCAL AUTHORITIES,ROAD SAFETY & SUSTAINABLE TRAVEL,Third Party Payments,Revenue
Walsall Council,http://opendatacommunities.org/id/metropolitan-district-council/walsall,WC68-433,31/05/2016,Childrens,BIRMINGHAM CITY COUNCIL,17/05/2016,"12,223.38",66502-TOP UP FUNDING -GRANTS TO SCHOOLS,INDEPENDENT PROVIDERS - SPECIAL & AP,Third Party Payments,Revenue
Walsall Council,http://opendatacommunities.org/id/metropolitan-district-council/walsall,WC68-434,31/05/2016,Childrens,BIRMINGHAM CITY COUNCIL,18/05/2016,"13,588.19",66502-TOP UP FUNDING -GRANTS TO SCHOOLS,INDEPENDENT PROVIDERS - SPECIAL & AP,Third Party Payments,Revenue
Walsall Council,http://opendatacommunities.org/id/metropolitan-district-council/walsall,WC68-435,31/05/2016,Change and Governance,BIRMINGHAM CITY COUNCIL,27/05/2016,"16,608.00",64500-PUBLICATIONS/ORGANISATIONS-SUBSCRIPTIONS,CORPORATE EXPENSES,Supplies & Services,Revenue
Walsall Council,http://opendatacommunities.org/id/metropolitan-district-council/walsall,WC68-436,31/05/2016,Childrens,BIRMINGHAM CITY COUNCIL,27/05/2016,"19,168.25",52000-WITH DRIVER-HIRE OF VEHICLES,SCHOOL TRANSPORT,Transport,Revenue
Walsall Council,http://opendatacommunities.org/id/metropolitan-district-council/walsall,WC68-437,31/05/2016,Childrens,BIRMINGHAM CITY COUNCIL,11/05/2016,"27,909.85",52000-WITH DRIVER-HIRE OF VEHICLES,SCHOOL TRANSPORT,Transport,Revenue
Walsall Council,http://opendatacommunities.org/id/metropolitan-district-council/walsall,WC68-438,31/05/2016,Economy & Environment,BLACK COUNTRY CONSORTIUM LIMITED,27/05/2016,"3,130.40",63000-PROFESSIONAL FEES AND SERVICES,GRANTS-BLACK COUNTRY INVEST TEAM,Supplies & Services,Revenue
Walsall Council,http://opendatacommunities.org/id/metropolitan-district-council/walsall,WC68-439,31/05/2016,Economy & Environment,BLACK COUNTRY CONSORTIUM LIMITED,13/05/2016,"7,500.00",63000-PROFESSIONAL FEES AND SERVICES,GRANTS-BLACK COUNTRY INVEST TEAM,Supplies & Services,Revenue
Walsall Council,http://opendatacommunities.org/id/metropolitan-district-council/walsall,WC68-440,31/05/2016,Economy & Environment,BLACK COUNTRY CONSORTIUM LIMITED,13/05/2016,"103,322.00",64500-PUBLICATIONS/ORGANISATIONS-SUBSCRIPTIONS,MS-HEAD OF STRATEGIC REGENERATION,Supplies & Services,Revenue
Walsall Council,http://opendatacommunities.org/id/metropolitan-district-council/walsall,WC68-441,31/05/2016,Social Care & Inclusion,BLACK COUNTRY PARTNERSHIP NHS,13/05/2016,"158,840.29",71007-CONTRIBUTION TO PCT,BCPFT,Third Party Payments,Revenue
Walsall Council,http://opendatacommunities.org/id/metropolitan-district-council/walsall,WC68-442,31/05/2016,Social Care & Inclusion,BLACK COUNTRY PARTNERSHIP NHS,13/05/2016,"158,840.29",71007-CONTRIBUTION TO PCT,BCPFT,Third Party Payments,Revenue
Walsall Council,http://opendatacommunities.org/id/metropolitan-district-council/walsall,WC68-443,31/05/2016,Economy & Environment,BLACK COUNTRY TRAINING LTD T/A BRITISH HGV TRAINING GROUP,19/05/2016,300,30030-EXTERNAL TRAINING,STREET CLEANSING,Employees,Revenue
Walsall Council,http://opendatacommunities.org/id/metropolitan-district-council/walsall,WC68-444,31/05/2016,Childrens,BLAKENALL HEATH JMI SCHOOL,03/05/2016,"91,561.92",77300-ISB-FORMULA ALLOCATION,BLAKENALL HEATH JUNIOR SCHOOL,Transfer Payments,Revenue
Walsall Council,http://opendatacommunities.org/id/metropolitan-district-council/walsall,WC68-445,31/05/2016,Childrens,BLOXWICH ACADEMY,03/05/2016,"5,982.33",66502-TOP UP FUNDING -GRANTS TO SCHOOLS,BLOXWICH C.E. JMI PRIMARY SCHOOL,Third Party Payments,Revenue
Walsall Council,http://opendatacommunities.org/id/metropolitan-district-council/walsall,WC68-446,31/05/2016,Childrens,BLOXWICH ACADEMY,03/05/2016,"8,292.31",66502-TOP UP FUNDING -GRANTS TO SCHOOLS,THE MIRUS ACADEMY,Third Party Payments,Revenue
Walsall Council,http://opendatacommunities.org/id/metropolitan-district-council/walsall,WC68-447,31/05/2016,Change and Governance,BLOXWICH COMMUNITY PARTNERSHIP.,16/05/2016,"6,666.66",66500-GRANTS TO OTHER ORGS,BLOXWICH COMMUNITY PARTNERSHIP,Third Party Payments,Revenue
Walsall Council,http://opendatacommunities.org/id/metropolitan-district-council/walsall,WC68-448,31/05/2016,Childrens,BLUE COAT CHURCH OF ENGLAND ACADEMY,03/05/2016,"10,170.78",66502-TOP UP FUNDING -GRANTS TO SCHOOLS,BLUE COAT CofE ACADEMY,Third Party Payments,Revenue
Walsall Council,http://opendatacommunities.org/id/metropolitan-district-council/walsall,WC68-449,31/05/2016,Social Care & Inclusion,BLUEBIRD CARE (MID STAFFS),01/05/2016,468,73372-DOMICILIARY CARE,OP COMMISSIONING,Third Party Payments,Revenue
Walsall Council,http://opendatacommunities.org/id/metropolitan-district-council/walsall,WC68-450,31/05/2016,Social Care & Inclusion,BOLDMERE COURT CARE HOME,25/05/2016,"12,000.00",73373-RESIDENTIAL & NURSING CARE PLACEMENTS,MH COMMISSIONING,Third Party Payments,Revenue
Walsall Council,http://opendatacommunities.org/id/metropolitan-district-council/walsall,WC68-451,31/05/2016,Economy & Environment,BORN TO PERFORM,09/05/2016,615,62523-EVENTS,WALSALL TOWN CENTRE,Supplies & Services,Revenue
Walsall Council,http://opendatacommunities.org/id/metropolitan-district-council/walsall,WC68-452,31/05/2016,Childrens,BOULTON TRAVEL LIMITED,11/05/2016,"1,695.00",52000-WITH DRIVER-HIRE OF VEHICLES,SCHOOL TRANSPORT,Transport,Revenue
Walsall Council,http://opendatacommunities.org/id/metropolitan-district-council/walsall,WC68-453,31/05/2016,Childrens,BOULTON TRAVEL LIMITED,11/05/2016,"1,708.00",52000-WITH DRIVER-HIRE OF VEHICLES,SCHOOL TRANSPORT,Transport,Revenue
Walsall Council,http://opendatacommunities.org/id/metropolitan-district-council/walsall,WC68-454,31/05/2016,Economy & Environment,BRADVALE LTD T/A INSPIRE HEALTHCARE SERVICES,23/05/2016,"8,071.50",73025-PROFESSIONAL SERVICES-PRIV CONTRACTOR & OTHER AGENCIES,DEPOT,Third Party Payments,Revenue
Walsall Council,http://opendatacommunities.org/id/metropolitan-district-council/walsall,WC68-455,31/05/2016,Change and Governance,BRELMAYNE LTD,27/05/2016,661,60008-MAINTENANCE-FURNITURE & EQUIPMENT,CA RADLEYS PRIMARY SCHOOL,Supplies & Services,Revenue
Walsall Council,http://opendatacommunities.org/id/metropolitan-district-council/walsall,WC68-456,31/05/2016,Change and Governance,BRELMAYNE LTD,27/05/2016,"1,642.84",60008-MAINTENANCE-FURNITURE & EQUIPMENT,CA RADLEYS PRIMARY SCHOOL,Supplies & Services,Revenue
Walsall Council,http://opendatacommunities.org/id/metropolitan-district-council/walsall,WC68-457,31/05/2016,Social Care & Inclusion,REDACTED,09/05/2016,440,76422-DIRECT PAYMENTS TO SOCIAL SERVICES CLIENTS,LD COMMISSIONING,Transfer Payments,Revenue
Walsall Council,http://opendatacommunities.org/id/metropolitan-district-council/walsall,WC68-458,31/05/2016,Childrens,REDACTED,23/05/2016,"1,301.84",74006-HOLIDAY/CHRISTMAS ALLOWANCE-FOSTER CARERS-OTH AGENCY PROVISION,INTERNAL FOSTER CARE PROVISION,Third Party Payments,Revenue
Walsall Council,http://opendatacommunities.org/id/metropolitan-district-council/walsall,WC68-459,31/05/2016,Childrens,REDACTED,23/05/2016,"1,445.32",62515-MISCELLANEOUS SUPPLIES,INTERNAL FOSTER CARE PROVISION,Supplies & Services,Revenue
Walsall Council,http://opendatacommunities.org/id/metropolitan-district-council/walsall,WC68-460,31/05/2016,Economy & Environment,BRENNTAG UK LIMITED,09/05/2016,711.12,50301-FUEL-TRANSPORT RUN COSTS,FUEL STOCK ACCOUNT,Transport,Revenue
Walsall Council,http://opendatacommunities.org/id/metropolitan-district-council/walsall,WC68-461,31/05/2016,Social Care & Inclusion,REDACTED,04/05/2016,"1,337.64",73374-SUPPORTED & OTHER ACCOMMODATION,LD COMMISSIONING,Third Party Payments,Revenue
Walsall Council,http://opendatacommunities.org/id/metropolitan-district-council/walsall,WC68-462,31/05/2016,Social Care & Inclusion,REDACTED,04/05/2016,"1,597.60",73374-SUPPORTED & OTHER ACCOMMODATION,LD COMMISSIONING,Third Party Payments,Revenue
Walsall Council,http://opendatacommunities.org/id/metropolitan-district-council/walsall,WC68-463,31/05/2016,Social Care & Inclusion,REDACTED,09/05/2016,"1,294.80",76422-DIRECT PAYMENTS TO SOCIAL SERVICES CLIENTS,OP COMMISSIONING,Transfer Payments,Revenue
Walsall Council,http://opendatacommunities.org/id/metropolitan-district-council/walsall,WC68-464,31/05/2016,Social Care & Inclusion,REDACTED,09/05/2016,697,76422-DIRECT PAYMENTS TO SOCIAL SERVICES CLIENTS,OP COMMISSIONING,Transfer Payments,Revenue
Walsall Council,http://opendatacommunities.org/id/metropolitan-district-council/walsall,WC68-465,31/05/2016,Social Care & Inclusion,BRIDGEWOOD HEALTH CARE LTD,17/05/2016,"5,513.72",73373-RESIDENTIAL & NURSING CARE PLACEMENTS,YADS COMMISSIONING,Third Party Payments,Revenue
Walsall Council,http://opendatacommunities.org/id/metropolitan-district-council/walsall,WC68-466,31/05/2016,Social Care & Inclusion,BRIDGEWOOD HEALTH CARE LTD,25/05/2016,"5,513.72",73373-RESIDENTIAL & NURSING CARE PLACEMENTS,YADS COMMISSIONING,Third Party Payments,Revenue
Walsall Council,http://opendatacommunities.org/id/metropolitan-district-council/walsall,WC68-467,31/05/2016,Childrens,BRIGHT HORIZONS (WISHING WILLOW),11/05/2016,"1,057.33",63120-CRECHE FACILITIES-SERVICES-FEES,FAMILY PLACEMENTS,Supplies & Services,Revenue
Walsall Council,http://opendatacommunities.org/id/metropolitan-district-council/walsall,WC68-468,31/05/2016,Change and Governance,BRISTOW & SUTOR,27/05/2016,210.44,73014-LEGAL FEES-PRIV CONTRACTOR FEES,REVENUES,Third Party Payments,Revenue
Walsall Council,http://opendatacommunities.org/id/metropolitan-district-council/walsall,WC68-469,31/05/2016,Change and Governance,BRISTOW & SUTOR,25/05/2016,239.11,73014-LEGAL FEES-PRIV CONTRACTOR FEES,REVENUES,Third Party Payments,Revenue
Walsall Council,http://opendatacommunities.org/id/metropolitan-district-council/walsall,WC68-470,31/05/2016,Childrens,BRISTOW & SUTOR,20/05/2016,"1,423.86",76010-ACCOMMODATION AND RELATED COSTS-ASSISTANCE TO S/S CLIENTS,SAFEGUARDING & FAMILY SUPPORT,Transfer Payments,Revenue
Walsall Council,http://opendatacommunities.org/id/metropolitan-district-council/walsall,WC68-471,31/05/2016,Childrens,BRITISH GAS BUSINESS,11/05/2016,245.46,42000-GAS-ENERGY COSTS,BIRCHILLS CHILDREN CENTRE - PREMISES,Premises,Revenue
Walsall Council,http://opendatacommunities.org/id/metropolitan-district-council/walsall,WC68-472,31/05/2016,Childrens,BRITISH GAS BUSINESS,13/05/2016,251.69,42000-GAS-ENERGY COSTS,CLUSTER 5 DARLASTON,Premises,Revenue
Walsall Council,http://opendatacommunities.org/id/metropolitan-district-council/walsall,WC68-473,31/05/2016,Childrens,BRITISH GAS BUSINESS,16/05/2016,266.3,42000-GAS-ENERGY COSTS,BLAKENALL CHILDREN CENTRE,Premises,Revenue
Walsall Council,http://opendatacommunities.org/id/metropolitan-district-council/walsall,WC68-474,31/05/2016,Change and Governance,BROADLAND GROUP LTD,10/05/2016,"1,095.00","40000-REPAIRS,ALTERATIONS & MAINTENANCE-PREM",RECHARGEABLE - NON SCHOOLS MAINTENANCE,Premises,Revenue
Walsall Council,http://opendatacommunities.org/id/metropolitan-district-council/walsall,WC68-475,31/05/2016,Childrens,BROADLAND GROUP LTD,18/05/2016,"15,540.00",01006-SITE WORKS MAIN CONTRACTORS,CFR 1017 OLD HALL SPECIAL SCHOOL HEATING & DISTRIBUTION,Capital,Capital
Walsall Council,http://opendatacommunities.org/id/metropolitan-district-council/walsall,WC68-476,31/05/2016,Economy & Environment,BROADWAY PHARMACY,09/05/2016,35.4,63000-PROFESSIONAL FEES AND SERVICES,SEXUAL HEALTH,Supplies & Services,Revenue
Walsall Council,http://opendatacommunities.org/id/metropolitan-district-council/walsall,WC68-477,31/05/2016,Economy & Environment,BROADWAY PHARMACY,27/05/2016,88.5,63000-PROFESSIONAL FEES AND SERVICES,SEXUAL HEALTH,Supplies & Services,Revenue
Walsall Council,http://opendatacommunities.org/id/metropolitan-district-council/walsall,WC68-478,31/05/2016,Economy & Environment,BROADWAY PHARMACY,05/05/2016,106.2,63000-PROFESSIONAL FEES AND SERVICES,SEXUAL HEALTH,Supplies & Services,Revenue
Walsall Council,http://opendatacommunities.org/id/metropolitan-district-council/walsall,WC68-479,31/05/2016,Economy & Environment,BROADWAY PHARMACY,27/05/2016,535.55,71007-CONTRIBUTION TO PCT,PUBLIC HEALTH BUSINESS SUPPORT,Third Party Payments,Revenue
Walsall Council,http://opendatacommunities.org/id/metropolitan-district-council/walsall,WC68-480,31/05/2016,Economy & Environment,BROADWAY PHARMACY,05/05/2016,572.7,71007-CONTRIBUTION TO PCT,PUBLIC HEALTH BUSINESS SUPPORT,Third Party Payments,Revenue
Walsall Council,http://opendatacommunities.org/id/metropolitan-district-council/walsall,WC68-481,31/05/2016,Economy & Environment,BROADWAY PHARMACY,09/05/2016,700.66,71007-CONTRIBUTION TO PCT,PUBLIC HEALTH BUSINESS SUPPORT,Third Party Payments,Revenue
Walsall Council,http://opendatacommunities.org/id/metropolitan-district-council/walsall,WC68-482,31/05/2016,Childrens,BROADWAY TRAVEL CONNECTIONS,04/05/2016,"1,750.00",52000-WITH DRIVER-HIRE OF VEHICLES,SCHOOL TRANSPORT,Transport,Revenue
Walsall Council,http://opendatacommunities.org/id/metropolitan-district-council/walsall,WC68-483,31/05/2016,Economy & Environment,BROWNHILLS ASPHALT & TARMAC LIMITED,23/05/2016,520,60500-GENERAL MATERIALS,CEMETERIES CENTRAL ADMINISTRATION,Supplies & Services,Revenue
Walsall Council,http://opendatacommunities.org/id/metropolitan-district-council/walsall,WC68-484,31/05/2016,Economy & Environment,BROWNHILLS ASPHALT & TARMAC LIMITED,11/05/2016,550,60500-GENERAL MATERIALS,INFRASTRUCTURE MAINTENANCE,Supplies & Services,Revenue
Walsall Council,http://opendatacommunities.org/id/metropolitan-district-council/walsall,WC68-485,31/05/2016,Economy & Environment,BROWNHILLS ASPHALT & TARMAC LIMITED,11/05/2016,800,60500-GENERAL MATERIALS,INFRASTRUCTURE MAINTENANCE,Supplies & Services,Revenue
Walsall Council,http://opendatacommunities.org/id/metropolitan-district-council/walsall,WC68-486,31/05/2016,Change and Governance,BROWNHILLS ASPHALT & TARMAC LIMITED,20/05/2016,"3,900.00","40000-REPAIRS,ALTERATIONS & MAINTENANCE-PREM",RECHARGEABLE - NON SCHOOLS MAINTENANCE,Premises,Revenue
Walsall Council,http://opendatacommunities.org/id/metropolitan-district-council/walsall,WC68-487,31/05/2016,Childrens,BROWNHILLS COMMUNITY ASSOCIATION,25/05/2016,576,63128-HIRE OF ROOM-SERVICES-FEES,PARENTING TEAM,Supplies & Services,Revenue
Walsall Council,http://opendatacommunities.org/id/metropolitan-district-council/walsall,WC68-488,31/05/2016,Change and Governance,BROWNHILLS COMMUNITY ASSOCIATION,11/05/2016,"7,000.00",66500-GRANTS TO OTHER ORGS,BROWNHILLS COMMUNITY ASSOCIATION,Third Party Payments,Revenue
Walsall Council,http://opendatacommunities.org/id/metropolitan-district-council/walsall,WC68-489,31/05/2016,Childrens,BROWNHILLS COMMUNITY ASSOC'N,18/05/2016,"18,494.50",66500-GRANTS TO OTHER ORGS,BROWNHILLS COMMUNITY ASSOCIATION,Third Party Payments,Revenue
Walsall Council,http://opendatacommunities.org/id/metropolitan-district-council/walsall,WC68-490,31/05/2016,Economy & Environment,BROXAP LTD,24/05/2016,600,73025-PROFESSIONAL SERVICES-PRIV CONTRACTOR & OTHER AGENCIES,SMARTER WORKPLACES WORKPLACE SOLUTIONS,Third Party Payments,Revenue
Walsall Council,http://opendatacommunities.org/id/metropolitan-district-council/walsall,WC68-491,31/05/2016,Social Care & Inclusion,REDACTED,09/05/2016,"1,445.00",76422-DIRECT PAYMENTS TO SOCIAL SERVICES CLIENTS,LD COMMISSIONING,Transfer Payments,Revenue
Walsall Council,http://opendatacommunities.org/id/metropolitan-district-council/walsall,WC68-492,31/05/2016,Change and Governance,REDACTED,16/05/2016,300,"40000-REPAIRS,ALTERATIONS & MAINTENANCE-PREM",CENTRALISED MAINTENANCE,Premises,Revenue
Walsall Council,http://opendatacommunities.org/id/metropolitan-district-council/walsall,WC68-493,31/05/2016,Economy & Environment,REDACTED,16/05/2016,500,63000-PROFESSIONAL FEES AND SERVICES,CREATIVE DEVELOPMENT TEAM - MANAGEMENT,Supplies & Services,Revenue
Walsall Council,http://opendatacommunities.org/id/metropolitan-district-council/walsall,WC68-494,31/05/2016,Economy & Environment,REDACTED,23/05/2016,"2,081.25",63000-PROFESSIONAL FEES AND SERVICES,EXTL FUNDED CREATIVE PROJECT MANAGEMENT,Supplies & Services,Revenue
Walsall Council,http://opendatacommunities.org/id/metropolitan-district-council/walsall,WC68-495,31/05/2016,Economy & Environment,B-SURE SECURITY SERVICES LTD,09/05/2016,10,63500-POSTAGES AND COURIER SERVICES,CENTRALISED STATIONERY,Supplies & Services,Revenue
Walsall Council,http://opendatacommunities.org/id/metropolitan-district-council/walsall,WC68-496,31/05/2016,Change and Governance,B-SURE SECURITY SERVICES LTD,03/05/2016,482,"40000-REPAIRS,ALTERATIONS & MAINTENANCE-PREM",CENTRALISED MAINTENANCE,Premises,Revenue
Walsall Council,http://opendatacommunities.org/id/metropolitan-district-council/walsall,WC68-497,31/05/2016,Change and Governance,B-SURE SECURITY SERVICES LTD,03/05/2016,536.84,"40000-REPAIRS,ALTERATIONS & MAINTENANCE-PREM",CENTRALISED MAINTENANCE,Premises,Revenue
Walsall Council,http://opendatacommunities.org/id/metropolitan-district-council/walsall,WC68-498,31/05/2016,Economy & Environment,B-SURE SECURITY SERVICES LTD,09/05/2016,882,63800-COMPUTER EQUIPMENT AND SUPPLIES,CENTRALISED STATIONERY,Supplies & Services,Revenue
Walsall Council,http://opendatacommunities.org/id/metropolitan-district-council/walsall,WC68-499,31/05/2016,Childrens,BT,13/05/2016,347.46,63603-COST OF CALLS-TELEPHONES,CLUSTER 5 DARLASTON,Supplies & Services,Revenue
Walsall Council,http://opendatacommunities.org/id/metropolitan-district-council/walsall,WC68-500,31/05/2016,Change and Governance,BT,09/05/2016,970,63603-COST OF CALLS-TELEPHONES,PROCESSING,Supplies & Services,Revenue
Walsall Council,http://opendatacommunities.org/id/metropolitan-district-council/walsall,WC68-501,31/05/2016,Childrens,BT PLC,18/05/2016,213.66,63606-TELEPHONES PAGERS-TELEPHONES,BLOXWICH CHILDRENS CENTRE,Supplies & Services,Revenue
Walsall Council,http://opendatacommunities.org/id/metropolitan-district-council/walsall,WC68-502,31/05/2016,Change and Governance,BT PLC,04/05/2016,349.62,63800-COMPUTER EQUIPMENT AND SUPPLIES,RECHARGEABLE EQUIPMENT,Supplies & Services,Revenue
Walsall Council,http://opendatacommunities.org/id/metropolitan-district-council/walsall,WC68-503,31/05/2016,Change and Governance,BT PLC,18/05/2016,349.62,63800-COMPUTER EQUIPMENT AND SUPPLIES,NETWORKS,Supplies & Services,Revenue
Walsall Council,http://opendatacommunities.org/id/metropolitan-district-council/walsall,WC68-504,31/05/2016,Change and Governance,BT PLC,04/05/2016,"1,404.20",63601-COSTS (NOT INTERNAL RECHARGES)-TELEPHONES,CENTRAL COMMUNICATIONS RECHARGES,Supplies & Services,Revenue
Walsall Council,http://opendatacommunities.org/id/metropolitan-district-council/walsall,WC68-505,31/05/2016,Change and Governance,BT PLC,10/05/2016,"6,981.17",63601-COSTS (NOT INTERNAL RECHARGES)-TELEPHONES,CENTRAL COMMUNICATIONS RECHARGES,Supplies & Services,Revenue
Walsall Council,http://opendatacommunities.org/id/metropolitan-district-council/walsall,WC68-506,31/05/2016,Change and Governance,BT PLC,20/05/2016,"14,091.73",63601-COSTS (NOT INTERNAL RECHARGES)-TELEPHONES,CENTRAL COMMUNICATIONS RECHARGES,Supplies & Services,Revenue
Walsall Council,http://opendatacommunities.org/id/metropolitan-district-council/walsall,WC68-507,31/05/2016,Change and Governance,BUILDING RECRUITMENT COMPANY,16/05/2016,339.75,73025-PROFESSIONAL SERVICES-PRIV CONTRACTOR & OTHER AGENCIES,INTEGRATED FACILITIES MANAGEMENT,Third Party Payments,Revenue
Walsall Council,http://opendatacommunities.org/id/metropolitan-district-council/walsall,WC68-508,31/05/2016,Change and Governance,BUILDING RECRUITMENT COMPANY,16/05/2016,840,73025-PROFESSIONAL SERVICES-PRIV CONTRACTOR & OTHER AGENCIES,INTEGRATED FACILITIES MANAGEMENT,Third Party Payments,Revenue
Walsall Council,http://opendatacommunities.org/id/metropolitan-district-council/walsall,WC68-509,31/05/2016,Economy & Environment,BUILT ENVIRONMENT HUB LIMITED,16/05/2016,735,63248-SURVEYS & PROF SERVICES-PAYMENT TO CONTRACTOR,BUILDING CONTROL REVENUE FUNDED,Supplies & Services,Revenue
Walsall Council,http://opendatacommunities.org/id/metropolitan-district-council/walsall,WC68-510,31/05/2016,Economy & Environment,BUILT ENVIRONMENT HUB LIMITED,16/05/2016,840,63248-SURVEYS & PROF SERVICES-PAYMENT TO CONTRACTOR,BUILDING CONTROL REVENUE FUNDED,Supplies & Services,Revenue
Walsall Council,http://opendatacommunities.org/id/metropolitan-district-council/walsall,WC68-511,31/05/2016,Social Care & Inclusion,BUPA CARE HOMES (CFHCARE) LTD,10/05/2016,"1,527.60",73373-RESIDENTIAL & NURSING CARE PLACEMENTS,OP COMMISSIONING,Third Party Payments,Revenue
Walsall Council,http://opendatacommunities.org/id/metropolitan-district-council/walsall,WC68-512,31/05/2016,Social Care & Inclusion,BUPA CARE HOMES (CFHCARE) LTD,25/05/2016,"1,527.60",73373-RESIDENTIAL & NURSING CARE PLACEMENTS,OP COMMISSIONING,Third Party Payments,Revenue
Walsall Council,http://opendatacommunities.org/id/metropolitan-district-council/walsall,WC68-513,31/05/2016,Social Care & Inclusion,BUPA CARE HOMES (CFHCARE) LTD,10/05/2016,"1,755.68",73373-RESIDENTIAL & NURSING CARE PLACEMENTS,MH COMMISSIONING,Third Party Payments,Revenue
Walsall Council,http://opendatacommunities.org/id/metropolitan-district-council/walsall,WC68-514,31/05/2016,Social Care & Inclusion,BUPA CARE HOMES (CFHCARE) LTD,25/05/2016,"1,755.68",73373-RESIDENTIAL & NURSING CARE PLACEMENTS,MH COMMISSIONING,Third Party Payments,Revenue
Walsall Council,http://opendatacommunities.org/id/metropolitan-district-council/walsall,WC68-515,31/05/2016,Social Care & Inclusion,BUPA CARE HOMES (CFHCARE) LTD,10/05/2016,"3,129.80",73373-RESIDENTIAL & NURSING CARE PLACEMENTS,OP COMMISSIONING,Third Party Payments,Revenue
Walsall Council,http://opendatacommunities.org/id/metropolitan-district-council/walsall,WC68-516,31/05/2016,Social Care & Inclusion,BUPA CARE HOMES (CFHCARE) LTD,25/05/2016,"3,129.80",73373-RESIDENTIAL & NURSING CARE PLACEMENTS,OP COMMISSIONING,Third Party Payments,Revenue
Walsall Council,http://opendatacommunities.org/id/metropolitan-district-council/walsall,WC68-517,31/05/2016,Economy & Environment,BURTON HOSPITALS NHS FOUNDATION TRUST,06/05/2016,382.78,63000-PROFESSIONAL FEES AND SERVICES,SEXUAL HEALTH,Supplies & Services,Revenue
Walsall Council,http://opendatacommunities.org/id/metropolitan-district-council/walsall,WC68-518,31/05/2016,Social Care & Inclusion,BUSH HOME LTD,17/05/2016,373.31,73373-RESIDENTIAL & NURSING CARE PLACEMENTS,OP COMMISSIONING,Third Party Payments,Revenue
Walsall Council,http://opendatacommunities.org/id/metropolitan-district-council/walsall,WC68-519,31/05/2016,Social Care & Inclusion,BUSH HOME LTD,17/05/2016,373.31,73373-RESIDENTIAL & NURSING CARE PLACEMENTS,OP COMMISSIONING,Third Party Payments,Revenue
Walsall Council,http://opendatacommunities.org/id/metropolitan-district-council/walsall,WC68-520,31/05/2016,Social Care & Inclusion,BUSH HOME LTD,04/05/2016,"1,490.96",73373-RESIDENTIAL & NURSING CARE PLACEMENTS,OP COMMISSIONING,Third Party Payments,Revenue
Walsall Council,http://opendatacommunities.org/id/metropolitan-district-council/walsall,WC68-521,31/05/2016,Social Care & Inclusion,BUSH HOME LTD,04/05/2016,"1,493.24",73373-RESIDENTIAL & NURSING CARE PLACEMENTS,OP COMMISSIONING,Third Party Payments,Revenue
Walsall Council,http://opendatacommunities.org/id/metropolitan-district-council/walsall,WC68-522,31/05/2016,Social Care & Inclusion,BUSH HOME LTD,04/05/2016,"1,493.24",73373-RESIDENTIAL & NURSING CARE PLACEMENTS,OP COMMISSIONING,Third Party Payments,Revenue
Walsall Council,http://opendatacommunities.org/id/metropolitan-district-council/walsall,WC68-523,31/05/2016,Social Care & Inclusion,BUSH HOME LTD,04/05/2016,"1,493.24",73373-RESIDENTIAL & NURSING CARE PLACEMENTS,OP COMMISSIONING,Third Party Payments,Revenue
Walsall Council,http://opendatacommunities.org/id/metropolitan-district-council/walsall,WC68-524,31/05/2016,Social Care & Inclusion,BUSH HOME LTD,04/05/2016,"1,493.24",73373-RESIDENTIAL & NURSING CARE PLACEMENTS,OP COMMISSIONING,Third Party Payments,Revenue
Walsall Council,http://opendatacommunities.org/id/metropolitan-district-council/walsall,WC68-525,31/05/2016,Social Care & Inclusion,BUSH HOME LTD,10/05/2016,"1,493.24",73373-RESIDENTIAL & NURSING CARE PLACEMENTS,OP COMMISSIONING,Third Party Payments,Revenue
Walsall Council,http://opendatacommunities.org/id/metropolitan-district-council/walsall,WC68-526,31/05/2016,Social Care & Inclusion,BUSH HOME LTD,04/05/2016,"1,568.64",73373-RESIDENTIAL & NURSING CARE PLACEMENTS,OP COMMISSIONING,Third Party Payments,Revenue
Walsall Council,http://opendatacommunities.org/id/metropolitan-district-council/walsall,WC68-527,31/05/2016,Social Care & Inclusion,BUSH HOME LTD,04/05/2016,"1,568.64",73373-RESIDENTIAL & NURSING CARE PLACEMENTS,OP COMMISSIONING,Third Party Payments,Revenue
Walsall Council,http://opendatacommunities.org/id/metropolitan-district-council/walsall,WC68-528,31/05/2016,Social Care & Inclusion,BUSH HOME LTD,04/05/2016,"1,568.64",73373-RESIDENTIAL & NURSING CARE PLACEMENTS,OP COMMISSIONING,Third Party Payments,Revenue
Walsall Council,http://opendatacommunities.org/id/metropolitan-district-council/walsall,WC68-529,31/05/2016,Social Care & Inclusion,BUSH HOME LTD,04/05/2016,"1,568.64",73373-RESIDENTIAL & NURSING CARE PLACEMENTS,OP COMMISSIONING,Third Party Payments,Revenue
Walsall Council,http://opendatacommunities.org/id/metropolitan-district-council/walsall,WC68-530,31/05/2016,Social Care & Inclusion,BUSH HOME LTD,04/05/2016,"1,568.64",73373-RESIDENTIAL & NURSING CARE PLACEMENTS,MH COMMISSIONING,Third Party Payments,Revenue
Walsall Council,http://opendatacommunities.org/id/metropolitan-district-council/walsall,WC68-531,31/05/2016,Social Care & Inclusion,BUSH HOME LTD,04/05/2016,"1,568.64",73373-RESIDENTIAL & NURSING CARE PLACEMENTS,OP COMMISSIONING,Third Party Payments,Revenue
Walsall Council,http://opendatacommunities.org/id/metropolitan-district-council/walsall,WC68-532,31/05/2016,Social Care & Inclusion,BUSH HOME LTD,04/05/2016,"1,568.64",73373-RESIDENTIAL & NURSING CARE PLACEMENTS,OP COMMISSIONING,Third Party Payments,Revenue
Walsall Council,http://opendatacommunities.org/id/metropolitan-district-council/walsall,WC68-533,31/05/2016,Social Care & Inclusion,BUSH HOME LTD,04/05/2016,"1,568.64",73373-RESIDENTIAL & NURSING CARE PLACEMENTS,OP COMMISSIONING,Third Party Payments,Revenue
Walsall Council,http://opendatacommunities.org/id/metropolitan-district-council/walsall,WC68-534,31/05/2016,Social Care & Inclusion,BUSH HOME LTD,10/05/2016,"1,568.64",73373-RESIDENTIAL & NURSING CARE PLACEMENTS,OP COMMISSIONING,Third Party Payments,Revenue
Walsall Council,http://opendatacommunities.org/id/metropolitan-district-council/walsall,WC68-535,31/05/2016,Social Care & Inclusion,BUSH HOME LTD,10/05/2016,"1,568.64",73373-RESIDENTIAL & NURSING CARE PLACEMENTS,OP COMMISSIONING,Third Party Payments,Revenue
Walsall Council,http://opendatacommunities.org/id/metropolitan-district-council/walsall,WC68-536,31/05/2016,Social Care & Inclusion,BUSH HOME LTD,04/05/2016,"1,568.66",73373-RESIDENTIAL & NURSING CARE PLACEMENTS,MH COMMISSIONING,Third Party Payments,Revenue
Walsall Council,http://opendatacommunities.org/id/metropolitan-district-council/walsall,WC68-537,31/05/2016,Social Care & Inclusion,BUSH HOME LTD,04/05/2016,"1,592.64",73373-RESIDENTIAL & NURSING CARE PLACEMENTS,OP COMMISSIONING,Third Party Payments,Revenue
Walsall Council,http://opendatacommunities.org/id/metropolitan-district-council/walsall,WC68-538,31/05/2016,Social Care & Inclusion,BUSH HOME LTD,12/05/2016,"1,624.66",73373-RESIDENTIAL & NURSING CARE PLACEMENTS,OP COMMISSIONING,Third Party Payments,Revenue
Walsall Council,http://opendatacommunities.org/id/metropolitan-district-council/walsall,WC68-539,31/05/2016,Social Care & Inclusion,BUSH HOME LTD,12/05/2016,"1,680.68",73373-RESIDENTIAL & NURSING CARE PLACEMENTS,OP COMMISSIONING,Third Party Payments,Revenue
Walsall Council,http://opendatacommunities.org/id/metropolitan-district-council/walsall,WC68-540,31/05/2016,Social Care & Inclusion,BUSH HOME LTD,12/05/2016,"1,680.68",73373-RESIDENTIAL & NURSING CARE PLACEMENTS,OP COMMISSIONING,Third Party Payments,Revenue
Walsall Council,http://opendatacommunities.org/id/metropolitan-district-council/walsall,WC68-541,31/05/2016,Social Care & Inclusion,BUSH HOME LTD,12/05/2016,"1,736.71",73373-RESIDENTIAL & NURSING CARE PLACEMENTS,OP COMMISSIONING,Third Party Payments,Revenue
Walsall Council,http://opendatacommunities.org/id/metropolitan-district-council/walsall,WC68-542,31/05/2016,Social Care & Inclusion,BUSH HOME LTD,12/05/2016,"1,736.71",73373-RESIDENTIAL & NURSING CARE PLACEMENTS,OP COMMISSIONING,Third Party Payments,Revenue
Walsall Council,http://opendatacommunities.org/id/metropolitan-district-council/walsall,WC68-543,31/05/2016,Social Care & Inclusion,BUSH HOME LTD,12/05/2016,"1,736.71",73373-RESIDENTIAL & NURSING CARE PLACEMENTS,OP COMMISSIONING,Third Party Payments,Revenue
Walsall Council,http://opendatacommunities.org/id/metropolitan-district-council/walsall,WC68-544,31/05/2016,Childrens,BUSY BEES CHILDCARE LTD,09/05/2016,"7,537.16",66505-OTHER-GRANTS TO OTHER ORGS,EARLY YEARS - 3 YR OLDS,Third Party Payments,Revenue
Walsall Council,http://opendatacommunities.org/id/metropolitan-district-council/walsall,WC68-545,31/05/2016,Economy & Environment,BUXTONS LTD,16/05/2016,218,61500-CLOTHING & LAUNDRY,TREE TEAM,Supplies & Services,Revenue
Walsall Council,http://opendatacommunities.org/id/metropolitan-district-council/walsall,WC68-546,31/05/2016,Childrens,BY THE BRIDGE,10/05/2016,"6,121.39",74037-INDEPENDENT FOSTER CARE-OTH AGENCY PROVISION,EXTERNAL FOSTER CARE PROVISION,Third Party Payments,Revenue
Walsall Council,http://opendatacommunities.org/id/metropolitan-district-council/walsall,WC68-547,31/05/2016,Social Care & Inclusion,C & V ORCHARD MANOR LTD,17/05/2016,"1,314.46",73373-RESIDENTIAL & NURSING CARE PLACEMENTS,OP COMMISSIONING,Third Party Payments,Revenue
Walsall Council,http://opendatacommunities.org/id/metropolitan-district-council/walsall,WC68-548,31/05/2016,Social Care & Inclusion,C & V ORCHARD MANOR LTD,10/05/2016,"1,333.25",73373-RESIDENTIAL & NURSING CARE PLACEMENTS,OP COMMISSIONING,Third Party Payments,Revenue
Walsall Council,http://opendatacommunities.org/id/metropolitan-district-council/walsall,WC68-549,31/05/2016,Social Care & Inclusion,C & V ORCHARD MANOR LTD,10/05/2016,"1,333.25",73373-RESIDENTIAL & NURSING CARE PLACEMENTS,OP COMMISSIONING,Third Party Payments,Revenue
Walsall Council,http://opendatacommunities.org/id/metropolitan-district-council/walsall,WC68-550,31/05/2016,Social Care & Inclusion,C & V ORCHARD MANOR LTD,10/05/2016,"1,333.33",73373-RESIDENTIAL & NURSING CARE PLACEMENTS,LD COMMISSIONING,Third Party Payments,Revenue
Walsall Council,http://opendatacommunities.org/id/metropolitan-district-council/walsall,WC68-551,31/05/2016,Social Care & Inclusion,C & V ORCHARD MANOR LTD,10/05/2016,"1,333.33",73373-RESIDENTIAL & NURSING CARE PLACEMENTS,OP COMMISSIONING,Third Party Payments,Revenue
Walsall Council,http://opendatacommunities.org/id/metropolitan-district-council/walsall,WC68-552,31/05/2016,Social Care & Inclusion,C & V ORCHARD MANOR LTD,17/05/2016,"1,398.42",73373-RESIDENTIAL & NURSING CARE PLACEMENTS,OP COMMISSIONING,Third Party Payments,Revenue
Walsall Council,http://opendatacommunities.org/id/metropolitan-district-council/walsall,WC68-553,31/05/2016,Social Care & Inclusion,C & V ORCHARD MANOR LTD,10/05/2016,"1,400.53",73373-RESIDENTIAL & NURSING CARE PLACEMENTS,OP COMMISSIONING,Third Party Payments,Revenue
Walsall Council,http://opendatacommunities.org/id/metropolitan-district-council/walsall,WC68-554,31/05/2016,Social Care & Inclusion,C & V ORCHARD MANOR LTD,10/05/2016,"1,400.57",73373-RESIDENTIAL & NURSING CARE PLACEMENTS,OP COMMISSIONING,Third Party Payments,Revenue
Walsall Council,http://opendatacommunities.org/id/metropolitan-district-council/walsall,WC68-555,31/05/2016,Social Care & Inclusion,C & V ORCHARD MANOR LTD,10/05/2016,"1,400.57",73373-RESIDENTIAL & NURSING CARE PLACEMENTS,MH COMMISSIONING,Third Party Payments,Revenue
Walsall Council,http://opendatacommunities.org/id/metropolitan-district-council/walsall,WC68-556,31/05/2016,Social Care & Inclusion,C & V ORCHARD MANOR LTD,04/05/2016,"4,930.01",73373-RESIDENTIAL & NURSING CARE PLACEMENTS,MH COMMISSIONING,Third Party Payments,Revenue
Walsall Council,http://opendatacommunities.org/id/metropolitan-district-council/walsall,WC68-557,31/05/2016,Social Care & Inclusion,C & V ORCHARD RESIDENTIAL LTD,04/05/2016,"1,279.92",73373-RESIDENTIAL & NURSING CARE PLACEMENTS,OP COMMISSIONING,Third Party Payments,Revenue
Walsall Council,http://opendatacommunities.org/id/metropolitan-district-council/walsall,WC68-558,31/05/2016,Social Care & Inclusion,C & V ORCHARD RESIDENTIAL LTD,04/05/2016,"1,333.25",73373-RESIDENTIAL & NURSING CARE PLACEMENTS,OP COMMISSIONING,Third Party Payments,Revenue
Walsall Council,http://opendatacommunities.org/id/metropolitan-district-council/walsall,WC68-559,31/05/2016,Social Care & Inclusion,C & V ORCHARD RESIDENTIAL LTD,10/05/2016,"1,333.25",73373-RESIDENTIAL & NURSING CARE PLACEMENTS,OP COMMISSIONING,Third Party Payments,Revenue
Walsall Council,http://opendatacommunities.org/id/metropolitan-district-council/walsall,WC68-560,31/05/2016,Social Care & Inclusion,C & V ORCHARD RESIDENTIAL LTD,04/05/2016,"1,342.53",73373-RESIDENTIAL & NURSING CARE PLACEMENTS,OP COMMISSIONING,Third Party Payments,Revenue
Walsall Council,http://opendatacommunities.org/id/metropolitan-district-council/walsall,WC68-561,31/05/2016,Social Care & Inclusion,C & V ORCHARD RESIDENTIAL LTD,04/05/2016,"1,342.53",73373-RESIDENTIAL & NURSING CARE PLACEMENTS,OP COMMISSIONING,Third Party Payments,Revenue
Walsall Council,http://opendatacommunities.org/id/metropolitan-district-council/walsall,WC68-562,31/05/2016,Social Care & Inclusion,C & V ORCHARD RESIDENTIAL LTD,04/05/2016,"1,344.51",73373-RESIDENTIAL & NURSING CARE PLACEMENTS,OP COMMISSIONING,Third Party Payments,Revenue
Walsall Council,http://opendatacommunities.org/id/metropolitan-district-council/walsall,WC68-563,31/05/2016,Social Care & Inclusion,C & V ORCHARD RESIDENTIAL LTD,04/05/2016,"1,344.54",73373-RESIDENTIAL & NURSING CARE PLACEMENTS,OP COMMISSIONING,Third Party Payments,Revenue
Walsall Council,http://opendatacommunities.org/id/metropolitan-district-council/walsall,WC68-564,31/05/2016,Social Care & Inclusion,C & V ORCHARD RESIDENTIAL LTD,04/05/2016,"1,344.54",73373-RESIDENTIAL & NURSING CARE PLACEMENTS,OP COMMISSIONING,Third Party Payments,Revenue
Walsall Council,http://opendatacommunities.org/id/metropolitan-district-council/walsall,WC68-565,31/05/2016,Social Care & Inclusion,C & V ORCHARD RESIDENTIAL LTD,04/05/2016,"1,344.54",73373-RESIDENTIAL & NURSING CARE PLACEMENTS,OP COMMISSIONING,Third Party Payments,Revenue
Walsall Council,http://opendatacommunities.org/id/metropolitan-district-council/walsall,WC68-566,31/05/2016,Social Care & Inclusion,C & V ORCHARD RESIDENTIAL LTD,04/05/2016,"1,344.55",73373-RESIDENTIAL & NURSING CARE PLACEMENTS,OP COMMISSIONING,Third Party Payments,Revenue
Walsall Council,http://opendatacommunities.org/id/metropolitan-district-council/walsall,WC68-567,31/05/2016,Social Care & Inclusion,C & V ORCHARD RESIDENTIAL LTD,04/05/2016,"1,398.34",73373-RESIDENTIAL & NURSING CARE PLACEMENTS,OP COMMISSIONING,Third Party Payments,Revenue
Walsall Council,http://opendatacommunities.org/id/metropolitan-district-council/walsall,WC68-568,31/05/2016,Social Care & Inclusion,C & V ORCHARD RESIDENTIAL LTD,04/05/2016,"1,398.38",73373-RESIDENTIAL & NURSING CARE PLACEMENTS,OP COMMISSIONING,Third Party Payments,Revenue
Walsall Council,http://opendatacommunities.org/id/metropolitan-district-council/walsall,WC68-569,31/05/2016,Social Care & Inclusion,C & V ORCHARD RESIDENTIAL LTD,04/05/2016,"1,398.46",73373-RESIDENTIAL & NURSING CARE PLACEMENTS,OP COMMISSIONING,Third Party Payments,Revenue
Walsall Council,http://opendatacommunities.org/id/metropolitan-district-council/walsall,WC68-570,31/05/2016,Social Care & Inclusion,C & V ORCHARD RESIDENTIAL LTD,04/05/2016,"1,400.53",73373-RESIDENTIAL & NURSING CARE PLACEMENTS,OP COMMISSIONING,Third Party Payments,Revenue
Walsall Council,http://opendatacommunities.org/id/metropolitan-district-council/walsall,WC68-571,31/05/2016,Social Care & Inclusion,C & V ORCHARD RESIDENTIAL LTD,04/05/2016,"1,400.53",73373-RESIDENTIAL & NURSING CARE PLACEMENTS,OP COMMISSIONING,Third Party Payments,Revenue
Walsall Council,http://opendatacommunities.org/id/metropolitan-district-council/walsall,WC68-572,31/05/2016,Social Care & Inclusion,C & V ORCHARD RESIDENTIAL LTD,04/05/2016,"1,400.57",73373-RESIDENTIAL & NURSING CARE PLACEMENTS,OP COMMISSIONING,Third Party Payments,Revenue
Walsall Council,http://opendatacommunities.org/id/metropolitan-district-council/walsall,WC68-573,31/05/2016,Social Care & Inclusion,C & V ORCHARD RESIDENTIAL LTD,04/05/2016,"7,619.11",73373-RESIDENTIAL & NURSING CARE PLACEMENTS,OP COMMISSIONING,Third Party Payments,Revenue
Walsall Council,http://opendatacommunities.org/id/metropolitan-district-council/walsall,WC68-574,31/05/2016,Economy & Environment,C ART ART TRANSPORT LTD,06/05/2016,345,73032-TRANSPORTATION-PRIV CONTRACTOR FEES,NAG - TEMPORARY EXHIBITIONS,Third Party Payments,Revenue
Walsall Council,http://opendatacommunities.org/id/metropolitan-district-council/walsall,WC68-575,31/05/2016,Childrens,REDACTED,23/05/2016,"4,317.64",62515-MISCELLANEOUS SUPPLIES,INTERNAL FOSTER CARE PROVISION,Supplies & Services,Revenue
Walsall Council,http://opendatacommunities.org/id/metropolitan-district-council/walsall,WC68-576,31/05/2016,Childrens,REDACTED,23/05/2016,"4,877.96",74006-HOLIDAY/CHRISTMAS ALLOWANCE-FOSTER CARERS-OTH AGENCY PROVISION,INTERNAL FOSTER CARE PROVISION,Third Party Payments,Revenue
Walsall Council,http://opendatacommunities.org/id/metropolitan-district-council/walsall,WC68-577,31/05/2016,Childrens,REDACTED,23/05/2016,"1,445.32",62515-MISCELLANEOUS SUPPLIES,INTERNAL FOSTER CARE PROVISION,Supplies & Services,Revenue
Walsall Council,http://opendatacommunities.org/id/metropolitan-district-council/walsall,WC68-578,31/05/2016,Childrens,REDACTED,23/05/2016,"1,620.64",74006-HOLIDAY/CHRISTMAS ALLOWANCE-FOSTER CARERS-OTH AGENCY PROVISION,INTERNAL FOSTER CARE PROVISION,Third Party Payments,Revenue
Walsall Council,http://opendatacommunities.org/id/metropolitan-district-council/walsall,WC68-579,31/05/2016,Economy & Environment,C P DAVIDSON & SONS LTD,01/05/2016,215.64,60500-GENERAL MATERIALS,FLEET,Supplies & Services,Revenue
Walsall Council,http://opendatacommunities.org/id/metropolitan-district-council/walsall,WC68-580,31/05/2016,Economy & Environment,C P DAVIDSON & SONS LTD,25/05/2016,321.57,60514-MATERIALS TO STORES,FLEET PARTS STOCK ACCOUNT,Supplies & Services,Revenue
Walsall Council,http://opendatacommunities.org/id/metropolitan-district-council/walsall,WC68-581,31/05/2016,Economy & Environment,C P DAVIDSON & SONS LTD,10/05/2016,357.5,73025-PROFESSIONAL SERVICES-PRIV CONTRACTOR & OTHER AGENCIES,FLEET,Third Party Payments,Revenue
Walsall Council,http://opendatacommunities.org/id/metropolitan-district-council/walsall,WC68-582,31/05/2016,Economy & Environment,C P DAVIDSON & SONS LTD,24/05/2016,424.26,60500-GENERAL MATERIALS,FLEET,Supplies & Services,Revenue
Walsall Council,http://opendatacommunities.org/id/metropolitan-district-council/walsall,WC68-583,31/05/2016,Economy & Environment,C P DAVIDSON & SONS LTD,01/05/2016,"1,002.06",60500-GENERAL MATERIALS,FLEET,Supplies & Services,Revenue
Walsall Council,http://opendatacommunities.org/id/metropolitan-district-council/walsall,WC68-584,31/05/2016,Childrens,REDACTED,09/05/2016,"1,142.88",74006-HOLIDAY/CHRISTMAS ALLOWANCE-FOSTER CARERS-OTH AGENCY PROVISION,INTERNAL FOSTER CARE PROVISION,Third Party Payments,Revenue
Walsall Council,http://opendatacommunities.org/id/metropolitan-district-council/walsall,WC68-585,31/05/2016,Economy & Environment,REDACTED,23/05/2016,537.5,63000-PROFESSIONAL FEES AND SERVICES,NAG - TEMPORARY EXHIBITIONS,Supplies & Services,Revenue
Walsall Council,http://opendatacommunities.org/id/metropolitan-district-council/walsall,WC68-586,31/05/2016,Social Care & Inclusion,CALDMORE AREA HOUSING ASS LTD,27/05/2016,400.52,73372-DOMICILIARY CARE,MH COMMISSIONING,Third Party Payments,Revenue
Walsall Council,http://opendatacommunities.org/id/metropolitan-district-council/walsall,WC68-587,31/05/2016,Social Care & Inclusion,CALDMORE AREA HOUSING ASS LTD,27/05/2016,504.56,73374-SUPPORTED & OTHER ACCOMMODATION,MH COMMISSIONING,Third Party Payments,Revenue
Walsall Council,http://opendatacommunities.org/id/metropolitan-district-council/walsall,WC68-588,31/05/2016,Social Care & Inclusion,CALDMORE AREA HOUSING ASS LTD,27/05/2016,626.5,73374-SUPPORTED & OTHER ACCOMMODATION,MH COMMISSIONING,Third Party Payments,Revenue
Walsall Council,http://opendatacommunities.org/id/metropolitan-district-council/walsall,WC68-589,31/05/2016,Social Care & Inclusion,CALDMORE AREA HOUSING ASS LTD,27/05/2016,638.6,73374-SUPPORTED & OTHER ACCOMMODATION,MH COMMISSIONING,Third Party Payments,Revenue
Walsall Council,http://opendatacommunities.org/id/metropolitan-district-council/walsall,WC68-590,31/05/2016,Social Care & Inclusion,CALDMORE AREA HOUSING ASS LTD,27/05/2016,638.6,73374-SUPPORTED & OTHER ACCOMMODATION,MH COMMISSIONING,Third Party Payments,Revenue
Walsall Council,http://opendatacommunities.org/id/metropolitan-district-council/walsall,WC68-591,31/05/2016,Social Care & Inclusion,CALDMORE AREA HOUSING ASS LTD,27/05/2016,654.87,73374-SUPPORTED & OTHER ACCOMMODATION,MH COMMISSIONING,Third Party Payments,Revenue
Walsall Council,http://opendatacommunities.org/id/metropolitan-district-council/walsall,WC68-592,31/05/2016,Social Care & Inclusion,CALDMORE AREA HOUSING ASS LTD,27/05/2016,"1,180.60",73374-SUPPORTED & OTHER ACCOMMODATION,MH COMMISSIONING,Third Party Payments,Revenue
Walsall Council,http://opendatacommunities.org/id/metropolitan-district-council/walsall,WC68-593,31/05/2016,Social Care & Inclusion,CALDMORE AREA HOUSING ASS LTD,27/05/2016,"1,227.85",73374-SUPPORTED & OTHER ACCOMMODATION,MH COMMISSIONING,Third Party Payments,Revenue
Walsall Council,http://opendatacommunities.org/id/metropolitan-district-council/walsall,WC68-594,31/05/2016,Social Care & Inclusion,CALDMORE AREA HOUSING ASS LTD,27/05/2016,"1,393.14",73374-SUPPORTED & OTHER ACCOMMODATION,MH COMMISSIONING,Third Party Payments,Revenue
Walsall Council,http://opendatacommunities.org/id/metropolitan-district-council/walsall,WC68-595,31/05/2016,Social Care & Inclusion,CALDMORE AREA HOUSING ASS LTD,17/05/2016,"1,560.00",70000-SOCIAL SERVICES-FEES TO VOLUNTARY BODIES,COMPLEX NEEDS CONTRACTS/SLA's,Third Party Payments,Revenue
Walsall Council,http://opendatacommunities.org/id/metropolitan-district-council/walsall,WC68-596,31/05/2016,Social Care & Inclusion,CALDMORE AREA HOUSING ASS LTD,27/05/2016,"1,567.85",73374-SUPPORTED & OTHER ACCOMMODATION,MH COMMISSIONING,Third Party Payments,Revenue
Walsall Council,http://opendatacommunities.org/id/metropolitan-district-council/walsall,WC68-597,31/05/2016,Social Care & Inclusion,CALDMORE AREA HOUSING ASS LTD,25/05/2016,"2,804.44",73373-RESIDENTIAL & NURSING CARE PLACEMENTS,MH COMMISSIONING,Third Party Payments,Revenue
Walsall Council,http://opendatacommunities.org/id/metropolitan-district-council/walsall,WC68-598,31/05/2016,Social Care & Inclusion,CALDMORE AREA HOUSING ASS LTD,25/05/2016,"2,804.44",73373-RESIDENTIAL & NURSING CARE PLACEMENTS,MH COMMISSIONING,Third Party Payments,Revenue
Walsall Council,http://opendatacommunities.org/id/metropolitan-district-council/walsall,WC68-599,31/05/2016,Social Care & Inclusion,CALDMORE AREA HOUSING ASS LTD,25/05/2016,"2,804.44",73373-RESIDENTIAL & NURSING CARE PLACEMENTS,MH COMMISSIONING,Third Party Payments,Revenue
Walsall Council,http://opendatacommunities.org/id/metropolitan-district-council/walsall,WC68-600,31/05/2016,Social Care & Inclusion,CALDMORE AREA HOUSING ASS LTD,25/05/2016,"2,804.44",73373-RESIDENTIAL & NURSING CARE PLACEMENTS,MH COMMISSIONING,Third Party Payments,Revenue
Walsall Council,http://opendatacommunities.org/id/metropolitan-district-council/walsall,WC68-601,31/05/2016,Social Care & Inclusion,CALDMORE AREA HOUSING ASS LTD,25/05/2016,"2,804.44",73373-RESIDENTIAL & NURSING CARE PLACEMENTS,MH COMMISSIONING,Third Party Payments,Revenue
Walsall Council,http://opendatacommunities.org/id/metropolitan-district-council/walsall,WC68-602,31/05/2016,Social Care & Inclusion,CALDMORE AREA HOUSING ASS LTD,25/05/2016,"2,804.44",73373-RESIDENTIAL & NURSING CARE PLACEMENTS,MH COMMISSIONING,Third Party Payments,Revenue
Walsall Council,http://opendatacommunities.org/id/metropolitan-district-council/walsall,WC68-603,31/05/2016,Social Care & Inclusion,CALDMORE AREA HOUSING ASS LTD,25/05/2016,"2,804.44",73373-RESIDENTIAL & NURSING CARE PLACEMENTS,MH COMMISSIONING,Third Party Payments,Revenue
Walsall Council,http://opendatacommunities.org/id/metropolitan-district-council/walsall,WC68-604,31/05/2016,Social Care & Inclusion,CALDMORE AREA HOUSING ASS LTD,25/05/2016,"2,804.44",73373-RESIDENTIAL & NURSING CARE PLACEMENTS,MH COMMISSIONING,Third Party Payments,Revenue
Walsall Council,http://opendatacommunities.org/id/metropolitan-district-council/walsall,WC68-605,31/05/2016,Social Care & Inclusion,CALDMORE AREA HOUSING ASS LTD,25/05/2016,"2,804.44",73373-RESIDENTIAL & NURSING CARE PLACEMENTS,MH COMMISSIONING,Third Party Payments,Revenue
Walsall Council,http://opendatacommunities.org/id/metropolitan-district-council/walsall,WC68-606,31/05/2016,Change and Governance,CALDMORE VILLAGE FESTIVAL GROUP,05/05/2016,"2,389.00",60500-GENERAL MATERIALS,AREA 4 - WALSALL SOUTH,Supplies & Services,Revenue
Walsall Council,http://opendatacommunities.org/id/metropolitan-district-council/walsall,WC68-607,31/05/2016,Change and Governance,CALL PRINT GROUP LIMITED,18/05/2016,"3,395.00",62008-OUTWORK-PRINT ROOM,PRINTING SERVICES,Supplies & Services,Revenue
Walsall Council,http://opendatacommunities.org/id/metropolitan-district-council/walsall,WC68-608,31/05/2016,Childrens,REDACTED,09/05/2016,372.84,74006-HOLIDAY/CHRISTMAS ALLOWANCE-FOSTER CARERS-OTH AGENCY PROVISION,INTERNAL FOSTER CARE PROVISION,Third Party Payments,Revenue
Walsall Council,http://opendatacommunities.org/id/metropolitan-district-council/walsall,WC68-609,31/05/2016,Childrens,REDACTED,09/05/2016,287.7,76422-DIRECT PAYMENTS TO SOCIAL SERVICES CLIENTS,FAMILY SUPPORT - DIRECT PAYMENTS,Transfer Payments,Revenue
Walsall Council,http://opendatacommunities.org/id/metropolitan-district-council/walsall,WC68-610,31/05/2016,Childrens,CAMBIAN CHILDCARE LIMITED,11/05/2016,"-1,577.68",74037-INDEPENDENT FOSTER CARE-OTH AGENCY PROVISION,EXTERNAL FOSTER CARE PROVISION,Third Party Payments,Revenue
Walsall Council,http://opendatacommunities.org/id/metropolitan-district-council/walsall,WC68-611,31/05/2016,Childrens,CAMBIAN CHILDCARE LIMITED,11/05/2016,"-1,516.61",74037-INDEPENDENT FOSTER CARE-OTH AGENCY PROVISION,EXTERNAL FOSTER CARE PROVISION,Third Party Payments,Revenue
Walsall Council,http://opendatacommunities.org/id/metropolitan-district-council/walsall,WC68-612,31/05/2016,Childrens,CAMBIAN CHILDCARE LIMITED,11/05/2016,"-1,516.61",74037-INDEPENDENT FOSTER CARE-OTH AGENCY PROVISION,EXTERNAL FOSTER CARE PROVISION,Third Party Payments,Revenue
Walsall Council,http://opendatacommunities.org/id/metropolitan-district-council/walsall,WC68-613,31/05/2016,Childrens,CAMBIAN CHILDCARE LIMITED,11/05/2016,"-1,404.64",74037-INDEPENDENT FOSTER CARE-OTH AGENCY PROVISION,EXTERNAL FOSTER CARE PROVISION,Third Party Payments,Revenue
Walsall Council,http://opendatacommunities.org/id/metropolitan-district-council/walsall,WC68-614,31/05/2016,Childrens,CAMBIAN CHILDCARE LIMITED,09/05/2016,"2,657.01",74036-EXTERNAL RESIDENTIAL CARE-OTH AGENCY PROVISION,INDEPENDENT RESIDENTIAL HOMES,Third Party Payments,Revenue
Walsall Council,http://opendatacommunities.org/id/metropolitan-district-council/walsall,WC68-615,31/05/2016,Childrens,CAMBIAN CHILDCARE LIMITED,09/05/2016,"2,902.93",74037-INDEPENDENT FOSTER CARE-OTH AGENCY PROVISION,EXTERNAL FOSTER CARE PROVISION,Third Party Payments,Revenue
Walsall Council,http://opendatacommunities.org/id/metropolitan-district-council/walsall,WC68-616,31/05/2016,Childrens,CAMBIAN CHILDCARE LIMITED,23/05/2016,"3,049.50",74037-INDEPENDENT FOSTER CARE-OTH AGENCY PROVISION,EXTERNAL FOSTER CARE PROVISION,Third Party Payments,Revenue
Walsall Council,http://opendatacommunities.org/id/metropolitan-district-council/walsall,WC68-617,31/05/2016,Childrens,CAMBIAN CHILDCARE LIMITED,09/05/2016,"3,134.32",74037-INDEPENDENT FOSTER CARE-OTH AGENCY PROVISION,EXTERNAL FOSTER CARE PROVISION,Third Party Payments,Revenue
Walsall Council,http://opendatacommunities.org/id/metropolitan-district-council/walsall,WC68-618,31/05/2016,Childrens,CAMBIAN CHILDCARE LIMITED,09/05/2016,"3,134.32",74037-INDEPENDENT FOSTER CARE-OTH AGENCY PROVISION,EXTERNAL FOSTER CARE PROVISION,Third Party Payments,Revenue
Walsall Council,http://opendatacommunities.org/id/metropolitan-district-council/walsall,WC68-619,31/05/2016,Childrens,CAMBIAN CHILDCARE LIMITED,09/05/2016,"3,253.20",74037-INDEPENDENT FOSTER CARE-OTH AGENCY PROVISION,EXTERNAL FOSTER CARE PROVISION,Third Party Payments,Revenue
Walsall Council,http://opendatacommunities.org/id/metropolitan-district-council/walsall,WC68-620,31/05/2016,Childrens,CAMBIAN CHILDCARE LIMITED,09/05/2016,"3,260.54",74037-INDEPENDENT FOSTER CARE-OTH AGENCY PROVISION,EXTERNAL FOSTER CARE PROVISION,Third Party Payments,Revenue
Walsall Council,http://opendatacommunities.org/id/metropolitan-district-council/walsall,WC68-621,31/05/2016,Childrens,CAMBIAN CHILDCARE LIMITED,23/05/2016,"4,787.14",74037-INDEPENDENT FOSTER CARE-OTH AGENCY PROVISION,EXTERNAL FOSTER CARE PROVISION,Third Party Payments,Revenue
Walsall Council,http://opendatacommunities.org/id/metropolitan-district-council/walsall,WC68-622,31/05/2016,Childrens,CAMBIAN CHILDCARE LIMITED,23/05/2016,"4,946.71",74037-INDEPENDENT FOSTER CARE-OTH AGENCY PROVISION,EXTERNAL FOSTER CARE PROVISION,Third Party Payments,Revenue
Walsall Council,http://opendatacommunities.org/id/metropolitan-district-council/walsall,WC68-623,31/05/2016,Childrens,CAMBIAN CHILDCARE LIMITED,09/05/2016,"14,339.67",74036-EXTERNAL RESIDENTIAL CARE-OTH AGENCY PROVISION,INDEPENDENT RESIDENTIAL HOMES,Third Party Payments,Revenue
Walsall Council,http://opendatacommunities.org/id/metropolitan-district-council/walsall,WC68-624,31/05/2016,Social Care & Inclusion,CAMBIAN HEALTHCARE LTD,13/05/2016,348.13,73375-IN PATIENT BEDS,LD COMMISSIONING,Third Party Payments,Revenue
Walsall Council,http://opendatacommunities.org/id/metropolitan-district-council/walsall,WC68-625,31/05/2016,Social Care & Inclusion,CAMBIAN HEALTHCARE LTD,13/05/2016,"13,385.80",73375-IN PATIENT BEDS,LD COMMISSIONING,Third Party Payments,Revenue
Walsall Council,http://opendatacommunities.org/id/metropolitan-district-council/walsall,WC68-626,31/05/2016,Social Care & Inclusion,CAMBIAN LEARNING DISABILITES MIDLANDS LIMITED,13/05/2016,274.5,73375-IN PATIENT BEDS,LD COMMISSIONING,Third Party Payments,Revenue
Walsall Council,http://opendatacommunities.org/id/metropolitan-district-council/walsall,WC68-627,31/05/2016,Social Care & Inclusion,CAMBIAN LEARNING DISABILITES MIDLANDS LIMITED,13/05/2016,283.65,73375-IN PATIENT BEDS,LD COMMISSIONING,Third Party Payments,Revenue
Walsall Council,http://opendatacommunities.org/id/metropolitan-district-council/walsall,WC68-628,31/05/2016,Social Care & Inclusion,CAMBIAN LEARNING DISABILITES MIDLANDS LIMITED,13/05/2016,"10,557.00",73375-IN PATIENT BEDS,LD COMMISSIONING,Third Party Payments,Revenue
Walsall Council,http://opendatacommunities.org/id/metropolitan-district-council/walsall,WC68-629,31/05/2016,Social Care & Inclusion,CAMBIAN LEARNING DISABILITES MIDLANDS LIMITED,13/05/2016,"10,908.90",73375-IN PATIENT BEDS,LD COMMISSIONING,Third Party Payments,Revenue
Walsall Council,http://opendatacommunities.org/id/metropolitan-district-council/walsall,WC68-630,31/05/2016,Childrens,CAMBIAN WHINFELL SCHOOLS LTD,10/05/2016,"13,807.73",63000-PROFESSIONAL FEES AND SERVICES,INDEPENDENT PROVIDERS - SPECIAL & AP,Supplies & Services,Revenue
Walsall Council,http://opendatacommunities.org/id/metropolitan-district-council/walsall,WC68-631,31/05/2016,Childrens,CAMBIAN WHINFELL SCHOOLS LTD,24/05/2016,"13,807.73",63000-PROFESSIONAL FEES AND SERVICES,INDEPENDENT PROVIDERS - SPECIAL & AP,Supplies & Services,Revenue
Walsall Council,http://opendatacommunities.org/id/metropolitan-district-council/walsall,WC68-632,31/05/2016,Childrens,CAMBIAN WHINFELL SCHOOLS LTD,10/05/2016,"26,508.77",63000-PROFESSIONAL FEES AND SERVICES,INDEPENDENT PROVIDERS - SPECIAL & AP,Supplies & Services,Revenue
Walsall Council,http://opendatacommunities.org/id/metropolitan-district-council/walsall,WC68-633,31/05/2016,Economy & Environment,CAMBRIDGESHIRE COMMUNITY SERVICES,06/05/2016,261.15,63000-PROFESSIONAL FEES AND SERVICES,SEXUAL HEALTH,Supplies & Services,Revenue
Walsall Council,http://opendatacommunities.org/id/metropolitan-district-council/walsall,WC68-634,31/05/2016,Economy & Environment,CANAL & RIVER TRUST,12/05/2016,"139,808.90",01006-SITE WORKS MAIN CONTRACTORS,CFR 1121 MANAGING SHORT TRIPS,Capital,Capital
Walsall Council,http://opendatacommunities.org/id/metropolitan-district-council/walsall,WC68-635,31/05/2016,Social Care & Inclusion,REDACTED,09/05/2016,"3,600.00",76422-DIRECT PAYMENTS TO SOCIAL SERVICES CLIENTS,OP COMMISSIONING,Transfer Payments,Revenue
Walsall Council,http://opendatacommunities.org/id/metropolitan-district-council/walsall,WC68-636,31/05/2016,Change and Governance,CAPITA BUSINESS SERVICES LTD 001,18/05/2016,"6,497.50",63800-COMPUTER EQUIPMENT AND SUPPLIES,RECHARGEABLE EQUIPMENT,Supplies & Services,Revenue
Walsall Council,http://opendatacommunities.org/id/metropolitan-district-council/walsall,WC68-637,31/05/2016,Change and Governance,CAPITA BUSINESS SERVICES LTD 001,18/05/2016,"12,497.50",63800-COMPUTER EQUIPMENT AND SUPPLIES,RECHARGEABLE EQUIPMENT,Supplies & Services,Revenue
Walsall Council,http://opendatacommunities.org/id/metropolitan-district-council/walsall,WC68-638,31/05/2016,Change and Governance,CAPITA SPECIALIST INSURANCE SOLUTIONS,01/05/2016,"43,208.54",67000-MISC INSURANCES - INSURANCE PREMIUMS,RISK & INSURANCE,Supplies & Services,Revenue
Walsall Council,http://opendatacommunities.org/id/metropolitan-district-council/walsall,WC68-639,31/05/2016,Change and Governance,CAPITA SPECIALIST INSURANCE SOLUTIONS,12/05/2016,"45,501.85",67000-MISC INSURANCES - INSURANCE PREMIUMS,RISK & INSURANCE,Supplies & Services,Revenue
Walsall Council,http://opendatacommunities.org/id/metropolitan-district-council/walsall,WC68-640,31/05/2016,Childrens,CAPSTONE FOSTER CARE (SOUTH EAST) LIMITED,23/05/2016,-285.75,74037-INDEPENDENT FOSTER CARE-OTH AGENCY PROVISION,EXTERNAL FOSTER CARE PROVISION,Third Party Payments,Revenue
Walsall Council,http://opendatacommunities.org/id/metropolitan-district-council/walsall,WC68-641,31/05/2016,Childrens,CAPSTONE FOSTER CARE (SOUTH EAST) LIMITED,18/05/2016,"1,979.31",74037-INDEPENDENT FOSTER CARE-OTH AGENCY PROVISION,EXTERNAL FOSTER CARE PROVISION,Third Party Payments,Revenue
Walsall Council,http://opendatacommunities.org/id/metropolitan-district-council/walsall,WC68-642,31/05/2016,Childrens,CAPSTONE FOSTER CARE (SOUTH EAST) LIMITED,23/05/2016,"2,839.25",74037-INDEPENDENT FOSTER CARE-OTH AGENCY PROVISION,EXTERNAL FOSTER CARE PROVISION,Third Party Payments,Revenue
Walsall Council,http://opendatacommunities.org/id/metropolitan-district-council/walsall,WC68-643,31/05/2016,Social Care & Inclusion,CARE 2 U LIMITED,25/05/2016,"36,616.45",73372-DOMICILIARY CARE,OP COMMISSIONING,Third Party Payments,Revenue
Walsall Council,http://opendatacommunities.org/id/metropolitan-district-council/walsall,WC68-644,31/05/2016,Childrens,CARE 4 CHILDREN RESIDENTIAL SERVICES LTD,09/05/2016,"16,500.00",74036-EXTERNAL RESIDENTIAL CARE-OTH AGENCY PROVISION,INDEPENDENT RESIDENTIAL HOMES,Third Party Payments,Revenue
Walsall Council,http://opendatacommunities.org/id/metropolitan-district-council/walsall,WC68-645,31/05/2016,Childrens,CARE 4 CHILDREN RESIDENTIAL SERVICES LTD,09/05/2016,"17,050.00",74036-EXTERNAL RESIDENTIAL CARE-OTH AGENCY PROVISION,INDEPENDENT RESIDENTIAL HOMES,Third Party Payments,Revenue
Walsall Council,http://opendatacommunities.org/id/metropolitan-district-council/walsall,WC68-646,31/05/2016,Social Care & Inclusion,CARE AVENUES LTD,25/05/2016,"15,869.75",73372-DOMICILIARY CARE,OP COMMISSIONING,Third Party Payments,Revenue
Walsall Council,http://opendatacommunities.org/id/metropolitan-district-council/walsall,WC68-647,31/05/2016,Social Care & Inclusion,CARE FIRST MANAGEMENT SERVICES LTD,10/05/2016,936,73372-DOMICILIARY CARE,YADS COMMISSIONING,Third Party Payments,Revenue
Walsall Council,http://opendatacommunities.org/id/metropolitan-district-council/walsall,WC68-648,31/05/2016,Childrens,CARE LEAVERS,25/05/2016,21.73,63114-OTHER FEES & LICENCES-SERVICES-FEES,TRANSITION AND LEAVING CARE,Supplies & Services,Revenue
Walsall Council,http://opendatacommunities.org/id/metropolitan-district-council/walsall,WC68-649,31/05/2016,Childrens,CARE LEAVERS,25/05/2016,333.69,76010-ACCOMMODATION AND RELATED COSTS-ASSISTANCE TO S/S CLIENTS,TRANSITION AND LEAVING CARE,Transfer Payments,Revenue
Walsall Council,http://opendatacommunities.org/id/metropolitan-district-council/walsall,WC68-650,31/05/2016,Childrens,CARE LEAVERS,25/05/2016,"3,172.78",64002-OTHER EXPENSES-EXPENSES,TRANSITION AND LEAVING CARE,Supplies & Services,Revenue
Walsall Council,http://opendatacommunities.org/id/metropolitan-district-council/walsall,WC68-651,31/05/2016,Childrens,CARE LEAVERS,25/05/2016,"4,884.50",76400-RESIDENTS PERSONAL EXPENSES-ALLOWANCES TO S/S CLIENTS,TRANSITION AND LEAVING CARE,Transfer Payments,Revenue
Walsall Council,http://opendatacommunities.org/id/metropolitan-district-council/walsall,WC68-652,31/05/2016,Childrens,CARE LEAVERS,25/05/2016,"7,919.55",74500-CARE LEAVERS MTCE PAYMENTS,TRANSITION AND LEAVING CARE,Third Party Payments,Revenue
Walsall Council,http://opendatacommunities.org/id/metropolitan-district-council/walsall,WC68-653,31/05/2016,Social Care & Inclusion,CARE SHOP,13/05/2016,268.5,60539-CLEANING MATERIALS,COMMUNITY INTERMEDIATE CARE,Supplies & Services,Revenue
Walsall Council,http://opendatacommunities.org/id/metropolitan-district-council/walsall,WC68-654,31/05/2016,Social Care & Inclusion,CARE SHOP,13/05/2016,651.73,60539-CLEANING MATERIALS,REABLEMENT TEAM - HOLLY BANK,Supplies & Services,Revenue
Walsall Council,http://opendatacommunities.org/id/metropolitan-district-council/walsall,WC68-655,31/05/2016,Social Care & Inclusion,CARE SHOP,01/05/2016,662.3,60539-CLEANING MATERIALS,COMMUNITY INTERMEDIATE CARE,Supplies & Services,Revenue
Walsall Council,http://opendatacommunities.org/id/metropolitan-district-council/walsall,WC68-656,31/05/2016,Childrens,CARE TODAY CHILDRENS SERVICES,09/05/2016,"11,121.30",74036-EXTERNAL RESIDENTIAL CARE-OTH AGENCY PROVISION,INDEPENDENT RESIDENTIAL HOMES,Third Party Payments,Revenue
Walsall Council,http://opendatacommunities.org/id/metropolitan-district-council/walsall,WC68-657,31/05/2016,Childrens,CARE TODAY CHILDRENS SERVICES,09/05/2016,"11,121.30",74036-EXTERNAL RESIDENTIAL CARE-OTH AGENCY PROVISION,INDEPENDENT RESIDENTIAL HOMES,Third Party Payments,Revenue
Walsall Council,http://opendatacommunities.org/id/metropolitan-district-council/walsall,WC68-658,31/05/2016,Childrens,CARE TODAY CHILDRENS SERVICES,09/05/2016,"13,641.30",74036-EXTERNAL RESIDENTIAL CARE-OTH AGENCY PROVISION,INDEPENDENT RESIDENTIAL HOMES,Third Party Payments,Revenue
Walsall Council,http://opendatacommunities.org/id/metropolitan-district-council/walsall,WC68-659,31/05/2016,Childrens,CAREFIRST SERVICES LIMITED,27/05/2016,"1,933.66",74036-EXTERNAL RESIDENTIAL CARE-OTH AGENCY PROVISION,INDEPENDENT RESIDENTIAL HOMES,Third Party Payments,Revenue
Walsall Council,http://opendatacommunities.org/id/metropolitan-district-council/walsall,WC68-660,31/05/2016,Childrens,CAREFIRST SERVICES LIMITED,13/05/2016,"2,046.16",76010-ACCOMMODATION AND RELATED COSTS-ASSISTANCE TO S/S CLIENTS,TRANSITION AND LEAVING CARE,Transfer Payments,Revenue
Walsall Council,http://opendatacommunities.org/id/metropolitan-district-council/walsall,WC68-661,31/05/2016,Childrens,CAREFIRST SERVICES LIMITED,13/05/2016,"3,733.66",76010-ACCOMMODATION AND RELATED COSTS-ASSISTANCE TO S/S CLIENTS,TRANSITION AND LEAVING CARE,Transfer Payments,Revenue
Walsall Council,http://opendatacommunities.org/id/metropolitan-district-council/walsall,WC68-662,31/05/2016,Social Care & Inclusion,CARETECH COMMUNITY SERVICE,18/05/2016,"1,210.42",73374-SUPPORTED & OTHER ACCOMMODATION,LD COMMISSIONING,Third Party Payments,Revenue
Walsall Council,http://opendatacommunities.org/id/metropolitan-district-council/walsall,WC68-663,31/05/2016,Social Care & Inclusion,CARETECH COMMUNITY SERVICE,18/05/2016,"5,048.57",73374-SUPPORTED & OTHER ACCOMMODATION,OP COMMISSIONING,Third Party Payments,Revenue
Walsall Council,http://opendatacommunities.org/id/metropolitan-district-council/walsall,WC68-664,31/05/2016,Social Care & Inclusion,CAREVIEW SERVICES LTD,10/05/2016,"6,802.80",73373-RESIDENTIAL & NURSING CARE PLACEMENTS,LD COMMISSIONING,Third Party Payments,Revenue
Walsall Council,http://opendatacommunities.org/id/metropolitan-district-council/walsall,WC68-665,31/05/2016,Economy & Environment,CARILLION COMMUNICATIONS LIMITED,03/05/2016,265,60000-FURNITURE & EQUIPMENT,NAG - TEMPORARY EXHIBITIONS,Supplies & Services,Revenue
Walsall Council,http://opendatacommunities.org/id/metropolitan-district-council/walsall,WC68-666,31/05/2016,Social Care & Inclusion,CARING CARE LIMITED,25/05/2016,"63,773.48",73372-DOMICILIARY CARE,OP COMMISSIONING,Third Party Payments,Revenue
Walsall Council,http://opendatacommunities.org/id/metropolitan-district-council/walsall,WC68-667,31/05/2016,Social Care & Inclusion,CARING HANDS LIMITED,25/05/2016,"51,887.02",73372-DOMICILIARY CARE,OP COMMISSIONING,Third Party Payments,Revenue
Walsall Council,http://opendatacommunities.org/id/metropolitan-district-council/walsall,WC68-668,31/05/2016,Social Care & Inclusion,REDACTED,18/05/2016,"1,222.05",73374-SUPPORTED & OTHER ACCOMMODATION,YADS COMMISSIONING,Third Party Payments,Revenue
Walsall Council,http://opendatacommunities.org/id/metropolitan-district-council/walsall,WC68-669,31/05/2016,Social Care & Inclusion,REDACTED,18/05/2016,"1,222.05",73374-SUPPORTED & OTHER ACCOMMODATION,YADS COMMISSIONING,Third Party Payments,Revenue
Walsall Council,http://opendatacommunities.org/id/metropolitan-district-council/walsall,WC68-670,31/05/2016,Social Care & Inclusion,REDACTED,04/05/2016,"1,637.40",73374-SUPPORTED & OTHER ACCOMMODATION,LD COMMISSIONING,Third Party Payments,Revenue
Walsall Council,http://opendatacommunities.org/id/metropolitan-district-council/walsall,WC68-671,31/05/2016,Social Care & Inclusion,REDACTED,04/05/2016,"1,637.40",73374-SUPPORTED & OTHER ACCOMMODATION,LD COMMISSIONING,Third Party Payments,Revenue
Walsall Council,http://opendatacommunities.org/id/metropolitan-district-council/walsall,WC68-672,31/05/2016,Social Care & Inclusion,REDACTED,09/05/2016,450,76422-DIRECT PAYMENTS TO SOCIAL SERVICES CLIENTS,YADS COMMISSIONING,Transfer Payments,Revenue
Walsall Council,http://opendatacommunities.org/id/metropolitan-district-council/walsall,WC68-673,31/05/2016,Childrens,REDACTED,23/05/2016,335.76,74023-SHORT TERM BREAKS,INTERNAL FOSTER CARE PROVISION,Third Party Payments,Revenue
Walsall Council,http://opendatacommunities.org/id/metropolitan-district-council/walsall,WC68-674,31/05/2016,Childrens,REDACTED,23/05/2016,470.96,74006-HOLIDAY/CHRISTMAS ALLOWANCE-FOSTER CARERS-OTH AGENCY PROVISION,INTERNAL FOSTER CARE PROVISION,Third Party Payments,Revenue
Walsall Council,http://opendatacommunities.org/id/metropolitan-district-council/walsall,WC68-675,31/05/2016,Childrens,REDACTED,23/05/2016,540.2,62515-MISCELLANEOUS SUPPLIES,INTERNAL FOSTER CARE PROVISION,Supplies & Services,Revenue
Walsall Council,http://opendatacommunities.org/id/metropolitan-district-council/walsall,WC68-676,31/05/2016,Childrens,REDACTED,09/05/2016,361.12,74006-HOLIDAY/CHRISTMAS ALLOWANCE-FOSTER CARERS-OTH AGENCY PROVISION,INTERNAL FOSTER CARE PROVISION,Third Party Payments,Revenue
Walsall Council,http://opendatacommunities.org/id/metropolitan-district-council/walsall,WC68-677,31/05/2016,Economy & Environment,CARTER SYNERGY LTD,19/05/2016,"-9,939.41",40216-OTHER-PLAN MTCE,NAG - MAINTENANCE,Premises,Revenue
Walsall Council,http://opendatacommunities.org/id/metropolitan-district-council/walsall,WC68-678,31/05/2016,Economy & Environment,CARTER SYNERGY LTD,17/05/2016,-874.5,"40000-REPAIRS,ALTERATIONS & MAINTENANCE-PREM",NAG - MAINTENANCE,Premises,Revenue
Walsall Council,http://opendatacommunities.org/id/metropolitan-district-council/walsall,WC68-679,31/05/2016,Economy & Environment,CARTER SYNERGY LTD,09/05/2016,271,"40000-REPAIRS,ALTERATIONS & MAINTENANCE-PREM",NAG - MAINTENANCE,Premises,Revenue
Walsall Council,http://opendatacommunities.org/id/metropolitan-district-council/walsall,WC68-680,31/05/2016,Economy & Environment,CARTER SYNERGY LTD,09/05/2016,446.6,40023-FIRE FIGHTING EQUIPMENT-OP MTCE,NAG - MAINTENANCE,Premises,Revenue
Walsall Council,http://opendatacommunities.org/id/metropolitan-district-council/walsall,WC68-681,31/05/2016,Economy & Environment,CARTER SYNERGY LTD,09/05/2016,623.7,"40000-REPAIRS,ALTERATIONS & MAINTENANCE-PREM",NAG - MAINTENANCE,Premises,Revenue
Walsall Council,http://opendatacommunities.org/id/metropolitan-district-council/walsall,WC68-682,31/05/2016,Economy & Environment,CARTER SYNERGY LTD,09/05/2016,874.5,"40000-REPAIRS,ALTERATIONS & MAINTENANCE-PREM",NAG - MAINTENANCE,Premises,Revenue
Walsall Council,http://opendatacommunities.org/id/metropolitan-district-council/walsall,WC68-683,31/05/2016,Economy & Environment,CARTER SYNERGY LTD,17/05/2016,874.5,"40000-REPAIRS,ALTERATIONS & MAINTENANCE-PREM",NAG - MAINTENANCE,Premises,Revenue
Walsall Council,http://opendatacommunities.org/id/metropolitan-district-council/walsall,WC68-684,31/05/2016,Economy & Environment,CARTER SYNERGY LTD,19/05/2016,"4,727.80",40216-OTHER-PLAN MTCE,NAG - MAINTENANCE,Premises,Revenue
Walsall Council,http://opendatacommunities.org/id/metropolitan-district-council/walsall,WC68-685,31/05/2016,Economy & Environment,CARTER SYNERGY LTD,25/05/2016,"4,727.80",40216-OTHER-PLAN MTCE,NAG - MAINTENANCE,Premises,Revenue
Walsall Council,http://opendatacommunities.org/id/metropolitan-district-council/walsall,WC68-686,31/05/2016,Economy & Environment,CARTER SYNERGY LTD,01/05/2016,"9,939.41",40216-OTHER-PLAN MTCE,NAG - MAINTENANCE,Premises,Revenue
Walsall Council,http://opendatacommunities.org/id/metropolitan-district-council/walsall,WC68-687,31/05/2016,Childrens,CATCH 22 CHARITY LTD,17/05/2016,"3,690.00",34305-AGENCY STAFF-EMPLOYEES,TRANSITION AND LEAVING CARE,Employees,Revenue
Walsall Council,http://opendatacommunities.org/id/metropolitan-district-council/walsall,WC68-688,31/05/2016,Social Care & Inclusion,REDACTED,09/05/2016,622.68,76422-DIRECT PAYMENTS TO SOCIAL SERVICES CLIENTS,LD COMMISSIONING,Transfer Payments,Revenue
Walsall Council,http://opendatacommunities.org/id/metropolitan-district-council/walsall,WC68-689,31/05/2016,Social Care & Inclusion,REDACTED,09/05/2016,690.48,76422-DIRECT PAYMENTS TO SOCIAL SERVICES CLIENTS,MH COMMISSIONING,Transfer Payments,Revenue
Walsall Council,http://opendatacommunities.org/id/metropolitan-district-council/walsall,WC68-690,31/05/2016,Childrens,REDACTED,09/05/2016,425.08,74006-HOLIDAY/CHRISTMAS ALLOWANCE-FOSTER CARERS-OTH AGENCY PROVISION,INTERNAL FOSTER CARE PROVISION,Third Party Payments,Revenue
Walsall Council,http://opendatacommunities.org/id/metropolitan-district-council/walsall,WC68-691,31/05/2016,Social Care & Inclusion,REDACTED,09/05/2016,388.4,76422-DIRECT PAYMENTS TO SOCIAL SERVICES CLIENTS,LD COMMISSIONING,Transfer Payments,Revenue
Walsall Council,http://opendatacommunities.org/id/metropolitan-district-council/walsall,WC68-692,31/05/2016,Childrens,REDACTED,09/05/2016,"1,014.26",76422-DIRECT PAYMENTS TO SOCIAL SERVICES CLIENTS,FAMILY SUPPORT - DIRECT PAYMENTS,Transfer Payments,Revenue
Walsall Council,http://opendatacommunities.org/id/metropolitan-district-council/walsall,WC68-693,31/05/2016,Childrens,REDACTED,09/05/2016,425.08,74006-HOLIDAY/CHRISTMAS ALLOWANCE-FOSTER CARERS-OTH AGENCY PROVISION,INTERNAL FOSTER CARE PROVISION,Third Party Payments,Revenue
Walsall Council,http://opendatacommunities.org/id/metropolitan-district-council/walsall,WC68-694,31/05/2016,Change and Governance,CE RISK SAFETY AND SECURITY LTD,09/05/2016,"4,713.28",73002-SECURITY-PRIV CONTRACTOR FEES,ACCOMMODATION SERVICES MANAGEMENT,Third Party Payments,Revenue
Walsall Council,http://opendatacommunities.org/id/metropolitan-district-council/walsall,WC68-695,31/05/2016,Change and Governance,CE RISK SAFETY AND SECURITY LTD,09/05/2016,"4,713.28",73002-SECURITY-PRIV CONTRACTOR FEES,ACCOMMODATION SERVICES MANAGEMENT,Third Party Payments,Revenue
Walsall Council,http://opendatacommunities.org/id/metropolitan-district-council/walsall,WC68-696,31/05/2016,Social Care & Inclusion,CEDER LODGE NURSING HOME,27/05/2016,"3,282.86",73373-RESIDENTIAL & NURSING CARE PLACEMENTS,OP COMMISSIONING,Third Party Payments,Revenue
Walsall Council,http://opendatacommunities.org/id/metropolitan-district-council/walsall,WC68-697,31/05/2016,Social Care & Inclusion,CEDER LODGE NURSING HOME,27/05/2016,"3,392.29",73373-RESIDENTIAL & NURSING CARE PLACEMENTS,OP COMMISSIONING,Third Party Payments,Revenue
Walsall Council,http://opendatacommunities.org/id/metropolitan-district-council/walsall,WC68-698,31/05/2016,Social Care & Inclusion,CEDER LODGE NURSING HOME,27/05/2016,"3,392.29",73373-RESIDENTIAL & NURSING CARE PLACEMENTS,OP COMMISSIONING,Third Party Payments,Revenue
Walsall Council,http://opendatacommunities.org/id/metropolitan-district-council/walsall,WC68-699,31/05/2016,Economy & Environment,CENTRAL MANCHESTER UNIVERSITY HOSPITALS NHS FOUNDATION TRUST,05/05/2016,268,63000-PROFESSIONAL FEES AND SERVICES,SEXUAL HEALTH,Supplies & Services,Revenue
Walsall Council,http://opendatacommunities.org/id/metropolitan-district-council/walsall,WC68-700,31/05/2016,Economy & Environment,CENTRAL THEATRE SUPPLIES,19/05/2016,215,60500-GENERAL MATERIALS,FOREST ARTS CENTRE,Supplies & Services,Revenue
Walsall Council,http://opendatacommunities.org/id/metropolitan-district-council/walsall,WC68-701,31/05/2016,Social Care & Inclusion,CENTRO WMPTA,24/05/2016,560,70000-SOCIAL SERVICES-FEES TO VOLUNTARY BODIES,COMPLEX NEEDS CONTRACTS/SLA's,Third Party Payments,Revenue
Walsall Council,http://opendatacommunities.org/id/metropolitan-district-council/walsall,WC68-702,31/05/2016,Social Care & Inclusion,CENTRO WMPTA,26/05/2016,560,70000-SOCIAL SERVICES-FEES TO VOLUNTARY BODIES,COMPLEX NEEDS CONTRACTS/SLA's,Third Party Payments,Revenue
Walsall Council,http://opendatacommunities.org/id/metropolitan-district-council/walsall,WC68-703,31/05/2016,Social Care & Inclusion,CENTRO WMPTA,25/05/2016,"2,200.00",70000-SOCIAL SERVICES-FEES TO VOLUNTARY BODIES,COMPLEX NEEDS CONTRACTS/SLA's,Third Party Payments,Revenue
Walsall Council,http://opendatacommunities.org/id/metropolitan-district-council/walsall,WC68-704,31/05/2016,Economy & Environment,CERTAS ENERGY UK LIMITED,23/05/2016,390.6,50301-FUEL-TRANSPORT RUN COSTS,TARMAC,Transport,Revenue
Walsall Council,http://opendatacommunities.org/id/metropolitan-district-council/walsall,WC68-705,31/05/2016,Change and Governance,CERTAS ENERGY UK LIMITED,24/05/2016,541.74,"40000-REPAIRS,ALTERATIONS & MAINTENANCE-PREM",CENTRALISED MAINTENANCE,Premises,Revenue
Walsall Council,http://opendatacommunities.org/id/metropolitan-district-council/walsall,WC68-706,31/05/2016,Economy & Environment,CERTAS ENERGY UK LIMITED,11/05/2016,569.48,50301-FUEL-TRANSPORT RUN COSTS,FUEL STOCK ACCOUNT,Transport,Revenue
Walsall Council,http://opendatacommunities.org/id/metropolitan-district-council/walsall,WC68-707,31/05/2016,Economy & Environment,CERTAS ENERGY UK LIMITED,16/05/2016,587.4,50301-FUEL-TRANSPORT RUN COSTS,FUEL STOCK ACCOUNT,Transport,Revenue
Walsall Council,http://opendatacommunities.org/id/metropolitan-district-council/walsall,WC68-708,31/05/2016,Economy & Environment,CERTAS ENERGY UK LIMITED,16/05/2016,"1,145.10",50301-FUEL-TRANSPORT RUN COSTS,FUEL STOCK ACCOUNT,Transport,Revenue
Walsall Council,http://opendatacommunities.org/id/metropolitan-district-council/walsall,WC68-709,31/05/2016,Economy & Environment,CERTAS ENERGY UK LIMITED,04/05/2016,"1,760.00",50301-FUEL-TRANSPORT RUN COSTS,FUEL STOCK ACCOUNT,Transport,Revenue
Walsall Council,http://opendatacommunities.org/id/metropolitan-district-council/walsall,WC68-710,31/05/2016,Economy & Environment,CERTAS ENERGY UK LIMITED,04/05/2016,"16,763.47",50301-FUEL-TRANSPORT RUN COSTS,FUEL STOCK ACCOUNT,Transport,Revenue
Walsall Council,http://opendatacommunities.org/id/metropolitan-district-council/walsall,WC68-711,31/05/2016,Economy & Environment,CERTAS ENERGY UK LIMITED,11/05/2016,"16,847.11",50301-FUEL-TRANSPORT RUN COSTS,FUEL STOCK ACCOUNT,Transport,Revenue
Walsall Council,http://opendatacommunities.org/id/metropolitan-district-council/walsall,WC68-712,31/05/2016,Economy & Environment,CERTAS ENERGY UK LIMITED,16/05/2016,"16,964.17",50301-FUEL-TRANSPORT RUN COSTS,FUEL STOCK ACCOUNT,Transport,Revenue
Walsall Council,http://opendatacommunities.org/id/metropolitan-district-council/walsall,WC68-713,31/05/2016,Childrens,CFT FOSTERING LIMITED,18/05/2016,"2,218.12",74037-INDEPENDENT FOSTER CARE-OTH AGENCY PROVISION,EXTERNAL FOSTER CARE PROVISION,Third Party Payments,Revenue
Walsall Council,http://opendatacommunities.org/id/metropolitan-district-council/walsall,WC68-714,31/05/2016,Social Care & Inclusion,REDACTED,09/05/2016,748,76422-DIRECT PAYMENTS TO SOCIAL SERVICES CLIENTS,YADS COMMISSIONING,Transfer Payments,Revenue
Walsall Council,http://opendatacommunities.org/id/metropolitan-district-council/walsall,WC68-715,31/05/2016,Childrens,REDACTED,09/05/2016,596.12,74006-HOLIDAY/CHRISTMAS ALLOWANCE-FOSTER CARERS-OTH AGENCY PROVISION,INTERNAL FOSTER CARE PROVISION,Third Party Payments,Revenue
Walsall Council,http://opendatacommunities.org/id/metropolitan-district-council/walsall,WC68-716,31/05/2016,Childrens,CHARLES CODDY WALKER ACADEMY,10/05/2016,381.36,66505-OTHER-GRANTS TO OTHER ORGS,EARLY YEARS - 3 YR OLDS,Third Party Payments,Revenue
Walsall Council,http://opendatacommunities.org/id/metropolitan-district-council/walsall,WC68-717,31/05/2016,Childrens,CHARLES CODDY WALKER ACADEMY,03/05/2016,770,66502-TOP UP FUNDING -GRANTS TO SCHOOLS,CHARLES CODDY WALKER ACADEMY,Third Party Payments,Revenue
Walsall Council,http://opendatacommunities.org/id/metropolitan-district-council/walsall,WC68-718,31/05/2016,Childrens,REDACTED,09/05/2016,258.96,76422-DIRECT PAYMENTS TO SOCIAL SERVICES CLIENTS,FAMILY SUPPORT - DIRECT PAYMENTS,Transfer Payments,Revenue
Walsall Council,http://opendatacommunities.org/id/metropolitan-district-council/walsall,WC68-719,31/05/2016,Childrens,CHARLIE'S SOS,23/05/2016,"1,137.78",63120-CRECHE FACILITIES-SERVICES-FEES,EARLY HELP & RESOURCE PANEL,Supplies & Services,Revenue
Walsall Council,http://opendatacommunities.org/id/metropolitan-district-council/walsall,WC68-720,31/05/2016,Childrens,CHARLIE'S SOS,23/05/2016,"1,164.24",63120-CRECHE FACILITIES-SERVICES-FEES,EARLY HELP & RESOURCE PANEL,Supplies & Services,Revenue
Walsall Council,http://opendatacommunities.org/id/metropolitan-district-council/walsall,WC68-721,31/05/2016,Childrens,CHARLIE'S SOS,23/05/2016,"1,907.24",63120-CRECHE FACILITIES-SERVICES-FEES,EARLY HELP & RESOURCE PANEL,Supplies & Services,Revenue
Walsall Council,http://opendatacommunities.org/id/metropolitan-district-council/walsall,WC68-722,31/05/2016,Social Care & Inclusion,CHARMEND LTD,17/05/2016,"2,187.27",73373-RESIDENTIAL & NURSING CARE PLACEMENTS,OP COMMISSIONING,Third Party Payments,Revenue
Walsall Council,http://opendatacommunities.org/id/metropolitan-district-council/walsall,WC68-723,31/05/2016,Social Care & Inclusion,CHARMEND LTD,04/05/2016,"26,571.43",73019-PSE'S-PRIV CONTRACTOR FEES,TRANSITIONAL CARE SUPPORT TEAM,Third Party Payments,Revenue
Walsall Council,http://opendatacommunities.org/id/metropolitan-district-council/walsall,WC68-724,31/05/2016,Social Care & Inclusion,CHARTER CARE,25/05/2016,"41,347.84",73372-DOMICILIARY CARE,OP COMMISSIONING,Third Party Payments,Revenue
Walsall Council,http://opendatacommunities.org/id/metropolitan-district-council/walsall,WC68-725,31/05/2016,Change and Governance,CHARTERHOUSE VOICE & DATA,03/05/2016,"15,500.00",63800-COMPUTER EQUIPMENT AND SUPPLIES,ADVANCED LICENSING,Supplies & Services,Revenue
Walsall Council,http://opendatacommunities.org/id/metropolitan-district-council/walsall,WC68-726,31/05/2016,Childrens,REDACTED,25/05/2016,"1,113.38",76400-RESIDENTS PERSONAL EXPENSES-ALLOWANCES TO S/S CLIENTS,TRANSITION AND LEAVING CARE,Transfer Payments,Revenue
Walsall Council,http://opendatacommunities.org/id/metropolitan-district-council/walsall,WC68-727,31/05/2016,Childrens,REDACTED,27/05/2016,291.75,63120-CRECHE FACILITIES-SERVICES-FEES,LOOKED AFTER CHILDRENS SOCIAL WORK TEAM,Supplies & Services,Revenue
Walsall Council,http://opendatacommunities.org/id/metropolitan-district-council/walsall,WC68-728,31/05/2016,Social Care & Inclusion,REDACTED,09/05/2016,"1,601.60",76422-DIRECT PAYMENTS TO SOCIAL SERVICES CLIENTS,LD COMMISSIONING,Transfer Payments,Revenue
Walsall Council,http://opendatacommunities.org/id/metropolitan-district-council/walsall,WC68-729,31/05/2016,Change and Governance,CHILD POVERTY ACTION GROUP,13/05/2016,11.49,63500-POSTAGES AND COURIER SERVICES,WELFARE RIGHTS,Supplies & Services,Revenue
Walsall Council,http://opendatacommunities.org/id/metropolitan-district-council/walsall,WC68-730,31/05/2016,Change and Governance,CHILD POVERTY ACTION GROUP,13/05/2016,319.85,69400-REFERENCE BOOKS,WELFARE RIGHTS,Supplies & Services,Revenue
Walsall Council,http://opendatacommunities.org/id/metropolitan-district-council/walsall,WC68-731,31/05/2016,Childrens,CHILDCARE BUREAU LTD,11/05/2016,-335.7,74037-INDEPENDENT FOSTER CARE-OTH AGENCY PROVISION,EXTERNAL FOSTER CARE PROVISION,Third Party Payments,Revenue
Walsall Council,http://opendatacommunities.org/id/metropolitan-district-council/walsall,WC68-732,31/05/2016,Childrens,CHILDCARE BUREAU LTD,09/05/2016,"6,000.12",74037-INDEPENDENT FOSTER CARE-OTH AGENCY PROVISION,EXTERNAL FOSTER CARE PROVISION,Third Party Payments,Revenue
Walsall Council,http://opendatacommunities.org/id/metropolitan-district-council/walsall,WC68-733,31/05/2016,Childrens,CHILDCARE BUREAU LTD,19/05/2016,"6,000.12",74037-INDEPENDENT FOSTER CARE-OTH AGENCY PROVISION,EXTERNAL FOSTER CARE PROVISION,Third Party Payments,Revenue
Walsall Council,http://opendatacommunities.org/id/metropolitan-district-council/walsall,WC68-734,31/05/2016,Childrens,CHILDCARE BUREAU LTD,09/05/2016,"6,939.80",74037-INDEPENDENT FOSTER CARE-OTH AGENCY PROVISION,EXTERNAL FOSTER CARE PROVISION,Third Party Payments,Revenue
Walsall Council,http://opendatacommunities.org/id/metropolitan-district-council/walsall,WC68-735,31/05/2016,Childrens,CHILDLINK,09/05/2016,22.4,53001-OTHER/VOLUNTEERS-CAR ALLOWANCES,CONTACT SESSIONAL STAFF,Transport,Revenue
Walsall Council,http://opendatacommunities.org/id/metropolitan-district-council/walsall,WC68-736,31/05/2016,Childrens,CHILDLINK,09/05/2016,29.25,53003-OTHER-TRAVEL ALLOWANCES,CONTACT SESSIONAL STAFF,Transport,Revenue
Walsall Council,http://opendatacommunities.org/id/metropolitan-district-council/walsall,WC68-737,31/05/2016,Childrens,CHILDLINK,09/05/2016,36,63128-HIRE OF ROOM-SERVICES-FEES,CONTACT SESSIONAL STAFF,Supplies & Services,Revenue
Walsall Council,http://opendatacommunities.org/id/metropolitan-district-council/walsall,WC68-738,31/05/2016,Childrens,CHILDLINK,04/05/2016,216.1,76003-SECTION 34 (CONTACT),CONTACT SESSIONAL STAFF,Third Party Payments,Revenue
Walsall Council,http://opendatacommunities.org/id/metropolitan-district-council/walsall,WC68-739,31/05/2016,Childrens,CHILDLINK,16/05/2016,222.8,76003-SECTION 34 (CONTACT),CONTACT SESSIONAL STAFF,Third Party Payments,Revenue
Walsall Council,http://opendatacommunities.org/id/metropolitan-district-council/walsall,WC68-740,31/05/2016,Childrens,CHILDLINK,09/05/2016,234,76003-SECTION 34 (CONTACT),CONTACT SESSIONAL STAFF,Third Party Payments,Revenue
Walsall Council,http://opendatacommunities.org/id/metropolitan-district-council/walsall,WC68-741,31/05/2016,Childrens,CHILDLINK,01/05/2016,237.7,76003-SECTION 34 (CONTACT),CONTACT SESSIONAL STAFF,Third Party Payments,Revenue
Walsall Council,http://opendatacommunities.org/id/metropolitan-district-council/walsall,WC68-742,31/05/2016,Childrens,CHILDLINK,03/05/2016,253.4,76003-SECTION 34 (CONTACT),CONTACT SESSIONAL STAFF,Third Party Payments,Revenue
Walsall Council,http://opendatacommunities.org/id/metropolitan-district-council/walsall,WC68-743,31/05/2016,Childrens,CHILDLINK,20/05/2016,459.2,76003-SECTION 34 (CONTACT),CONTACT SESSIONAL STAFF,Third Party Payments,Revenue
Walsall Council,http://opendatacommunities.org/id/metropolitan-district-council/walsall,WC68-744,31/05/2016,Childrens,CHILDLINK,03/05/2016,"1,239.00",76003-SECTION 34 (CONTACT),CONTACT SESSIONAL STAFF,Third Party Payments,Revenue
Walsall Council,http://opendatacommunities.org/id/metropolitan-district-council/walsall,WC68-745,31/05/2016,Childrens,CHILDLINK,27/05/2016,"1,345.20",76003-SECTION 34 (CONTACT),CONTACT SESSIONAL STAFF,Third Party Payments,Revenue
Walsall Council,http://opendatacommunities.org/id/metropolitan-district-council/walsall,WC68-746,31/05/2016,Childrens,CHILDLINK,03/05/2016,"1,475.20",76003-SECTION 34 (CONTACT),CONTACT SESSIONAL STAFF,Third Party Payments,Revenue
Walsall Council,http://opendatacommunities.org/id/metropolitan-district-council/walsall,WC68-747,31/05/2016,Childrens,CHILDREN ALWAYS FIRST LTD,23/05/2016,795,74037-INDEPENDENT FOSTER CARE-OTH AGENCY PROVISION,EXTERNAL FOSTER CARE PROVISION,Third Party Payments,Revenue
Walsall Council,http://opendatacommunities.org/id/metropolitan-district-council/walsall,WC68-748,31/05/2016,Childrens,CHILDREN ALWAYS FIRST LTD,10/05/2016,"2,848.71",74037-INDEPENDENT FOSTER CARE-OTH AGENCY PROVISION,EXTERNAL FOSTER CARE PROVISION,Third Party Payments,Revenue
Walsall Council,http://opendatacommunities.org/id/metropolitan-district-council/walsall,WC68-749,31/05/2016,Childrens,CHILDREN ALWAYS FIRST LTD,16/05/2016,"3,065.78",74037-INDEPENDENT FOSTER CARE-OTH AGENCY PROVISION,EXTERNAL FOSTER CARE PROVISION,Third Party Payments,Revenue
Walsall Council,http://opendatacommunities.org/id/metropolitan-district-council/walsall,WC68-750,31/05/2016,Childrens,CHILDREN ALWAYS FIRST LTD,23/05/2016,"3,181.07",74037-INDEPENDENT FOSTER CARE-OTH AGENCY PROVISION,EXTERNAL FOSTER CARE PROVISION,Third Party Payments,Revenue
Walsall Council,http://opendatacommunities.org/id/metropolitan-district-council/walsall,WC68-751,31/05/2016,Childrens,CHILDREN ALWAYS FIRST LTD,23/05/2016,"3,368.57",74037-INDEPENDENT FOSTER CARE-OTH AGENCY PROVISION,EXTERNAL FOSTER CARE PROVISION,Third Party Payments,Revenue
Walsall Council,http://opendatacommunities.org/id/metropolitan-district-council/walsall,WC68-752,31/05/2016,Childrens,CHILDREN ALWAYS FIRST LTD,09/05/2016,"3,520.71",74037-INDEPENDENT FOSTER CARE-OTH AGENCY PROVISION,EXTERNAL FOSTER CARE PROVISION,Third Party Payments,Revenue
Walsall Council,http://opendatacommunities.org/id/metropolitan-district-council/walsall,WC68-753,31/05/2016,Social Care & Inclusion,CHOICECARE 2000 LIMITED,25/05/2016,"3,272.72",73373-RESIDENTIAL & NURSING CARE PLACEMENTS,MH COMMISSIONING,Third Party Payments,Revenue
Walsall Council,http://opendatacommunities.org/id/metropolitan-district-council/walsall,WC68-754,31/05/2016,Childrens,CHRIS DENNISON CONSULTING LTD,23/05/2016,745.9,63000-PROFESSIONAL FEES AND SERVICES,ADOPTION TEAM,Supplies & Services,Revenue
Walsall Council,http://opendatacommunities.org/id/metropolitan-district-council/walsall,WC68-755,31/05/2016,Social Care & Inclusion,REDACTED,09/05/2016,"1,489.62",76422-DIRECT PAYMENTS TO SOCIAL SERVICES CLIENTS,MH COMMISSIONING,Transfer Payments,Revenue
Walsall Council,http://opendatacommunities.org/id/metropolitan-district-council/walsall,WC68-756,31/05/2016,Social Care & Inclusion,REDACTED,09/05/2016,489.6,76422-DIRECT PAYMENTS TO SOCIAL SERVICES CLIENTS,YADS COMMISSIONING,Transfer Payments,Revenue
Walsall Council,http://opendatacommunities.org/id/metropolitan-district-council/walsall,WC68-757,31/05/2016,Social Care & Inclusion,CHRISTINE ROWLEY TRAINING & CONSULTANCY,16/05/2016,"2,500.00",30030-EXTERNAL TRAINING,CARERS SERVICES,Employees,Revenue
Walsall Council,http://opendatacommunities.org/id/metropolitan-district-council/walsall,WC68-758,31/05/2016,Social Care & Inclusion,REDACTED,09/05/2016,"2,108.00",76422-DIRECT PAYMENTS TO SOCIAL SERVICES CLIENTS,OP COMMISSIONING,Transfer Payments,Revenue
Walsall Council,http://opendatacommunities.org/id/metropolitan-district-council/walsall,WC68-759,31/05/2016,Childrens,REDACTED,09/05/2016,747.52,74006-HOLIDAY/CHRISTMAS ALLOWANCE-FOSTER CARERS-OTH AGENCY PROVISION,INTERNAL FOSTER CARE PROVISION,Third Party Payments,Revenue
Walsall Council,http://opendatacommunities.org/id/metropolitan-district-council/walsall,WC68-760,31/05/2016,Social Care & Inclusion,REDACTED,09/05/2016,822.16,76422-DIRECT PAYMENTS TO SOCIAL SERVICES CLIENTS,YADS COMMISSIONING,Transfer Payments,Revenue
Walsall Council,http://opendatacommunities.org/id/metropolitan-district-council/walsall,WC68-761,31/05/2016,Social Care & Inclusion,REDACTED,09/05/2016,588,76422-DIRECT PAYMENTS TO SOCIAL SERVICES CLIENTS,OP COMMISSIONING,Transfer Payments,Revenue
Walsall Council,http://opendatacommunities.org/id/metropolitan-district-council/walsall,WC68-762,31/05/2016,Childrens,REDACTED,23/05/2016,354.48,62515-MISCELLANEOUS SUPPLIES,INTERNAL FOSTER CARE PROVISION,Supplies & Services,Revenue
